Workbook

Sheet Guidance
B1: Budget forecast return three year 2020
B3: Guidance: Section 1
B5: Introduction to this workbook
B7: This document is designed for use as a workbook to assist in preparing the online BFR return. Note that the spreadsheet cannot be used to submit the BFR, this must be submitted via an online form that is published on the gov.uk website.
B9: The workbook can be used to process and validate information before completing the online form.
B10: Most numbers (especially income and expenditure) are positive figures. A few numbers are negative, but this will be clear when inputting the figures either on the workbook or the online form.
B11: All figures in the online form will need to be entered in thousands, except for line number 299 which requires a percentage value and line 999 which are pupil numbers.
B14: The main features in the 2020 version of the spreadsheet are:
B15: This year the BFR3Y financial return will be different. Trusts will need to complete forecasts up to the end of next academic year 2020/21 as usual. However, we will not be collecting the forecasts for the academic years 2021/22 and 2022/23 at this time. Academy trust governing bodies must still review and agree longer term forecasts – this is in accordance with the Academies Financial Handbook. In the BFR3Y 2021 we will resume collecting the forecasts for 2022/23 and 2023/24 as usual.
B16: This year an additional request for the summary 2018/19 revenue income and expenditure totals has been included in this return. This is part of the Department's assessment of the impact of COVID-19. The summary data is limited to 8 input fields.
B17: a) Additional column I - on the workbook (this will be a separate section on the online form). This is to collect the summary revenue and expenditure totals. Line 410 will be pre populated if your previous BFR3Y form was submitted on time.
B18: b) Additional Finance Question. - FQ6 - 'Please use this section to summarise how COVID-19 has had a material impact on any actuals, forecast or pupil numbers as a result of COVID-19 for your academy trust' This optional question is to allow for you to tell us about anything that will help provide context for any changes as a result of school closures. Please provide a short summary of this and where any of these are shown in the return.
B19: c) GAG pooling – we have introduced an option(row 232) to confirm that your reserves are pooled and therefore removing the need to input for each academy. How you answer this will affect the corresponding line 800s. This will either show each academy in your trust, not pooled, or if pooled is selected the form will not show a breakdown for each academy in your trust.
B20: d) and if even if not pooling, we have hidden the majority of line 800s to save on scrolling. Use the small "1" and "2" buttons on the far left on the screen to filter the view.
B21: e) context sensitive help text - beside each row, hover over the "i" icon
B22: f) the workbook works the same as the online form but cannot mirror all its functionality (please note comment in a re the additional column - column I on the BFR3Y 2020 tab)
B23: g) a series of validations and queries to test the robustness of the data
B24: h) a series of finance questions at the top of the BFR worksheet, reduced this year to only 5 questions, excluding the question re the impact of COVID 19.
B25: i) trust validations table where the trust can: 1) provide responses to any queries raised; 2) review queries and responses; and 3) review the number of outstanding validations and queries at any time
B26: j) a slight reorder of some lines to increase the natural flow
B28: Once all the validations have been cleared in the workbook, then the completion of the online form should not result in any more validations being triggered. Note that comments entered into the workbook can be copied and pasted into the online form for ease.
B30: Protected sheets
B31: The worksheets are protected with the password "BFR". The protection can be removed to inspect how the workbook is structured.
B32: If the password protection is removed then there is a risk that formulas and validations could be accidentally be overwritten, hence it is safest to do this on a separate saved version.
B34: Layout of the workbook
B35: The key features are the three sections:
B36: 1) an organisation page, a preparer declaration page, an approver declaration page
B37: 2) the main BFR spreadsheet
B38: 3) the validations table where your trust provides answer to validation queries, review their responses and review the number of outstanding validations
B41: Validations
B42: Please note that the validations in this workbook mirror the online form - you will not be able to submit the online form if there are any unresolved validations. To do this they will either need a numerical change in the 'BFR 2020 tab or an explanation provided in the 'Trust validation table' tab.
B43: Once the finance questions are answered along with any follow up queries, the BFR spreadsheet is completed in exactly the same way as the previous year's.
B44: There are validations to ensure only rounded whole numbers (£000) are input (i.e. no decimals) and that the values input are within the acceptable range. The thresholds are currently set quite high so this is mainly used to prevent inputting credits or negative numbers or values in £s.
B45: When entering values if additional action is required then the "Check Validations" pops up in column E. If you trigger a validation error, please scroll to the right to column S you will be able to see which validation has been triggered. This may be because a number input is in decimals, or is too high or too low or a query requires a response.
B46: To remove the "Check validations" message either amend the entry or provide an answer in the trust validations table tab.
B47: An example is if stated "Yes" in having provisions in the finance questions, but then input nothing in the provisions section then the validation will require either changing the answer to "No" or inputting relevant provision balances.
B48: If explanatory text is required then a query will appear and the "Check Validations" will only disappear after an explanation has been provided or an error corrected.
B49: When a validation query appears in the BFR worksheet and in the trust validations table then you should answer the query or amend the numbers to make the validation disappear.
B50: Within the "Trust Validations table", cells C5 and C6 should read zero before presenting the budget to the approver and to trustees.
B53: 3 year forecast section
B55: Reason for the new 3 year forecast
B56: We want to better understand schools’ forecasts, so we can more effectively support a financially healthy school sector. The returns will provide us with assurance that trusts are undertaking strategic budget planning, in line with best practice, and help the ESFA better understand which schools may benefit from further support.
B59: 3 year forecast
B61: All trusts must complete this section, providing commentary on your underlying assumptions.
B63: Mappings are straightforward. The revenue lines in the table are: 1) DfE income; 2) Other income; 3) Surplus transfer; 4) Staff costs and 5) non staff costs. There is also a section to record transfers between revenue and capital (C1 and D1)
B65: The capital income and spend section should include actual income and actual spend only and ignore all the other non cash capital lines- for example donated assets, converted assets and AUC transferred from ESFA. Codes D2 to D4 cover this.
B67: The final section in the form includes items such as cash, depreciation and any other non cash items. Reserves are a single line for the entire trust and line by line by academy is not required. Codes E to G cover this.
B69: We are aware that the sector would require more detailed guidance on how to prepare for the 3 year forecast and what assumptions to make. However we wish to avoid being too prescriptive as there may be a wide variety of local factors as well as changing national circumstances which could contradict any guidance we may offer. We prefer that you focus on providing a realistic forecast, using the most appropriate assumptions.
B72: Some general planning assumptions that may drive your forecast are as follows:
B73: Income
B74: 1) forecast pupil numbers
B75: 2) estimated National Funding Formula funding per pupil with a baseline including minimum funding guarantees
B76: 3) changes in pupil premium funding and mix of pupils with special needs
B77: 4) mix of weighting factors including area cost adjustment
B78: 5) other income assumptions such as, commercial income and investment income
B80: Expenditure
B81: 1) pay awards for all staff (national rates or locally determined rates)
B82: 2) staff turnover estimates and future staff grade ratios
B83: 3) TPS contribution rates (indications of national rates)
B84: 4) LGPS contribution rates (varies according to region)
B85: 5) non-staff cost inflation- could apply a flat be variable subject to different rates depending on specific costs
B86: Assumptions
B88: We appreciate that all schools are currently coping with a very challenging set of circumstances. It’s for this reason that the scope of the BFR3Y has been reduced. If there is any narrative that will provide useful context for the specific challenges facing your trust then please provide any details in the comments section on the Preparer or Approver declaration tab.
B89: We understand that financial forecasting involves a degree of volatility and that you will need to make some assumptions about future patterns of income and expenditure. Assumptions will depend on individual circumstances, strategic aims and approach to financial planning.
B90: You should ensure that your forecast best reflects your own likely future circumstances.
B91: Assumptions are best determined locally as you have the detailed operational knowledge of your own particular circumstances. This will include, for example, local area trends and local authority planning for pupil numbers. We would expect that assumptions used in forecasts would be based upon historic trends of pupil numbers, also knowledge of any investment plans going forward
B92: ESFA cannot give advice on how trusts should set their own assumptions. This is for the trust to decide and is a critical element of your trust's financial governance and risk management arrangements. In some areas a future funding policy may not be known, in such cases trusts will need to reflect what they consider to be sensible assumptions.
B94: Trusts may wish to make use of any advice or guidance provided by representative bodies, however the final decisions remain the responsibility of the Trustees. We ask that your return is consistent with what is provided to your internal Board.
B96: It is especially important to comment on your overall net surplus or deficit over the forecast period. Please note that the department will not make the assumption, based on the BFR alone, that a forecast deficit implies poor financial management. It is imperative that trusts provide genuine forecasts that provide a realistic future picture.
B98: The trust board must agree and support any assumptions included in the forecasts. Here are some general planning assumptions that may help you construct your forecast:
B99: Income
B100: i. forecast pupil numbers
B101: ii. estimated National Funding Formula funding per pupil with a baseline including minimum funding guarantees
B102: iii. changes in pupil premium funding and mix of pupils with special needs
B103: iv. mix of weighting factors including area cost adjustment
B104: v. other income assumptions such as, commercial income and investment income
B106: Expenditure
B107: i. pay awards for all staff (national rates or locally determined rates)
B108: ii. staff turnover estimates and future staff grade ratios
B109: iii. TPS contribution rates (indications of national rates)
B110: iv. LGPS contribution rates (varies according to region)
B111: v. non-staff cost inflation- could apply a flat rate or variable one subject to different rates depending on specific costs
B113: If you are forecasting a deficit then please include a description of any mitigating actions that you are undertaking. If these are already approved then the forecast should reflect the impact of these plans.
B116: 2.3 Guidance for various sections
B117: 2.3.1 Revenue
B119: Revenue summary 2018-2019 data (column I):
B120: This column has been introduced to capture the actuals for the 2018/2019 academic year.
B121: Please note that this is only being collected at a subtotal level within this form . The workbook highlights where the figures for each of the subtotals are calculated from within the form. For more detail of each line please see the revenue section below.
B122: Income:
B123: · line 199 Total DfE/ESFA revenue income - total of lines 101 to 150
B124: · line 218 Subtotal transfers surplus - total of lines 212 & 215
B125: · line 250 Total of other revenue income – total of lines 200-211 & 220.
B126: · lines 255 – Transfers between revenue and capital
B127: Expenditure:
B128: · line 335 Total staff costs - total of lines 310 - 325
B129: · line 349 Subtotal support costs - total of lines 330 & 378
B130: · line 352 Subtotal transfer deficit – total of lines 350 & 351.
B131: · lines 395 – Other non cash costs
B132: Revenue Totals:
B133: · line 401 Balance b/f from previous period - Input the closing balance of revenue funds from previous financial year. If the trust submitted an August 2019 accounts return covering the same academies as covered by the budget forecast return, then the amount entered into this cell should agree to the sum of “Endowment Fund”, “Restricted Income Fund”, and “Unrestricted Fund” in the Balance Sheet Summary of the August 2019 accounts return. (Please note on the online form this figure will be prepopulated if you submitted your BFR3Y 2019 on time).
B137: DfE/ESFA Revenue Grants income (lines 101-199)
B138: Please include all DfE/ESFA revenue grants funding receivable in the period, broken down into the various DfE/EFSA sections.
B140: DfE revenue income (lines 101 to 199)
B141: · lines 101 to 199 (column C) – include DfE/ESFA revenue grants received or receivable for the September 2019 to August 2020 academic year and where applicable for the September 2020 to August 2021 academic year, including any post-16 allocations.
B142: · line 108 pupil premium & service premium – do not include any looked after children pupil premium allocations as this is funding provided by local authorities and should be included within line 200
B143: · line 135 other DfE/ESFA grants – include any remaining non-GAG grants receivable for the September 2019 to August 2020 and September 2020 to August 2021 academic years not included in lines 101 to 138
B144: · line 137 insurance– This should only contain any insurance top-up grants received from the ESFA. It should not include the value of insurance claims.
B146: Other revenue income (lines 200 to 250)
B147: · line 200 local authority revenue income – Include all revenue income received or receivable from local authorities, but exclude revenue surplus transfers from predecessor local authority maintained schools on conversion.
B148: · line 205 other government grant revenue income – Include all revenue grants receivable from other government sources (i.e. excluding DfE; other bodies within the DfE family; ESFA; and local authority) that are not included in the lines above.
B149: · line 210 grants from non-government bodies – include all revenue grants received from non-government sources
B150: · line 211 income from trading activities – include all revenue received from trading activities such as hall hire, catering, rental income and insurance claims.
B151: · line 212 revenue surplus transfer of an existing academy into the trust - include all revenue surplus received or receivable following the transfer of an existing academy, i.e. surpluses received from another academy trust as a result of the transfer excluding pensions and fixed assets
B152: · line 215 revenue surplus transfer to academy on conversion – include all revenue surplus received or receivable on conversion from local authorities, i.e. surpluses received from local authorities on conversion excluding pensions and fixed assets
B153: · line 220 other income (other) - include any other revenue income not covered by the above categories e.g. donations, business sponsorship, parental contributions, investment income etc.
B155: Transfers between revenue from capital (line 255)
B156: Net transfer between revenue and capital. This should be the planned transfer from revenue reserves or income to the capital budget to spend on capital items. This should normally be a -ve figure. However, occasionally a capital grant is spent as per the grant conditions, but the expense has been classified as revenue ( e.g. roof repair). In this case there may be a need to make a transfer from capital to revenue and hence create a +ve transfer to revenue from capital (i.e. -ve in contra line 585).
B159: Proportion of revenue income that will come from a public body (line 299)
B160: Trusts are required to estimate the proportion of their total revenue income (line 298) that has been provided by a public body. This will include the ESFA, other government departments, local authorities and other academies. This figure is required to be a percentage and as most trust income comes from public bodies it should be a large percentage.
B162: Revenue expenditure (lines 310 to 430)
B163: · line 310 wages and salaries – include the full costs of employment for staff employed directly/indirectly by the trust including gross pay, bonuses, overtime allowances, maternity and sick pay and redundancy costs
B164: · line 311 social security costs - include the employer’s national insurance and any costs of the apprenticeship levy
B165: · line 320 pension cost: teaching staff – include the superannuation contributions relating to teaching staff. It should include actual pension contribution
B166: · line 325 pension cost: non-teaching staff – include the superannuation contributions relating to non-teaching staff. It should include actual pension contributions and any payments to address the deficit on the LGPS fund, but not include any change in the value of the deficit calculated under FRS102
B167: · line 330 – other staff costs – include any indirect staffing costs such as training and development, staff travel, childcare vouchers and DBS checks
B168: · line 378 non-staff costs – include any other revenue expenditure not covered by the above categories e.g. costs of all educational and non-educational supplies and services, RPA contributions, revenue impact of an academy transferring out of the trust, bank charges and interest, etc.
B169: · line 395 non-cash costs – Only include any non cash costs that flow into revenue reserves. If non cash costs feed the pensions reserve or the capital fund then please exclude. An example is where depreciation flows into the capital fund, in this case this should not be included here. Instead it should be disclosed in the other items section below. If you include impairment charges in revenue reserves then please provide an explanation following the validation query. Please include other non cash items such as provisions (but not pension liabilities) or unwinding of the discount.
B170: · line 410 balance b/fwd. from previous period – Input the closing balance of revenue funds from previous financial year. If the trust submitted an August 2019 accounts return covering the same academies as covered by the budget forecast return, then the amount entered into this cell should agree to the sum of “Endowment Fund”, “Restricted Income Fund”, and “Unrestricted Fund” in the Balance Sheet Summary of the August 2019 accounts return
B171: · line 430 balance c/fwd. to next period – this is an automatic sum of lines 400 and 410
B173: 2.3.2 Capital
B175: DfE capital grants income (lines 510 to 550)
B176: Include all DfE capital grants funding receivable in the period.
B177: · line 510 devolved formula capital – the total amount of respective capital funding grant receivable from ESFA
B178: · line 520 value of any capital donation of an asset from the ESFA for PSPB/free schools programme – include the value of any asset that has been transferred, or due to be transferred from the ESFA to the trust where the ESFA has procured the capital works centrally under the Priority Schools Building Programme (PSBP) or Free Schools Programme
B179: · line 530 other income – capital – include the amount of any capital grants received from the ESFA that is not included in lines 510 or 520, for example CIF/SCA funding
B180: · line 540 other DfE family capital grant - Enter the value of any capital grants from DfE family bodies, such as the national college, ESFA, equalities and human rights commission, office of the children's commissioner or the standards and testing agency.
B181: Other capital grants income (lines 560 to 580)
B182: · line 560 local authority capital income – include any local authority capital funding receivable- this should be cash payments only.
B183: · other capital income (lines 570 to 571) – include all other capital income broken down into the following categories:
B184: · line 570 non-governmental capital income – include: voluntary, private capital, or other capital funding, donations for use as capital or any other non government capital income.
B185: · line 571 other government grant capital income – include any other government capital grants received, which are not included in the above lines. Please specify which government body the grants are from in the comments column.
B186: · line 574 endowment release to fund capital expenditure. Include where there have been any releases from endowments reserves to fund capital expenditure.
B187: · line 575 local authority donated assets – Include assets acquired on conversion to academy status
B189: Disposals
B190: · disposals (lines 581-584) – include the value of the net book value of assets disposed of:
B191: · line 581 land and buildings
B192: · line 582 other fixed assets
B194: Transfer to revenue from capital (line 585)
B195: This line links to line 255 (transfers between revenue from capital), this is automatically populated as a contra balance from the entry on this row.
B196: Trusts should calculate a net transfer between revenue and capital. Transfers from revenue to capital will include the planned use of reserves, or revenue income, on capital items. Transfer from capital to revenue may include the use of grants on premises maintenance items, where this is specifically allowed.
B197: Further explanation is provided in the section relating to line 255 above.
B199: Capital expenditure (lines 601 to 680)
B200: Land and buildings additions (lines 601-620) – include cost of land acquisition including fees and charges related to the acquisition, cost of acquiring existing buildings, including fees and charges related to the acquisition, cost of new construction, including fees, cost of conversions and renovations and cost of extension to existing premises. This needs to be broken down into the following categories:
B201: · line 601 funded by ESFA grants
B202: · line 605 donated to the trust by the ESFA include the value of any asset that has been transferred, or due to be transferred from the ESFA to the trust where the ESFA has procured the capital works centrally under the Priority Schools Building Programme (PSBP) or Free Schools Programme
B203: · line 606- this should be the contra of row 575 recognising the asset expense following receipt of the donated asset (as income)
B204: · line 615 donated assets expense is the contra to line 575
B205: · line 615 funded by other capital grants
B206: · line 620 funded by reserves – including other revenue sources
B207: · other fixed assets additions (lines 636-638) – include cost of other fixed assets acquisition. These fixed assets include items like furniture and equipment, computer equipment, motor vehicles, assets under construction, etc. This needs to be broken down into the following categories:
B208: · line 636 funded by ESFA grants
B209: · line 637 funded by other capital grants
B210: · line 638 funded by reserves – including other revenue sources
B212: Capital transfers and conversions (lines 572, 573 and 639)
B213: · Line 572 capital assets transferred to academy on conversion – include the value of capital assets and liabilities received or receivable on conversion from local authorities on conversion
B214: · Line 573 capital assets transferred of an existing academy into the trust – include the value of capital assets and liabilities received or receivable following the transfer of an existing academy from another academy trust
B215: · Line 639 capital assets transferred of an existing academy out of the trust - – include the value of capital assets and liabilities paid or payable following the transfer of an existing academy to another academy trust. You should enter the value of any amount paid or payable as a negative value.
B217: 2.3.3 Other items
B219: Other items (lines 700 to 789)
B221: Cash as at (lines 700 to 701) – include cash information broken down into the following categories:
B222: · line 700 cash at bank and in hand – include all bank balances and cash balances, please specify the liquid cash balance
B223: · line 701 overdrafts – include any bank or other overdrafts
B225: Line 710 gain/loss on disposal of fixed assets – net off the carrying amount of the asset and related selling expenses from the proceeds of the disposal.
B226: Line 712 impairment charges – this is a new line where a fixed asset has lost value and has been impaired.
B228: Depreciation and amortisation (lines 715 to 717) – include all depreciation and amortisation charges broken down into the following categories:
B229: · line 715 buildings – include deprecation charges for buildings only, excluding depreciation relating to donated or other buildings during the year
B230: · line 716 other assets donated – include depreciation charges for donated assets
B231: · line 717 other assets owned – include depreciation charges for other assets, excluding buildings or donated assets
B233: Investments (lines 725 to 730) – include all investments broken down into the following categories:
B234: · line 725 investments – Include movements in investments, such as the purchase of new fixed income or equity investments.
B235: · line 730 investment liquidations – include cash or cash equivalents received as a result of investment liquidations
B237: Provisions excluding pension liabilities (lines 736 to 738) – include all provisions (excluding pension liabilities) broken down into the following categories:
B238: · line 736 provisions creation / increase – include any new provision (which is a known liability but the timing and amount of payment are uncertain) that have been created or increased in the year; an example of this would be an announcement of a future severance scheme
B239: · line 737 provisions release – include any reductions to the value of the provisions in the year. No other input required
B240: · line 738 provisions in year utilisation – include any payments made out against the provisions in the year. No other input required
B241: Note – amounts entered in the provisions section (line 736) must be entered as positive values. Lines 737 to 738 must be entered as negative values. If an amount is entered in provisions, then an explanation in the comments box is required.
B243: Loans as at (lines 780 to 789) – include information on loans broken down into the following categories:
B244: · line 780 opening outstanding loans – include the value of any closing loans balance outstanding from previous financial year
B245: · line 785 increase / decrease in outstanding loans – include the value of any increase or decrease in outstanding loans. Please specify in the comments box to whom the loans relate, the amounts specific to each, whether transferred on conversion, reason for loan and duration of loan
B248: Pupil numbers
B249: Line 999- Please input the actual/estimated total number of students in your trust as at the October census date
B252: 2.3.4 Reserves per academy
B253: Trusts should not include endowments, pensions and capital reserves
B254: A trust will be required to provide an explanation if any of its academies are carrying a negative reserve balance along with the plan of action to bring the deficit fund to surplus. You can collect this information in the comments section of the worksheet and copy it across onto the online form.
B256: Line 1001 trust reserves – The balance should be the total revenue reserves balance for every academy and central HQ. It should match the balance c/f to next period: line 430, although there may be genuine reasons for a difference.
B257: Line 1002 adjustment to reserves- Please use this line if you need to adjust the reserve balances. An example may be if you have new academies that are not included on the form and you have included financial data for these academies.
B258: Line 1000 centrally held reserves - please input the value of reserves held centrally and then the value of reserves held by each academy. Any deficits will require a brief explanation.
B259: Lines 800-899- input separately the revenue reserves information for each academy included within the return.
B260: All trusts will be required to provide an explanation along with the plan of action to bring the deficit fund to surplus, if any of its academies are carrying a negative reserve balance at the close of each academic year.
B262: Queries
... 1 more rows

Sheet Organisation user
A1: Budget forecast return 3 year 2020
A2: This form is to be used to help prepare for the online form.
R4: Initial validation | S4: Outstanding validation
A5: Trust name: | L5: =IF(R5=1,U5,"") -> Please enter the name your trust. | R5: =IF(B5="",1,0) -> 1 | S5: =R5 -> 1 | U5: Please enter the name your trust.
A7: Trust type | L7: =IF(R7=1,U7,"") -> Please state whether your trust is a MAT or a SAT. | R7: =IF(B7="",1,0) -> 1 | S7: =R7 -> 1 | U7: Please state whether your trust is a MAT or a SAT.
A9: Trust UPIN | L9: =IF(R9=1,U9,"") -> Please enter your trust UPIN. | R9: =IF(B9="",1,0) -> 1 | S9: =R9 -> 1 | U9: Please enter your trust UPIN.
A11: Company House Number | L11: =IF(R11=1,U11,"") -> Please enter your trust company house number. | R11: =IF(B11="",1,0) -> 1 | S11: =R11 -> 1 | U11: Please enter your trust company house number.
A13: What are the contact details for this trust as we may need to contact you?
A15: Full name | L15: =IF(R15=1,U15,"") -> Please enter your fulll name. | R15: =IF(B15="",1,0) -> 1 | S15: =R15 -> 1 | U15: Please enter your fulll name.
A17: UK telephone number | L17: =IF(R17=1,U17,"") -> Please enter a full UK telephone number. | R17: =IF(B17="",1,0) -> 1 | S17: =R17 -> 1 | U17: Please enter a full UK telephone number.
A19: Email Address | L19: =IF(R19=1,U19,"") -> Please enter your email address. | R19: =IF(B19="",1,0) -> 1 | S19: =R19 -> 1 | U19: Please enter your email address.
A21: Role in trust | L21: =IF(R21=1,U21,"") -> Please enter your role within the trust. | R21: =IF(B21="",1,0) -> 1 | S21: =R21 -> 1 | U21: Please enter your role within the trust.
A24: No of academies in trust | L24: =IF(B24-B25=0,"",IF(D24="","FQ10: Please explain why the number of academies in the return are different to the number of academies in the trust. Please explain if there have been new academy openers, transfers, mergers, closures or demergers during the period.","")) ->  | R24: MAT | S24: Yes | U24: =IF(B24-B25=0,0,IF(D24="",1,0)) -> 0
A25: No of academies in return | L25: =IF(COUNT(A30:A151)-B25=0,"","Can you ensure the correct details are input for the academy reserves below. This includes the upin as well as the academy name. The number should match the number input in cell B23. This helps to complete the workbook reserves section") ->  | R25: SAT | S25: No
A27: Which academies do you want to include in this return?
A29: Academy UPIN | B29: Academy Name
L30: =IF(S30="Y",IF(W30<4,$U$30,$V$30),"") ->  | R30: 1 | S30: =IF(R30<=$T$30,"Y","N") -> N | T30: =B25 -> 0 | U30: Please Enter Details for Academy | V30: Details have been entered | W30: =(IF(A30="",1,2)+(IF(B30="",1,2))) -> 2
L31: =IF(S31="Y",IF(W31<4,$U$30,$V$30),"") ->  | R31: 2 | S31: =IF(R31<=$T$30,"Y","N") -> N | W31: =(IF(A31="",1,2)+(IF(B31="",1,2))) -> 2
R32: 3 | S32: N | W32: 2
R33: 4 | S33: N | W33: 2
R34: 5 | S34: N | W34: 2
R35: 6 | S35: N | W35: 2
R36: 7 | S36: N | W36: 2
R37: 8 | S37: N | W37: 2
R38: 9 | S38: N | W38: 2
R39: 10 | S39: N | W39: 2
R40: 11 | S40: N | W40: 2
R41: 12 | S41: N | W41: 2
R42: 13 | S42: N | W42: 2
R43: 14 | S43: N | W43: 2
R44: 15 | S44: N | W44: 2
R45: 16 | S45: N | W45: 2
R46: 17 | S46: N | W46: 2
R47: 18 | S47: N | W47: 2
R48: 19 | S48: N | W48: 2
R49: 20 | S49: N | W49: 2
R50: 21 | S50: N | W50: 2
R51: 22 | S51: N | W51: 2
R52: 23 | S52: N | W52: 2
R53: 24 | S53: N | W53: 2
R54: 25 | S54: N | W54: 2
R55: 26 | S55: N | W55: 2
R56: 27 | S56: N | W56: 2
R57: 28 | S57: N | W57: 2
R58: 29 | S58: N | W58: 2
R59: 30 | S59: N | W59: 2
R60: 31 | S60: N | W60: 2
R61: 32 | S61: N | W61: 2
R62: 33 | S62: N | W62: 2
R63: 34 | S63: N | W63: 2
R64: 35 | S64: N | W64: 2
R65: 36 | S65: N | W65: 2
R66: 37 | S66: N | W66: 2
R67: 38 | S67: N | W67: 2
R68: 39 | S68: N | W68: 2
R69: 40 | S69: N | W69: 2
R70: 41 | S70: N | W70: 2
R71: 42 | S71: N | W71: 2
R72: 43 | S72: N | W72: 2
R73: 44 | S73: N | W73: 2
R74: 45 | S74: N | W74: 2
R75: 46 | S75: N | W75: 2
R76: 47 | S76: N | W76: 2
R77: 48 | S77: N | W77: 2
R78: 49 | S78: N | W78: 2
R79: 50 | S79: N | W79: 2
R80: 51 | S80: N | W80: 2
R81: 52 | S81: N | W81: 2
R82: 53 | S82: N | W82: 2
R83: 54 | S83: N | W83: 2
R84: 55 | S84: N | W84: 2
R85: 56 | S85: N | W85: 2
R86: 57 | S86: N | W86: 2
R87: 58 | S87: N | W87: 2
R88: 59 | S88: N | W88: 2
R89: 60 | S89: N | W89: 2
R90: 61 | S90: N | W90: 2
R91: 62 | S91: N | W91: 2
R92: 63 | S92: N | W92: 2
R93: 64 | S93: N | W93: 2
R94: 65 | S94: N | W94: 2
L95: =IF(S95="Y",IF(W95<4,$U$30,$V$30),"") ->  | R95: 66 | S95: =IF(R95<=$T$30,"Y","N") -> N | W95: =(IF(A95="",1,2)+(IF(B95="",1,2))) -> 2
R96: 67 | S96: N | W96: 2
R97: 68 | S97: N | W97: 2
R98: 69 | S98: N | W98: 2
R99: 70 | S99: N | W99: 2
R100: 71 | S100: N | W100: 2
R101: 72 | S101: N | W101: 2
R102: 73 | S102: N | W102: 2
R103: 74 | S103: N | W103: 2
R104: 75 | S104: N | W104: 2
R105: 76 | S105: N | W105: 2
R106: 77 | S106: N | W106: 2
R107: 78 | S107: N | W107: 2
R108: 79 | S108: N | W108: 2
R109: 80 | S109: N | W109: 2
R110: 81 | S110: N | W110: 2
R111: 82 | S111: N | W111: 2
R112: 83 | S112: N | W112: 2
R113: 84 | S113: N | W113: 2
R114: 85 | S114: N | W114: 2
R115: 86 | S115: N | W115: 2
R116: 87 | S116: N | W116: 2
R117: 88 | S117: N | W117: 2
R118: 89 | S118: N | W118: 2
R119: 90 | S119: N | W119: 2
R120: 91 | S120: N | W120: 2
R121: 92 | S121: N | W121: 2
R122: 93 | S122: N | W122: 2
R123: 94 | S123: N | W123: 2
R124: 95 | S124: N | W124: 2
R125: 96 | S125: N | W125: 2
R126: 97 | S126: N | W126: 2
R127: 98 | S127: N | W127: 2
R128: 99 | S128: N | W128: 2
R129: 100 | S129: N | W129: 2
R130: 101 | S130: N | W130: 2
R131: 102 | S131: N | W131: 2
R132: 103 | S132: N | W132: 2

Sheet BFR3Y 2020
A1: Budget forecast return three year 2020 | AA1: hidden from here
A2: This form is part of the annual return for all established trusts. This is not the correct form for a newly opened academy. This form should be completed on an accruals and prepayments basis
A3: Workbook only - not for submission
A6: Trust name: | B6: ='Organisation user'!B5 -> 0
A8: Trust type | B8: SAT
A10: Trust UPIN | B10: ='Organisation user'!B9 -> 0
A12: Trust Companies House number: | B12: ='Organisation user'!B11 -> 0
A15: Finance Questions | X15: Query No | Z15: Query | AB15: Test No | AC15: Formula | AD15: Text for test | AE15: Formula
A16: FQ1 | B16: Have you had any provisions during this period, excluding pension liability? | C16: No
A17: FQ2 | B17: Have you had any loans during the period? | C17: No
A18: FQ3 | B18: Have you had any investments during the period? | C18: No
A19: FQ4 | B19: Have you had any overdrafts during the period? | C19: No
A20: FQ5 | B20: Are you in a different scheme from the Risk Protection Assurance scheme? | C20: No | D20: i | E20: =IF(AND(C20="Yes",AA20=0),"Please respond in the validations table","") ->  | X20: =AB20 -> FQ5 | Y20: =IF(Z20="","","Please refer to "&X20&" in the validations table") ->  | Z20: =IF(ISERROR(AC20),"You have input something incorrectly",IF(AC20>0,AD20,"")) ->  | AA20: =VLOOKUP(A20,'Trust validations table'!$A$15:$D$170,4,FALSE) -> 0 | AB20: FQ5 | AC20: =IF(C20="YES",1,IF(C20="no",0,"Error")) -> 0 | AD20: Are you in a different scheme from the Risk Protection Assurance scheme? | AE20: =IF(C20'="YES",1,IF(C20'="no",0,"Error"))
A21: FQ6 | B21: Please use this section to summarise how COVID-19 has had material impact on any actuals, forecast or pupil numbers for your academy trust | D21: i | E21: Please respond in the validations table | X21: =AB21 -> FQ6 | Y21: Please refer to FQ6 in the validations table | Z21: Please provide a short summary of this and and where any of these are shown in the return. | AA21: =VLOOKUP(A21,'Trust validations table'!$A$15:$D$170,4,FALSE) -> 0 | AB21: FQ6 | AC21: 1 | AD21: Please provide a short summary of this and and where any of these are shown in the return. | AE21: =IF(C21'="YES",1,IF(C21'="no",0,"Error"))
B25: REVENUE | I25: Revenue summary 2018/19 | K25: Yr1 | O25: Yr2
B26: 1 REVENUE INCOME | I26: TOTAL | K26: Actuals | L26: Calculated | M26: TOTAL | O26: Forecast | P26: Calculated | Q26: TOTAL | AA26: hidden from here
B27: DfE ESFA income | I27: 2018/19 | K27: Sep 19 - Mar 20 | L27: Apr 20 - Aug 20 | M27: 2019/20 | O27: Sep 20 - Mar 21 | P27: Apr 21 - Aug 21 | Q27: 2020/21
B28: Category | C28: Line no. | E28: Validation | I28: £'000 | K28: £'000 | L28: £'000 | M28: £'000 | O28: £'000 | P28: £'000 | Q28: £'000 | R28: Help Text Guidance | S28: Rounded £000 test | T28: Minimum value test | U28: Maximum value test | V28: Minimum value £'000 | W28: Maximum value £'000 | X28: Query No | Z28: Query | AB28: Test No | AC28: Formula | AD28: Text for test | AE28: Formula
B29: Rates reclaim | C29: 101 | E29: =IF(AND(AA29=0,OR(S29<>"",T29<>"",U29<>"",Z29<>"")),"Check- see columns N-U for info","") ->  | L29: =+M29-K29 -> 0 | P29: =+Q29-O29 -> 0 | S29: =IF(OR(K29-ROUND(K29,)<>0,M29-ROUND(M29,)<>0,O29-ROUND(O29,)<>0,Q29-ROUND(Q29,)<>0),"No decimal places","") ->  | T29: =IF(OR(K29<V29,L29<V29,M29<V29,O29<V29,P29<V29,Q29<V29),"A value is below the minimum value allowed","") ->  | U29: =IF(OR(K29>W29,L29>W29,M29>W29,O29>W29,P29>W29,Q29>W29),"Input value is too high","") ->  | V29: =VLOOKUP($C29,'Min Max table'!$A$4:$C$209,2,FALSE) -> -100000 | W29: =VLOOKUP($C29,'Min Max table'!$A$4:$C$209,3,FALSE) -> 100000 | AJ29: List boxes
B30: General Academy Grant (GAG) (excluding Student Service Grant) | C30: 102 | D30: i | E30: Check- see columns N-U for info | L30: 0 | P30: =+Q30-O30 -> 0 | R30: Please note that this value will need to be the gross figure for trusts in the RPA scheme , i.e. the value before the RPA contribution is deducted from your GAG payment. Similarly where income is deducted for repayment of a loan. | S30: =IF(OR(K30-ROUND(K30,)<>0,M30-ROUND(M30,)<>0,O30-ROUND(O30,)<>0,Q30-ROUND(Q30,)<>0),"No decimal places","") ->  | T30: =IF(OR(K30<V30,L30<V30,M30<V30,O30<V30,P30<V30,Q30<V30),"A value is below the minimum value allowed","") ->  | U30: =IF(OR(K30>W30,L30>W30,M30>W30,O30>W30,P30>W30,Q30>W30),"Input value is too high","") ->  | V30: =VLOOKUP($C30,'Min Max table'!$A$4:$C$209,2,FALSE) -> 0 | W30: =VLOOKUP($C30,'Min Max table'!$A$4:$C$209,3,FALSE) -> 800000 | X30: ="QU"&AB30 -> QU1 | Y30: =IF(Z30="","","Please refer to "&X30&" in the validations table") -> Please refer to QU1 in the validations table | Z30: =IF(ISERROR(AC30),"You have input something incorrectly",IF(AC30>0,AD30,"")) -> You have forecast zero for GAG income for next year (102). Please provide an explanation why this value is zero? | AA30: =VLOOKUP(X30,'Trust validations table'!$A$15:$D$345,4,FALSE) -> 0 | AB30: 1 | AC30: =IF(Q30=0,AB30,0) -> 1 | AD30: You have forecast zero for GAG income for next year (102). Please provide an explanation why this value is zero? | AE30: IF(Q30=0,AB30,0) | AJ30: Yes | AK30: SAT
B31: Student Services Grant (Academy Post 16 Bursary Funding) | C31: 103 | L31: 0 | P31: 0 | V31: =VLOOKUP($C31,'Min Max table'!$A$4:$C$209,2,FALSE) -> 0 | W31: =VLOOKUP($C31,'Min Max table'!$A$4:$C$209,3,FALSE) -> 100000 | AJ31: No | AK31: MAT
B32: Start Up Grants | C32: 105 | L32: 0 | P32: 0 | V32: =VLOOKUP($C32,'Min Max table'!$A$4:$C$209,2,FALSE) -> 0 | W32: =VLOOKUP($C32,'Min Max table'!$A$4:$C$209,3,FALSE) -> 100000
B33: Pupil Premium & Service Premium | C33: 108 | D33: i | L33: 0 | P33: 0 | R33: Do not include any looked after children pupil premium allocations as this is funding provided by local authorities and should be included within line 200. | V33: =VLOOKUP($C33,'Min Max table'!$A$4:$C$209,2,FALSE) -> 0 | W33: =VLOOKUP($C33,'Min Max table'!$A$4:$C$209,3,FALSE) -> 100000
B34: Pupil Number Adjustment | C34: 132 | L34: 0 | P34: 0 | V34: =VLOOKUP($C34,'Min Max table'!$A$4:$C$209,2,FALSE) -> -100000 | W34: =VLOOKUP($C34,'Min Max table'!$A$4:$C$209,3,FALSE) -> 100000 | X34: ="QU"&AB34 -> QU2 | Y34: =IF(Z34="","","Please refer to "&X34&" in the validations table") ->  | Z34: =IF(ISERROR(AC34),"You have input something incorrectly",IF(AC34>0,AD34,"")) ->  | AA34: =VLOOKUP(X34,'Trust validations table'!$A$15:$D$345,4,FALSE) -> 0 | AB34: 2 | AC34: =IF(OR(M34<>0,Q34<>0),AB34,0) -> 0 | AD34: Please provide further details on the value and estimation of the Pupil Number Adjustment (132) | AE34: IF(OR(I34<>0,M34<>0,Q34<>0),AB34,0)
B35: Other DfE/ESFA revenue grants | C35: 135 | D35: i | L35: 0 | P35: 0 | R35: Include any remaining non-GAG grants receivable not included in lines 101 to 138. | V35: =VLOOKUP($C35,'Min Max table'!$A$4:$C$209,2,FALSE) -> 0 | W35: =VLOOKUP($C35,'Min Max table'!$A$4:$C$209,3,FALSE) -> 100000
B36: Universal Infant Free School Meals | C36: 136 | L36: 0 | P36: 0 | V36: =VLOOKUP($C36,'Min Max table'!$A$4:$C$209,2,FALSE) -> 0 | W36: =VLOOKUP($C36,'Min Max table'!$A$4:$C$209,3,FALSE) -> 100000
B37: Insurance | C37: 137 | D37: i | L37: 0 | P37: 0 | R37: This should only contain any insurance top-up grant received from the ESFA. It should not include the value of insurance claims. | V37: =VLOOKUP($C37,'Min Max table'!$A$4:$C$209,2,FALSE) -> 0 | W37: =VLOOKUP($C37,'Min Max table'!$A$4:$C$209,3,FALSE) -> 100000
B38: Sponsor Capacity Grant | C38: 138 | L38: 0 | P38: 0 | V38: =VLOOKUP($C38,'Min Max table'!$A$4:$C$209,2,FALSE) -> 0 | W38: =VLOOKUP($C38,'Min Max table'!$A$4:$C$209,3,FALSE) -> 300000
B39: Other DfE/ESFA family revenue Grants | C39: 150 | D39: i | L39: 0 | P39: 0 | R39: This should only be used for grants from the DfE family, including National College of Teaching and Leadership, Standards Testing Agency, Office of the Children's Commissioner, or Equality and Human Rights Commission. | S39: =IF(OR(K39-ROUND(K39,)<>0,M39-ROUND(M39,)<>0,O39-ROUND(O39,)<>0,Q39-ROUND(Q39,)<>0),"No decimal places","") ->  | T39: =IF(OR(K39<V39,L39<V39,M39<V39,O39<V39,P39<V39,Q39<V39),"A value is below the minimum value allowed","") ->  | V39: =VLOOKUP($C39,'Min Max table'!$A$4:$C$209,2,FALSE) -> -100000 | W39: =VLOOKUP($C39,'Min Max table'!$A$4:$C$209,3,FALSE) -> 300000
B40: Total DfE/ESFA revenue Income | C40: 199 | J40: i | K40: =SUM(K29:K39) -> 0 | L40: =SUM(L29:L39) -> 0 | M40: =SUM(M29:M39) -> 0 | O40: =SUM(O29:O39) -> 0 | P40: =SUM(P29:P39) -> 0 | Q40: =SUM(Q29:Q39) -> 0 | S40: =IF(OR(I40-ROUND(I40,)<>0,),"No decimal places","") ->  | T40: =IF(OR(I40<V40),"A value is below the minimum value allowed","") ->  | U40: =IF(OR(I40>W40),"Input value is too high","") ->  | V40: =VLOOKUP($C40,'Min Max table'!$A$4:$C$209,2,FALSE) -> -300000 | W40: =VLOOKUP($C40,'Min Max table'!$A$4:$C$209,3,FALSE) -> 2200000
B41: Other Revenue | S41: =IF(OR(I41-ROUND(I41,)<>0,),"No decimal places","") ->  | U41: =IF(OR(G41>W41,I41>W41,K41>W41,L41>W41,M41>W41,O41>W41,P41>W41,Q41>W41),"Input value is too high","") -> 
B42: Local authority revenue income | C42: 200 | D42: i | E42: =IF(AND(AA42=0,OR(S42<>"",T42<>"",U42<>"",Z42<>"")),"Check- see columns N-U for info","") ->  | L42: =+M42-K42 -> 0 | P42: =+Q42-O42 -> 0 | R42: Include all revenue income received or receivable from local authorities, but exclude revenue surplus transfers from predecessor local authority maintained schools on conversion. | S42: =IF(OR(K42-ROUND(K42,)<>0,M42-ROUND(M42,)<>0,O42-ROUND(O42,)<>0,Q42-ROUND(Q42,)<>0),"No decimal places","") ->  | T42: =IF(OR(K42<V42,L42<V42,M42<V42,O42<V42,P42<V42,Q42<V42),"A value is below the minimum value allowed","") ->  | U42: =IF(OR(K42>W42,L42>W42,M42>W42,O42>W42,P42>W42,Q42>W42),"Input value is too high","") ->  | V42: =VLOOKUP($C42,'Min Max table'!$A$4:$C$209,2,FALSE) -> -400000 | W42: =VLOOKUP($C42,'Min Max table'!$A$4:$C$209,3,FALSE) -> 100000
B43: Other government grants | C43: 205 | D43: i | L43: =+M43-K43 -> 0 | P43: =+Q43-O43 -> 0 | R43: Include all revenue grants receivable from other government sources (i.e. excluding DfE, other bodies within the DfE family, ESFA and local authority) that are not included in the lines above. | S43: =IF(OR(K43-ROUND(K43,)<>0,M43-ROUND(M43,)<>0,O43-ROUND(O43,)<>0,Q43-ROUND(Q43,)<>0),"No decimal places","") ->  | T43: =IF(OR(K43<V43,L43<V43,M43<V43,O43<V43,P43<V43,Q43<V43),"A value is below the minimum value allowed","") ->  | U43: =IF(OR(K43>W43,L43>W43,M43>W43,O43>W43,P43>W43,Q43>W43),"Input value is too high","") ->  | V43: =VLOOKUP($C43,'Min Max table'!$A$4:$C$209,2,FALSE) -> -400000 | W43: =VLOOKUP($C43,'Min Max table'!$A$4:$C$209,3,FALSE) -> 100000
B44: Non government grants | C44: 210 | D44: i | L44: =+M44-K44 -> 0 | P44: =+Q44-O44 -> 0 | R44: Include all revenue grants received from non-government sources. | V44: =VLOOKUP($C44,'Min Max table'!$A$4:$C$209,2,FALSE) -> -400000 | W44: =VLOOKUP($C44,'Min Max table'!$A$4:$C$209,3,FALSE) -> 100000
B45: Income from trading activities | C45: 211 | D45: i | L45: =+M45-K45 -> 0 | P45: =+Q45-O45 -> 0 | R45: Include all revenue received from trading activities such as hall hire, catering, rental income and insurance claims. | V45: =VLOOKUP($C45,'Min Max table'!$A$4:$C$209,2,FALSE) -> -400000 | W45: =VLOOKUP($C45,'Min Max table'!$A$4:$C$209,3,FALSE) -> 100000
B46: Other income, including investment income | C46: 220 | D46: i | L46: =+M46-K46 -> 0 | P46: =+Q46-O46 -> 0 | R46: Include any other revenue income not covered by the above categories e.g. donations, business sponsorship, parental contributions, investment income etc. | V46: =VLOOKUP($C46,'Min Max table'!$A$4:$C$209,2,FALSE) -> 0 | W46: =VLOOKUP($C46,'Min Max table'!$A$4:$C$209,3,FALSE) -> 100000
B47: Total Other revenue Income | C47: 250 | J47: i | K47: =SUM(K42:K46) -> 0 | L47: =SUM(L42:L46,L51) -> 0 | M47: =SUM(M42:M46) -> 0 | O47: =SUM(O42:O46) -> 0 | P47: =SUM(P42:P46,P51) -> 0 | Q47: =SUM(Q42:Q46) -> 0 | R47: Fixed assets donated on conversion or pension donated on conversion should be excluded from other income. | S47: =IF(OR(I47-ROUND(I47,)<>0),"No decimal places","") ->  | T47: =IF(OR(I47<V47),"A value is below the minimum value allowed","") ->  | U47: =IF(OR(I47>W47),"Input value is too high","") ->  | V47: =VLOOKUP($C47,'Min Max table'!$A$4:$C$209,2,FALSE) -> -1600000 | W47: =VLOOKUP($C47,'Min Max table'!$A$4:$C$209,3,FALSE) -> 500000
B48: Surplus transfers on conversion
B49: Revenue surplus transfer of an existing academy into the trust | C49: 212 | D49: i | E49: =IF(AND(AA49=0,OR(S49<>"",T49<>"",U49<>"",Z49<>"")),"Check- see columns N-U for info","") ->  | L49: =+M49-K49 -> 0 | P49: =+Q49-O49 -> 0 | R49: Include all revenue surplus which is received, or receivable following the transfer of an existing academy, excluding pensions and fixed assets. | S49: =IF(OR(K49-ROUND(K49,)<>0,M49-ROUND(M49,)<>0,O49-ROUND(O49,)<>0,Q49-ROUND(Q49,)<>0),"No decimal places","") ->  | T49: =IF(OR(K49<V49,L49<V49,M49<V49,O49<V49,P49<V49,Q49<V49),"A value is below the minimum value allowed","") ->  | U49: =IF(OR(K49>W49,L49>W49,M49>W49,O49>W49,P49>W49,Q49>W49),"Input value is too high","") ->  | V49: =VLOOKUP($C49,'Min Max table'!$A$4:$C$209,2,FALSE) -> -400000 | W49: =VLOOKUP($C49,'Min Max table'!$A$4:$C$209,3,FALSE) -> 400000
B50: Revenue surplus transfer to academy on conversion | C50: 215 | D50: i | E50: =IF(AND(AA50=0,OR(S50<>"",T50<>"",U50<>"",Z50<>"")),"Check- see columns N-U for info","") ->  | L50: =+M50-K50 -> 0 | P50: =+Q50-O50 -> 0 | R50: Include revenue surplus received or receivable on conversion from local authorities, e.g. surpluses received from local authorities on conversion excluding pensions and fixed assets. | S50: =IF(OR(K50-ROUND(K50,)<>0,M50-ROUND(M50,)<>0,O50-ROUND(O50,)<>0,Q50-ROUND(Q50,)<>0),"No decimal places","") ->  | T50: =IF(OR(K50<V50,L50<V50,M50<V50,O50<V50,P50<V50,Q50<V50),"A value is below the minimum value allowed","") ->  | U50: =IF(OR(K50>W50,L50>W50,M50>W50,O50>W50,P50>W50,Q50>W50),"Input value is too high","") ->  | V50: =VLOOKUP($C50,'Min Max table'!$A$4:$C$209,2,FALSE) -> -400000 | W50: =VLOOKUP($C50,'Min Max table'!$A$4:$C$209,3,FALSE) -> 400000
B51: Subtotal transfers surplus | C51: 218 | J51: i | K51: =K49+K50 -> 0 | L51: =L49+L50 -> 0 | M51: =M49+M50 -> 0 | O51: =O49+O50 -> 0 | P51: =P49+P50 -> 0 | Q51: =Q49+Q50 -> 0 | S51: =IF(OR(I51-ROUND(I51,)<>0,),"No decimal places","") ->  | T51: =IF(OR(I51<V51),"A value is below the minimum value allowed","") ->  | U51: =IF(OR(I51>W51),"Input value is too high","") ->  | V51: =VLOOKUP($C51,'Min Max table'!$A$4:$C$209,2,FALSE) -> -800000 | W51: =VLOOKUP($C51,'Min Max table'!$A$4:$C$209,3,FALSE) -> 800000
E52: =IF(AND(AA56=0,OR(S52<>"",T52<>"",U52<>"",Z56<>"")),"Check- see columns N-U for info","") -> Check- see columns N-U for info
B54: Transfers between Revenue and Capital (line 585) | C54: 255 | D54: i | E54: =IF(AND(AA54=0,OR(S54<>"",T54<>"",U54<>"",Z54<>"")),"Check- see columns N-U for info","") ->  | J54: i | L54: =+M54-K54 -> 0 | P54: =+Q54-O54 -> 0 | R54: Net transfer between revenue and capital. This should be the planned transfer from revenue reserves or income to the capital budget to spend on capital items. This should normally be a -ve figure as transfers from capital funding to revenue reserves is normally disallowed. However on occasion where a capital grant is spent for the purpose on which it was intended but the expense has been reclassified by auditors as revenue ( e.g. roof repair) then there may be a legitimate justification for reclassifying the capital grant expense as a revenue expense. In this case there may be a need to transfer from capital to revenue and hence create a +ve transfer to revenue from capital (ie -ve in contra line 585). | S54: =IF(OR(I54-ROUND(I54,)<>0,K54-ROUND(K54,)<>0,M54-ROUND(M54,)<>0,O54-ROUND(O54,)<>0,Q54-ROUND(Q54,)<>0),"No decimal places","") ->  | T54: =IF(OR(I54<V54,K54<V54,L54<V54,M54<V54,O54<V54,P54<V54,Q54<V54),"Transfers values appear too high","") ->  | U54: =IF(OR(I54>W54,K54>W54,L54>W54,M54>W54,O54>W54,P54>W54,Q54>W54),"Transfers to capital is too high","") ->  | V54: =VLOOKUP($C54,'Min Max table'!$A$4:$C$209,2,FALSE) -> -400000 | W54: =VLOOKUP($C54,'Min Max table'!$A$4:$C$209,3,FALSE) -> 400000
B56: Total Revenue Income | C56: 298 | E56: =IF(AND(AA57=0,OR(S56<>"",T56<>"",U56<>"",Z57<>"")),"Check- see columns N-U for info","") -> Check- see columns N-U for info | I56: =+I47+I54+I40+I51 -> 0 | K56: =+K47+K54+K40+K51 -> 0 | L56: =+L47+L54+L40 -> 0 | M56: =+M47+M54+M40+M51 -> 0 | O56: =+O47+O54+O40+O51 -> 0 | P56: =+P47+P54+P40 -> 0 | Q56: =+Q47+Q54+Q40+Q51 -> 0 | V56: =VLOOKUP($C56,'Min Max table'!$A$4:$C$209,2,FALSE) -> 0 | W56: =VLOOKUP($C56,'Min Max table'!$A$4:$C$209,3,FALSE) -> 0 | X56: ="QU"&AB56 -> QU3 | Y56: =IF(Z56="","","Please refer to "&X56&" in the validations table") -> Please refer to QU3 in the validations table | Z56: =IF(ISERROR(AC56),"Your Yr 1 or Y2 income or expenditure totals in either year is NIL. Is this correct?",IF(AC56>0,AD56,"")) -> Your Yr 1 or Y2 income or expenditure totals in either year is NIL. Is this correct? | AA56: =VLOOKUP(X56,'Trust validations table'!$A$15:$D$345,4,FALSE) -> 0 | AB56: 3 | AC56: =IF(AND($Q$56/$M$56<0.9,$Q$83/$M$83>0.9),AB56,0) ->  | AD56: Your Yr2 income is forecast to decline by more than 10% compared to Yr1. This is not matched by a corresponding decrease in expenditure. Please explain a) the reduction in income and b) why you are not planning to reduce expenditure in line. | AE56: IF(AND($Q$56/$M$56<0.9,$Q$83/$M$83>0.9),AB56,0)
E57: =IF(AND(AA83=0,OR(S57<>"",T57<>"",U57<>"",Z83<>"")),"Check- see columns N-U for info","") ->  | O57: Estimate Sep 19 - Mar 20 | X57: ="QU"&AB57 -> QU4 | Y57: =IF(Z57="","","Please refer to "&X57&" in the validations table") -> Please refer to QU4 in the validations table | Z57: =IF(ISERROR(AC57),"Your Yr 1 or Y2 income or expenditure totals in either year is NIL. Is this correct?",IF(AC57>0,AD57,"")) -> Your Yr 1 or Y2 income or expenditure totals in either year is NIL. Is this correct? | AA57: =VLOOKUP(X57,'Trust validations table'!$A$15:$D$345,4,FALSE) -> 0 | AB57: 4 | AC57: =IF(AND($Q$56/$M$56<1.1,$Q$83/$M$83>1.1),AB57,0) ->  | AD57: Your Yr2 expenditure is forecast to increase by more than 10% compared to Yr1 and is not matched by a corresponding increase in income. Please provide details for increase in expenditure. | AE57: IF(AND($Q$56/$M$56<1.1,$Q$83/$M$83>1.1),AB57,0)
O58: %
B59: Proportion of revenue income that will come from a public body | C59: 299 | D59: i | E59: =IF(AND(AA59=0,OR(S59<>"",T59<>"",U59<>"",Z59<>"")),"Check- see columns N-U for info","") ->  | R59: Please enter the estimated % of total revenue income that will come from a public body (line 298). This will include the EFA, other government departments, local authorities and other academies, so should be a large percentage. | S59: =IF(O59-ROUND(O59,)<>0,"No decimal places","") ->  | T59: =IF(O59<V59,"Input value is too low","") ->  | U59: =IF(OR(K59>W59,L59>W59,M59>W59,O59>W59,P59>W59,Q59>W59),"Input value is too high","") ->  | V59: =VLOOKUP($C59,'Min Max table'!$A$4:$C$209,2,FALSE) -> -60 | W59: =VLOOKUP($C59,'Min Max table'!$A$4:$C$209,3,FALSE) -> 100
I61: Revenue summary 2018/19 | K61: Yr1 | O61: Yr2
B62: 2 REVENUE EXPENDITURE | I62: TOTAL | K62: Actuals | L62: Calculated | M62: TOTAL | O62: Forecast | P62: Calculated | Q62: TOTAL
I63: 2018/19 | K63: Sep 19 - Mar 20 | L63: Apr 20 - Aug 20 | M63: 2019/20 | O63: Sep 20 - Mar 21 | P63: Apr 21 - Aug 21 | Q63: 2020/21
B64: Staff costs (excluding pension movements) | I64: £'000 | K64: £'000 | L64: £'000 | M64: £'000 | O64: £'000 | P64: £'000 | Q64: £'000
B65: Wages and Salaries | C65: 310 | D65: i | E65: =IF(AND(AA65=0,OR(S65<>"",T65<>"",U65<>"",Z65<>"")),"Check- see columns N-U for info","") ->  | L65: =+M65-K65 -> 0 | P65: =+Q65-O65 -> 0 | R65: Include the full costs of employment for staff employed directly/indirectly by the trust including gross pay, bonuses, overtime, allowances, maternity and sick pay. | S65: =IF(OR(K65-ROUND(K65,)<>0,M65-ROUND(M65,)<>0,O65-ROUND(O65,)<>0,Q65-ROUND(Q65,)<>0),"No decimal places","") ->  | T65: =IF(OR(K65<V65,L65<V65,M65<V65,O65<V65,P65<V65,Q65<V65),"A value is below the minimum value allowed","") ->  | U65: =IF(OR(K65>W65,L65>W65,M65>W65,O65>W65,P65>W65,Q65>W65),"Input value is too high","") ->  | V65: =VLOOKUP($C65,'Min Max table'!$A$4:$C$209,2,FALSE) -> 0 | W65: =VLOOKUP($C65,'Min Max table'!$A$4:$C$209,3,FALSE) -> 800000
B66: Social Security Costs | C66: 311 | D66: i | E66: =IF(AND(AA66=0,OR(S66<>"",T66<>"",U66<>"",Z66<>"")),"Check- see columns N-U for info","") ->  | L66: =+M66-K66 -> 0 | P66: =+Q66-O66 -> 0 | R66: Include the employer’s national insurance and any costs of the apprenticeship levy. | S66: =IF(OR(K66-ROUND(K66,)<>0,M66-ROUND(M66,)<>0,O66-ROUND(O66,)<>0,Q66-ROUND(Q66,)<>0),"No decimal places","") ->  | T66: =IF(OR(K66<V66,L66<V66,M66<V66,O66<V66,P66<V66,Q66<V66),"A value is below the minimum value allowed","") ->  | U66: =IF(OR(K66>W66,L66>W66,M66>W66,O66>W66,P66>W66,Q66>W66),"Input value is too high","") ->  | V66: =VLOOKUP($C66,'Min Max table'!$A$4:$C$209,2,FALSE) -> 0 | W66: =VLOOKUP($C66,'Min Max table'!$A$4:$C$209,3,FALSE) -> 200000
B67: Pension Cost: Teaching staff | C67: 320 | D67: i | E67: =IF(AND(AA67=0,OR(S67<>"",T67<>"",U67<>"",Z67<>"")),"Check- see columns N-U for info","") ->  | L67: =+M67-K67 -> 0 | P67: =+Q67-O67 -> 0 | R67: Include the superannuation contributions relating to teaching staff, i.e. staff members in the teachers pension scheme including those on the leadership pay scale. It should include actual pension contribution. | V67: =VLOOKUP($C67,'Min Max table'!$A$4:$C$209,2,FALSE) -> 0 | W67: =VLOOKUP($C67,'Min Max table'!$A$4:$C$209,3,FALSE) -> 200000
B68: Pension Cost: Non-teaching staff | C68: 325 | D68: i | E68: =IF(AND(AA68=0,OR(S68<>"",T68<>"",U68<>"",Z68<>"")),"Check- see columns N-U for info","") ->  | L68: =+M68-K68 -> 0 | P68: =+Q68-O68 -> 0 | R68: Include actual pension contributions and any payments to address the deficit on the LGPS fund, but not include any change in the value of the deficit calculated under FRS102. | V68: =VLOOKUP($C68,'Min Max table'!$A$4:$C$209,2,FALSE) -> 0 | W68: =VLOOKUP($C68,'Min Max table'!$A$4:$C$209,3,FALSE) -> 200000
B69: Total staff costs | C69: 335 | J69: i | K69: =SUM(K65:K68) -> 0 | L69: =SUM(L65:L68) -> 0 | M69: =SUM(M65:M68) -> 0 | O69: =SUM(O65:O68) -> 0 | P69: =SUM(P65:P68) -> 0 | Q69: =SUM(Q65:Q68) -> 0 | S69: =IF(OR(I69-ROUND(I69,)<>0),"No decimal places","") ->  | T69: =IF(OR(I69<V69),"A value is below the minimum value allowed","") ->  | U69: =IF(OR(I69>W69),"Input value is too high","") ->  | V69: =VLOOKUP($C69,'Min Max table'!$A$4:$C$209,2,FALSE) -> 0 | W69: =VLOOKUP($C69,'Min Max table'!$A$4:$C$209,3,FALSE) -> 1400000
B71: Non - staff costs
B72: Other Staff Support Costs | C72: 330 | D72: i | E72: =IF(AND(AA72=0,OR(S72<>"",T72<>"",U72<>"",Z72<>"")),"Check- see columns N-U for info","") ->  | L72: =+M72-K72 -> 0 | P72: =+Q72-O72 -> 0 | R72: Include any indirect staffing costs such as training and development, staff travel, childcare vouchers and DBS checks. | S72: =IF(OR(K72-ROUND(K72,)<>0,M72-ROUND(M72,)<>0,O72-ROUND(O72,)<>0,Q72-ROUND(Q72,)<>0),"No decimal places","") ->  | T72: =IF(OR(K72<V72,L72<V72,M72<V72,O72<V72,P72<V72,Q72<V72),"A value is below the minimum value allowed","") ->  | U72: =IF(OR(K72>W72,L72>W72,M72>W72,O72>W72,P72>W72,Q72>W72),"Input value is too high","") ->  | V72: =VLOOKUP($C72,'Min Max table'!$A$4:$C$209,2,FALSE) -> 0 | W72: =VLOOKUP($C72,'Min Max table'!$A$4:$C$209,3,FALSE) -> 200000
B73: Other non staff support costs (cash) | C73: 378 | D73: i | E73: =IF(AND(AA73=0,OR(S73<>"",T73<>"",U73<>"",Z73<>"")),"Check- see columns N-U for info","") ->  | L73: =+M73-K73 -> 0 | P73: =+Q73-O73 -> 0 | R73: Include any other revenue expenditure not covered by the above categories e.g. costs of all educational and non-educational supplies and services, RPA contributions, repairs and maintenance costs, legal and governance costs, bank charges and interest. Do not include revenue deficits on conversion/ transfer or any non cash costs such as unwinding of the discount, impairment, depreciation. | S73: =IF(OR(K73-ROUND(K73,)<>0,M73-ROUND(M73,)<>0,O73-ROUND(O73,)<>0,Q73-ROUND(Q73,)<>0),"No decimal places","") ->  | T73: =IF(OR(K73<V73,L73<V73,M73<V73,O73<V73,P73<V73,Q73<V73),"A value is below the minimum value allowed","") ->  | U73: =IF(OR(K73>W73,L73>W73,M73>W73,O73>W73,P73>W73,Q73>W73),"Input value is too high","") ->  | V73: =VLOOKUP($C73,'Min Max table'!$A$4:$C$209,2,FALSE) -> 0 | W73: =VLOOKUP($C73,'Min Max table'!$A$4:$C$209,3,FALSE) -> 800000
B74: Subtotal support costs | C74: 349 | J74: i | K74: =SUM(K72:K73) -> 0 | L74: =SUM(L72:L73) -> 0 | M74: 0 | O74: 0 | P74: 0 | Q74: 0 | S74: =IF(OR(I74-ROUND(I74,)<>0,),"No decimal places","") ->  | T74: =IF(OR(I74<V74),"A value is below the minimum value allowed","") ->  | U74: =IF(OR(I74>W74),"Input value is too high","") ->  | V74: =VLOOKUP($C74,'Min Max table'!$A$4:$C$209,2,FALSE) -> 0 | W74: =VLOOKUP($C74,'Min Max table'!$A$4:$C$209,3,FALSE) -> 1000000
B76: Deficit transfers on conversion
B77: Revenue deficit transfer of an existing academy into the trust | C77: 350 | D77: i | E77: =IF(AND(AA77=0,OR(S77<>"",T77<>"",U77<>"",Z77<>"")),"Check- see columns N-U for info","") ->  | L77: =+M77-K77 -> 0 | P77: =+Q77-O77 -> 0 | R77: Include all revenue deficit payable following the transfer of an existing academy, excluding pensions and fixed assets. | S77: =IF(OR(K77-ROUND(K77,)<>0,M77-ROUND(M77,)<>0,O77-ROUND(O77,)<>0,Q77-ROUND(Q77,)<>0),"No decimal places","") ->  | T77: =IF(OR(K77<V77,L77<V77,M77<V77,O77<V77,P77<V77,Q77<V77),"A value is below the minimum value allowed","") ->  | U77: =IF(OR(K77>W77,L77>W77,M77>W77,O77>W77,P77>W77,Q77>W77),"Input value is too high","") ->  | V77: =VLOOKUP($C77,'Min Max table'!$A$4:$C$209,2,FALSE) -> 0 | W77: =VLOOKUP($C77,'Min Max table'!$A$4:$C$209,3,FALSE) -> 200000
B78: Revenue deficit transfer to academy on conversion | C78: 351 | D78: i | E78: =IF(AND(AA78=0,OR(S78<>"",T78<>"",U78<>"",Z78<>"")),"Check- see columns N-U for info","") ->  | L78: =+M78-K78 -> 0 | P78: =+Q78-O78 -> 0 | R78: Include revenue deficit payable on conversion from local authorities, e.g. deficits received from local authorities on conversion excluding pensions and fixed assets. | S78: =IF(OR(K78-ROUND(K78,)<>0,M78-ROUND(M78,)<>0,O78-ROUND(O78,)<>0,Q78-ROUND(Q78,)<>0),"No decimal places","") ->  | T78: =IF(OR(K78<V78,L78<V78,M78<V78,O78<V78,P78<V78,Q78<V78),"A value is below the minimum value allowed","") ->  | U78: =IF(OR(K78>W78,L78>W78,M78>W78,O78>W78,P78>W78,Q78>W78),"Input value is too high","") ->  | V78: =VLOOKUP($C78,'Min Max table'!$A$4:$C$209,2,FALSE) -> 0 | W78: =VLOOKUP($C78,'Min Max table'!$A$4:$C$209,3,FALSE) -> 200000
B79: Subtotal transfer deficit | C79: 352 | J79: i | K79: =SUM(K77:K78) -> 0 | L79: =SUM(L77:L78) -> 0 | M79: =SUM(M77:M78) -> 0 | O79: =SUM(O77:O78) -> 0 | P79: =SUM(P77:P78) -> 0 | Q79: =SUM(Q77:Q78) -> 0 | S79: =IF(OR(I79-ROUND(I79,)<>0,),"No decimal places","") ->  | T79: =IF(OR(I79<V79),"A value is below the minimum value allowed","") ->  | U79: =IF(OR(I79>W79),"Input value is too high","") ->  | V79: =VLOOKUP($C79,'Min Max table'!$A$4:$C$209,2,FALSE) -> 0 | W79: =VLOOKUP($C79,'Min Max table'!$A$4:$C$209,3,FALSE) -> 400000
B81: Other Non cash costs | C81: 395 | D81: i | E81: =IF(AND(AA81=0,OR(S81<>"",T81<>"",U81<>"",Z81<>"")),"Check- see columns N-U for info","") ->  | J81: i | L81: =+M81-K81 -> 0 | P81: =+Q81-O81 -> 0 | R81: Only include any non cash costs that flow into revenue reserves. If non cash costs feed the pensions reserve or the capital fund then please exclude. An example is where depreciation flows into the capital fund- in this case this should not be included here. Instead it should be disclosed in the other items section below. If you include impairment charges in revenue reserves then please provide an explanation following the validation query. Please include other non cash items such as provisions ( but not pension liabilities) or unwinding of the discount. | S81: =IF(OR(I81-ROUND(I81,)<>0,K81-ROUND(K81,)<>0,L81-ROUND(L81,)<>0,M81-ROUND(M81,)<>0,O81-ROUND(O81,)<>0,P81-ROUND(P81,)<>0,Q81-ROUND(Q81,)<>0),"No decimal places","") ->  | T81: =IF(OR(I81<V81,K81<V81,L81<V81,M81<V81,O81<V81,P81<V81,Q81<V81),"A value is below the minimum value allowed","") ->  | U81: =IF(OR(I81>W81,K81>W81,L81>W81,M81>W81,O81>W81,P81>W81,Q81>W81),"Input value is too high","") ->  | V81: =VLOOKUP($C81,'Min Max table'!$A$4:$C$209,2,FALSE) -> 0 | W81: =VLOOKUP($C81,'Min Max table'!$A$4:$C$209,3,FALSE) -> 200000 | X81: ="QU"&AB81 -> QU23 | Y81: =IF(Z81="","","Please refer to "&X81&" in the validations table") ->  | Z81: =IF(AC81>0,AD81,"") ->  | AA81: =VLOOKUP(X81,'Trust validations table'!$A$15:$D$345,4,FALSE) -> 0 | AB81: 23 | AC81: =IF(OR($K$81>0,$L$81>0,$M$81>0,$O$81>0,$P$81>0,$Q$81>0),AB81,0) -> 0 | AD81: Please provide further details of your non cash costs. | AE81: IF(OR($G$81>0,$H$81>0,$I$81,$K$81>0,$L$81>0,$M$81>0,$O$81>0,$P$81>0,$Q$81>0),AB81,0)
B83: Total revenue expenditure | C83: 380 | E83: =IF(AND(Z83=0,OR(R83<>"",S83<>"",T83<>"",Y83<>"")),"Check- see columns N-U for info","") ->  | I83: =SUM(I69, I74, I79,I81) -> 0 | K83: =SUM(K69,K74,K79,K81) -> 0 | L83: =SUM(L69,L74,L79,L81) -> 0 | M83: 0 | O83: =SUM(O69,O74,O79,O81) -> 0 | P83: 0 | Q83: 0 | V83: =VLOOKUP($C83,'Min Max table'!$A$4:$C$209,2,FALSE) -> 0 | W83: =VLOOKUP($C83,'Min Max table'!$A$4:$C$209,3,FALSE) -> 0 | X83: ="QU"&AB83 -> QU5 | Y83: =IF(Z83="","","Please refer to "&X83&" in the validations table") ->  | Z83: =IF(ISERROR(AC83),"Your income or expense totals are NIL for Yr1- is this correct?",IF(AC83>0,AD83,"")) ->  | AA83: =VLOOKUP(X83,'Trust validations table'!$A$15:$D$345,4,FALSE) -> 0 | AB83: 5 | AC83: =IF($Q$83=0,0,IF(($Q$65+$Q$66+$Q$67+$Q$68)/$Q$83>0.85,$AB83,0)) -> 0 | AD83: Your Yr2 staff costs (lines 310, 311, 320 and 325) are forecast to be more than 85% of your total revenue expenditure. Please can you provide further information on your staff costs and the high proportion it represents of total costs. | AE83: IF($Q$83=0,0,IF(($Q$65+$Q$66+$Q$67+$Q$68)/$Q$83>0.85,$AB83,0))
I86: Revenue summary 2018/19 | K86: Yr1 | O86: Yr2
B87: 3 REVENUE TOTALS | I87: TOTAL | K87: Calculated | L87: Calculated | M87: TOTAL | O87: Calculated | P87: Calculated | Q87: TOTAL
I88: 2018/19 | K88: Sep 19 - Mar 20 | L88: Apr 20 - Aug 20 | M88: 2019/20 | O88: Sep 20 - Mar 21 | P88: Apr 21 - Aug 21 | Q88: 2020/21
I89: £'000 | K89: £'000 | L89: £'000 | M89: £'000 | O89: £'000 | P89: £'000 | Q89: £'000
B90: Net revenue income/(expenditure) for the period | C90: 400 | E90: =IF(AND(AA90=0,OR(S90<>"",T90<>"",U90<>"",Z90<>"")),"Check- see columns N-U for info","") ->  | I90: =+I56-I83 -> 0 | K90: =+K56-K83 -> 0 | L90: =+L56-L83 -> 0 | M90: =+M56-M83 -> 0 | O90: =+O56-O83 -> 0 | P90: =+P56-P83 -> 0 | Q90: =+Q56-Q83 -> 0 | V90: =VLOOKUP($C90,'Min Max table'!$A$4:$C$209,2,FALSE) -> 0 | W90: =VLOOKUP($C90,'Min Max table'!$A$4:$C$209,3,FALSE) -> 0 | X90: ="QU"&AB90 -> QU6 | Y90: =IF(Z90="","","Please refer to "&X90&" in the validations table") ->  | Z90: =IF(AC90>0,AD90,"") ->  | AA90: =VLOOKUP(X90,'Trust validations table'!$A$15:$D$345,4,FALSE) -> 0 | AB90: 6 | AC90: =IF(OR($M$90<0,$Q$90<0),AB90,0) -> 0 | AD90: 1) The budget shows a deficit on revenue funds in Yr1 or Yr2. Please provide details why the revenue funds balance has fallen into a deficit during the respective period. 2) What actions are being taken to restore the revenue funds balance into a surplus position? 3) The Academies Financial Handbook requires academies to maintain a balanced budget, when is this likely to be achieved? 4) Do you have an agreed recovery plan with the ESFA? | AE90: IF(OR($I$90<0,$M$90<0,$Q$90),AB90,0)
E91: =IF(AND(AA91=0,OR(S91<>"",T91<>"",U91<>"",Z91<>"")),"Check- see columns N-U for info","") -> Check- see columns N-U for info | I91: Actuals | K91: Actuals | L91: Calculated | O91: Calculated | P91: Calculated | X91: ="QU"&AB91 -> QU25 | Y91: =IF(Z91="","","Please refer to "&X91&" in the validations table") -> Please refer to QU25 in the validations table | Z91: =IF(AC91>0,AD91,"") -> Your net income and expenditure in the BFRO 2018/19 summary is zero. Can you check and ensure you have input some values or provide an explanation. | AA91: =VLOOKUP(X91,'Trust validations table'!$A$15:$D$345,4,FALSE) -> 0 | AB91: 25 | AC91: =IF($I$90=0,AB91,0) -> 25 | AD91: Your net income and expenditure in the BFRO 2018/19 summary is zero. Can you check and ensure you have input some values or provide an explanation. | AE91: IF($I$90=0,AB90,0)
I92: Balance b/f 1 Sep 18 | K92: Balance b/f 1 Sep 19 | L92: Balance b/f 1 Apr 20 | O92: Balance b/f 1 Sep 20 | P92: Balance b/f 1 Apr 21
I93: £'000 | K93: £'000 | L93: £'000 | O93: £'000 | P93: £'000
B94: Balance b/f from previous period | C94: 410 | D94: i | E94: =IF(AND(AA94=0,OR(S94<>"",T94<>"",U94<>"",Z94<>"")),"Check- see columns N-U for info","") -> Check- see columns N-U for info | J94: i | K94: =I99 -> 0 | L94: =K99 -> 0 | O94: =L99 -> 0 | P94: =O99 -> 0 | R94: Input the closing balance of revenue funds from the previous financial year. Assuming there are no structural changes to the trust, the amount should agree to the sum of “Endowment Fund”, “Restricted Income Fund”, and “Unrestricted Fund” in the Balance Sheet Summary of the prior year accounts return. This should not include capital funds or pension reserves or revaluation reserves. | S94: =IF(OR(I94-ROUND(I94,)<>0,),"No decimal places","") ->  | T94: =IF(OR(I94<V94),"Input value is too low","") ->  | U94: =IF(OR(I94>W94),"Input value is too high","") ->  | V94: =VLOOKUP($C94,'Min Max table'!$A$4:$C$209,2,FALSE) -> -400000 | W94: =VLOOKUP($C94,'Min Max table'!$A$4:$C$209,3,FALSE) -> 400000 | X94: ="QU"&AB94 -> QU7 | Y94: =IF(Z94="","","Please refer to "&X94&" in the validations table") -> Please refer to QU7 in the validations table | Z94: =IF(AC94>0,AD94,"") -> Please provide details where the opening balance (410) has been derived- this should be derived from the prior year Accounts Return. | AA94: =VLOOKUP(X94,'Trust validations table'!$A$15:$D$345,4,FALSE) -> 0 | AB94: 7 | AC94: 9 | AD94: Please provide details where the opening balance (410) has been derived- this should be derived from the prior year Accounts Return.
E95: =IF(AND(AA95=0,OR(S95<>"",T95<>"",U95<>"",Z95<>"")),"Check- see columns N-U for info","") -> Check- see columns N-U for info | X95: ="QU"&AB95 -> QU8 | Y95: =IF(Z95="","","Please refer to "&X95&" in the validations table") -> Please refer to QU8 in the validations table | Z95: =IF(AC95>0,AD95,"") -> Please explain why the balance brought forward from previous period (410) is £0 | AA95: =VLOOKUP(X95,'Trust validations table'!$A$15:$D$345,4,FALSE) -> 0 | AB95: 8 | AC95: =IF(OR(I94="",$I$94=0),AB95,0) -> 8 | AD95: Please explain why the balance brought forward from previous period (410) is £0 | AE95: IF(OR(G94="",$G$94=0),AB95,0)
I96: Calculated | K96: Calculated | L96: Calculated | O96: Calculated | P96: Calculated
I97: Balance c/f 31 Aug 19 | K97: Balance c/f 31 Mar 20 | L97: Balance c/f 31 Aug 20 | O97: Balance c/f 31 Mar 21 | P97: Balance c/f 31 Aug 21
E98: =IF(AND(AA98=0,OR(S98<>"",T98<>"",U98<>"",Z98<>"")),"Check- see columns N-U for info","") ->  | I98: £'000 | K98: £'000 | L98: £'000 | O98: £'000 | P98: £'000 | X98: ="QU"&AB98 -> QU9 | Y98: =IF(Z98="","","Please refer to "&X98&" in the validations table") ->  | Z98: =IF(AC98>0,AD98,"") ->  | AA98: =VLOOKUP(X98,'Trust validations table'!$A$15:$D$345,4,FALSE) -> 0 | AB98: 9 | AC98: =IF(AND($Q$90<0,$P$99>0,$Q$90*-1>$P$99),AB98,0) -> 0 | AD98: For Yr2, you have forecast a positive closing balance but a high in year deficit. This can lead to reserves being depleted in future years and the academy being in a deficit position. Please comment on what actions are being taken to ensure a balanced/surplus budget will be maintained. | AE98: IF(AND($Q$90<0,$P$99>0,$Q$90*-1>$P$99),AB98,0)
B99: Balance c/f to next period | C99: 430 | D99: i | E99: =IF(AND(AA99=0,OR(S99<>"",T99<>"",U99<>"",Z99<>"")),"Check- see columns N-U for info","") ->  | I99: =I94+I90 -> 0 | K99: =+K90+K94 -> 0 | L99: =+L90+L94 -> 0 | O99: =+O90+O94 -> 0 | P99: =+P90+P94 -> 0 | R99: This is an automatic sum of lines 400 and 410. Please provide an explanation where there are any deficits. | V99: =VLOOKUP($C99,'Min Max table'!$A$4:$C$209,2,FALSE) -> 0 | W99: =VLOOKUP($C99,'Min Max table'!$A$4:$C$209,3,FALSE) -> 0 | X99: ="QU"&AB99 -> QU10 | Y99: =IF(Z99="","","Please refer to "&X99&" in the validations table") ->  | Z99: =IF(AC99>0,AD99,"") ->  | AA99: =VLOOKUP(X99,'Trust validations table'!$A$15:$D$345,4,FALSE) -> 0 | AB99: 10 | AC99: =IF(OR(L99<0,I99<0,P99<0),AB99,0) -> 0 | AD99: Your closing reserves for either Yr1 or Yr2 are currently in deficit. What are your plans to return to a balanced/ surplus position? | AE99: IF(OR(L99<0,H99<0,P99<0),AB99,0)
K102: Yr1 | O102: Yr2
B103: CAPITAL | I103: i | K103: Actuals | L103: Calculated | M103: TOTAL | O103: Forecast | P103: Calculated | Q103: TOTAL
B104: 4 CAPITAL INCOME | K104: Sep 19 - Mar 20 | L104: Apr 20 - Aug 20 | M104: 2019/20 | O104: Sep 20 - Mar 21 | P104: Apr 21 - Aug 21 | Q104: 2020/21
B105: DfE/ESFA income- Capital | K105: £'000 | L105: £'000 | M105: £'000 | O105: £'000 | P105: £'000 | Q105: £'000
B106: Devolved formula capital | C106: 510 | D106: i | E106: =IF(AND(AA106=0,OR(S106<>"",T106<>"",U106<>"",Z106<>"")),"Check- see columns N-U for info","") ->  | L106: =+M106-K106 -> 0 | P106: =+Q106-O106 -> 0 | R106: Input total amount of capital funding grant receivable from ESFA. | S106: =IF(OR(K106-ROUND(K106,)<>0,M106-ROUND(M106,)<>0,O106-ROUND(O106,)<>0,Q106-ROUND(Q106,)<>0),"No decimal places","") ->  | T106: =IF(OR(K106<V106,L106<V106,M106<V106,O106<V106,P106<V106,Q106<V106),"A value is below the minimum value allowed","") ->  | U106: =IF(OR(K106>W106,L106>W106,M106>W106,O106>W106,P106>W106,Q106>W106),"Input value is too high","") ->  | V106: =VLOOKUP($C106,'Min Max table'!$A$4:$C$209,2,FALSE) -> -400000 | W106: =VLOOKUP($C106,'Min Max table'!$A$4:$C$209,3,FALSE) -> 400000
B107: Value of any capital donation of an asset from the ESFA for PSBP/Free Schools programme | C107: 520 | D107: i | E107: =IF(AND(AA107=0,OR(S107<>"",T107<>"",U107<>"",Z107<>"")),"Check- see columns N-U for info","") ->  | L107: =+M107-K107 -> 0 | P107: =+Q107-O107 -> 0 | R107: Include the value of any asset that has been transferred, or due to be transferred from the ESFA to the trust where the ESFA has procured the capital works centrally under the Priority Schools Building Programme (PSBP) or Free Schools Programme. | S107: =IF(OR(K107-ROUND(K107,)<>0,M107-ROUND(M107,)<>0,O107-ROUND(O107,)<>0,Q107-ROUND(Q107,)<>0),"No decimal places","") ->  | T107: =IF(OR(K107<V107,L107<V107,M107<V107,O107<V107,P107<V107,Q107<V107),"A value is below the minimum value allowed","") ->  | U107: =IF(OR(K107>W107,L107>W107,M107>W107,O107>W107,P107>W107,Q107>W107),"Input value is too high","") ->  | V107: =VLOOKUP($C107,'Min Max table'!$A$4:$C$209,2,FALSE) -> -400000 | W107: =VLOOKUP($C107,'Min Max table'!$A$4:$C$209,3,FALSE) -> 400000
B108: Other DfE income - Capital | C108: 530 | D108: i | E108: =IF(AND(AA108=0,OR(S108<>"",T108<>"",U108<>"",Z108<>"")),"Check- see columns N-U for info","") ->  | L108: =+M108-K108 -> 0 | P108: 0 | R108: Include the amount of any capital grants received from the ESFA that is not included in lines 510 or 520, for example CIF/SCA funding. | V108: =VLOOKUP($C108,'Min Max table'!$A$4:$C$209,2,FALSE) -> -400000 | W108: =VLOOKUP($C108,'Min Max table'!$A$4:$C$209,3,FALSE) -> 400000
B109: Other DfE family Capital Grants | C109: 540 | D109: i | E109: =IF(AND(AA109=0,OR(S109<>"",T109<>"",U109<>"",Z109<>"")),"Check- see columns N-U for info","") ->  | L109: =+M109-K109 -> 0 | P109: 0 | R109: Enter the value of any capital grants from DfE family bodies, such as the national college, ESFA, equalities and human rights commission, office of the children's commissioner or the standards and testing agency. | V109: =VLOOKUP($C109,'Min Max table'!$A$4:$C$209,2,FALSE) -> -400000 | W109: =VLOOKUP($C109,'Min Max table'!$A$4:$C$209,3,FALSE) -> 400000
B110: Total DfE Capital Income | C110: 550 | E110: =IF(AND(AA110=0,OR(S110<>"",T110<>"",U110<>"",Z110<>"")),"Check- see columns N-U for info","") ->  | K110: =SUM(K106:K109) -> 0 | L110: =+M110-K110 -> 0 | M110: =SUM(M106:M109) -> 0 | O110: =SUM(O106:O109) -> 0 | P110: 0 | Q110: =SUM(Q106:Q109) -> 0 | V110: =VLOOKUP($C110,'Min Max table'!$A$4:$C$209,2,FALSE) -> 0 | W110: =VLOOKUP($C110,'Min Max table'!$A$4:$C$209,3,FALSE) -> 0
B112: Other income - Capital
B113: Local authority capital income (cash) | C113: 560 | E113: =IF(AND(AA113=0,OR(S113<>"",T113<>"",U113<>"",Z113<>"")),"Check- see columns N-U for info","") ->  | L113: =+M113-K113 -> 0 | P113: 0 | R113: Include any local authority capital funding receivable. This should be cash payments only. | S113: =IF(OR(K113-ROUND(K113,)<>0,M113-ROUND(M113,)<>0,O113-ROUND(O113,)<>0,Q113-ROUND(Q113,)<>0),"No decimal places","") ->  | T113: =IF(OR(K113<V113,L113<V113,M113<V113,O113<V113,P113<V113,Q113<V113),"A value is below the minimum value allowed","") ->  | U113: =IF(OR(K113>W113,L113>W113,M113>W113,O113>W113,P113>W113,Q113>W113),"Input value is too high","") ->  | V113: =VLOOKUP($C113,'Min Max table'!$A$4:$C$209,2,FALSE) -> -400000 | W113: =VLOOKUP($C113,'Min Max table'!$A$4:$C$209,3,FALSE) -> 400000 | X113: ="QU"&AB113 -> QU13 | Y113: =IF(Z113="","","Please refer to "&X113&" in the validations table") ->  | Z113: =IF(AC113>0,AD113,"") ->  | AA113: =VLOOKUP(X113,'Trust validations table'!$A$15:$D$345,4,FALSE) -> 0 | AB113: 13 | AC113: =IF(OR($K$113>0,$L$113>0,$M$113>0,$O$113>0,$P$113>0,$Q$113>0),AB113,0) -> 0 | AD113: Please confirm this relates to cash receivables only and does not include donated assets or conversions. | AE113: IF(OR($G$113>0,$H$113>0,$I$113>0,$K$113>0,$L$113>0,$M$113>0,$O$113>0,$P$113>0,$Q$113>0),AB113,0)
B114: Non Government capital income | C114: 570 | L114: =+M114-K114 -> 0 | P114: 0 | R114: Please include voluntary, private capital, donations for use as capital or any other non government capital income. Please specify in the comments section. | S114: =IF(OR(K114-ROUND(K114,)<>0,M114-ROUND(M114,)<>0,O114-ROUND(O114,)<>0,Q114-ROUND(Q114,)<>0),"No decimal places","") ->  | T114: =IF(OR(K114<V114,L114<V114,M114<V114,O114<V114,P114<V114,Q114<V114),"A value is below the minimum value allowed","") ->  | U114: =IF(OR(K114>W114,L114>W114,M114>W114,O114>W114,P114>W114,Q114>W114),"Input value is too high","") ->  | V114: =VLOOKUP($C114,'Min Max table'!$A$4:$C$209,2,FALSE) -> -400000 | W114: =VLOOKUP($C114,'Min Max table'!$A$4:$C$209,3,FALSE) -> 400000 | X114: ="QU"&AB114 -> QU11 | Y114: =IF(Z114="","","Please refer to "&X114&" in the validations table") ->  | Z114: =IF(AC114>0,AD114,"") ->  | AA114: =VLOOKUP(X114,'Trust validations table'!$A$15:$D$345,4,FALSE) -> 0 | AB114: 11 | AC114: =IF(OR($K$114>0,$L$114>0,$M$114>0,$O$114>0,$P$114>0,$Q$114>0),AB114,0) -> 0 | AD114: Please provide further details of your non government capital income | AE114: IF(OR($G$114>0,$H$114>0,$I$114>0,$K$114>0,$L$114>0,$M$114>0,$O$114>0,$P$114>0,$Q$114>0),AB114,0)
B115: Other Government Grant capital income | C115: 571 | L115: =+M115-K115 -> 0 | P115: 0 | R115: Include any other government capital grants received, which are not included in the above lines. Please specify which government body the grants are from in the comments column. | V115: =VLOOKUP($C115,'Min Max table'!$A$4:$C$209,2,FALSE) -> -400000 | W115: =VLOOKUP($C115,'Min Max table'!$A$4:$C$209,3,FALSE) -> 400000 | X115: ="QU"&AB115 -> QU12 | Y115: =IF(Z115="","","Please refer to "&X115&" in the validations table") ->  | Z115: =IF(AC115>0,AD115,"") ->  | AA115: =VLOOKUP(X115,'Trust validations table'!$A$15:$D$345,4,FALSE) -> 0 | AB115: 12 | AC115: =IF(OR($K$115>0,$L$115>0,$M$115>0,$O$115>0,$P$115>0,$Q$115>0),AB115,0) -> 0 | AD115: Please provide further details of your other government capital income. | AE115: IF(OR($G$115>0,$H$115>0,$I$115>0,$K$115>0,$L$115>0,$M$115>0,$O$115>0,$P$115>0,$Q$115>0),AB115,0)
B116: Endowment releases to fund capital expenditure | C116: 574 | L116: =+M116-K116 -> 0 | P116: 0 | R116: Include where there have been any releases from endowments reserves to fund capital expenditure. | V116: =VLOOKUP($C116,'Min Max table'!$A$4:$C$209,2,FALSE) -> 0 | W116: =VLOOKUP($C116,'Min Max table'!$A$4:$C$209,3,FALSE) -> 400000
B117: Local authority donated assets | C117: 575 | L117: =+M117-K117 -> 0 | P117: 0 | R117: Include any donated assets from LAs. | V117: =VLOOKUP($C117,'Min Max table'!$A$4:$C$209,2,FALSE) -> 0 | W117: =VLOOKUP($C117,'Min Max table'!$A$4:$C$209,3,FALSE) -> 400000
B118: Total Other Capital Income | C118: 580 | K118: =SUM(K113:K117) -> 0 | L118: =SUM(L113:L117) -> 0 | M118: =SUM(M113:M117) -> 0 | O118: =SUM(O113:O117) -> 0 | P118: =SUM(P113:P117) -> 0 | Q118: =SUM(Q113:Q117) -> 0 | R118: 0 | V118: =VLOOKUP($C118,'Min Max table'!$A$4:$C$209,2,FALSE) -> 0 | W118: =VLOOKUP($C118,'Min Max table'!$A$4:$C$209,3,FALSE) -> 0
B121: Disposals
B122: Land & buildings disposals | C122: 581 | D122: i | E122: =IF(AND(AA122=0,OR(S122<>"",T122<>"",U122<>"",Z122<>"")),"Check- see columns N-U for info","") ->  | L122: =+M122-K122 -> 0 | P122: =+Q122-O122 -> 0 | R122: Disposal proceeds– include the NBV on disposal of assets for land and buildings. | S122: =IF(OR(K122-ROUND(K122,)<>0,M122-ROUND(M122,)<>0,O122-ROUND(O122,)<>0,Q122-ROUND(Q122,)<>0),"No decimal places","") ->  | T122: =IF(OR(K122<V122,L122<V122,M122<V122,O122<V122,P122<V122,Q122<V122),"A value is below the minimum value allowed","") ->  | U122: =IF(OR(K122>W122,L122>W122,M122>W122,O122>W122,P122>W122,Q122>W122),"Input value is too high","") ->  | V122: =VLOOKUP($C122,'Min Max table'!$A$4:$C$209,2,FALSE) -> 0 | W122: =VLOOKUP($C122,'Min Max table'!$A$4:$C$209,3,FALSE) -> 400000
B123: Other fixed assets disposals | C123: 582 | D123: i | E123: =IF(AND(AA123=0,OR(S123<>"",T123<>"",U123<>"",Z123<>"")),"Check- see columns N-U for info","") ->  | L123: =+M123-K123 -> 0 | P123: =+Q123-O123 -> 0 | R123: Disposal proceeds – include the NBV from the disposal of assets for other fixed assets. | S123: =IF(OR(K123-ROUND(K123,)<>0,M123-ROUND(M123,)<>0,O123-ROUND(O123,)<>0,Q123-ROUND(Q123,)<>0),"No decimal places","") ->  | T123: =IF(OR(K123<V123,L123<V123,M123<V123,O123<V123,P123<V123,Q123<V123),"A value is below the minimum value allowed","") ->  | U123: =IF(OR(K123>W123,L123>W123,M123>W123,O123>W123,P123>W123,Q123>W123),"Input value is too high","") ->  | V123: =VLOOKUP($C123,'Min Max table'!$A$4:$C$209,2,FALSE) -> 0 | W123: =VLOOKUP($C123,'Min Max table'!$A$4:$C$209,3,FALSE) -> 200000
B124: Total Disposal proceeds | C124: 584 | E124: =IF(AND(AA124=0,OR(S124<>"",T124<>"",U124<>"",Z124<>"")),"Check- see columns N-U for info","") ->  | K124: =SUM(K122:K123) -> 0 | L124: =SUM(L122:L123) -> 0 | M124: =SUM(M122:M123) -> 0 | O124: =SUM(O122:O123) -> 0 | P124: =SUM(P122:P123) -> 0 | Q124: =SUM(Q122:Q123) -> 0 | V124: =VLOOKUP($C124,'Min Max table'!$A$4:$C$209,2,FALSE) -> 0 | W124: =VLOOKUP($C124,'Min Max table'!$A$4:$C$209,3,FALSE) -> 0
B125: Capital Income totals
B126: Transfers between Revenue and Capital (contra line 255) | C126: 585 | D126: i | E126: =IF(AND(AA126=0,OR(S126<>"",T126<>"",U126<>"",Z126<>"")),"Check- see columns N-U for info","") ->  | K126: =-K54 -> 0 | L126: =-L54 -> 0 | M126: =-M54 -> 0 | O126: =-O54 -> 0 | P126: =-P54 -> 0 | Q126: =-Q54 -> 0 | R126: This should be the contra to line 255- normally there are revenue transfers to capital and this line should be a +ve figure. Transfers from capital funding to revenue reserves is normally disallowed. However on occasion for the reasons described in line 255, a reverse transfer may be necessary, in which case funds will flow from capital to revenue and the balance in this line would become -ve. However as this is unusual an explanation is required. | V126: =VLOOKUP($C126,'Min Max table'!$A$4:$C$209,2,FALSE) -> 0 | W126: =VLOOKUP($C126,'Min Max table'!$A$4:$C$209,3,FALSE) -> 0 | X126: ="QU"&AB126 -> QU21 | Y126: =IF(Z126="","","Please refer to "&X126&" in the validations table") ->  | Z126: =IF(AC126>0,AD126,"") ->  | AA126: =VLOOKUP(X126,'Trust validations table'!$A$15:$D$345,4,FALSE) -> 0 | AB126: 21 | AC126: =IF(OR($K$126<0,$L$126<0,$M$126<0,$O$126<0,$P$126<0,$Q$126<0),AB126,0) -> 0 | AD126: Please explain why you are transferring capital income into revenue reserves. | AE126: IF(OR($G$126<0,$H$126<0,$I$126<0,$K$126<0,$L$126<0,$M$126<0,$O$126<0,$P$126<0,$Q$126<0),AB126,0)
B128: Total Capital Income | C128: 599 | K128: =K110+K118+K124+K126 -> 0 | L128: =L110+L118+L124+L126 -> 0 | M128: =M110+M118+M124+M126 -> 0 | O128: =O110+O118+O124+O126 -> 0 | P128: =P110+P118+P124+P126 -> 0 | Q128: =Q110+Q118+Q124+Q126 -> 0 | V128: =VLOOKUP($C128,'Min Max table'!$A$4:$C$209,2,FALSE) -> 0 | W128: =VLOOKUP($C128,'Min Max table'!$A$4:$C$209,3,FALSE) -> 0
K131: Yr1 | O131: Yr2
B132: 5 CAPITAL EXPENDITURE | K132: Actuals | L132: Calculated | M132: TOTAL | O132: Forecast | P132: Calculated | Q132: TOTAL | R132: Deleted and text at top of screen
B133: Include cost of land acquisition including fees and charges related to the acquisition, cost of acquiring existing buildings, including fees and charges related to the acquisition, cost of new construction, including fees, cost of conversions and renovations and cost of extension to existing premises. This needs to be broken down into the following categories: | K133: Sep 19 - Mar 20 | L133: Apr 20 - Aug 20 | M133: 2019/20 | O133: Sep 20 - Mar 21 | P133: Apr 21 - Aug 21 | Q133: 2020/21
K134: £'000 | L134: £'000 | M134: £'000 | O134: £'000 | P134: £'000 | Q134: £'000
B135: Land & buildings additions funded by ESFA grants | C135: 601 | D135: i | E135: =IF(AND(AA135=0,OR(S135<>"",T135<>"",U135<>"",Z135<>"")),"Check- see columns N-U for info","") ->  | L135: =+M135-K135 -> 0 | P135: =+Q135-O135 -> 0 | R135: Include any expenditure of grant received in a previous period. The unspent grant income would be carried forward into the next financial year, usually in the capital funds balance. | S135: =IF(OR(K135-ROUND(K135,)<>0,M135-ROUND(M135,)<>0,O135-ROUND(O135,)<>0,Q135-ROUND(Q135,)<>0),"No decimal places","") ->  | T135: =IF(OR(K135<V135,L135<V135,M135<V135,O135<V135,P135<V135,Q135<V135),"A value is below the minimum value allowed","") ->  | U135: =IF(OR(K135>W135,L135>W135,M135>W135,O135>W135,P135>W135,Q135>W135),"Input value is too high","") ->  | V135: =VLOOKUP($C135,'Min Max table'!$A$4:$C$209,2,FALSE) -> 0 | W135: =VLOOKUP($C135,'Min Max table'!$A$4:$C$209,3,FALSE) -> 400000
B136: Land & buildings donated to the trust by the ESFA (PSPB/Free Schools Programme) | C136: 605 | D136: i | L136: =+M136-K136 -> 0 | P136: =+Q136-O136 -> 0 | R136: This should be the contra of row 520 and should be equal to that. | S136: =IF(OR(K136-ROUND(K136,)<>0,M136-ROUND(M136,)<>0,O136-ROUND(O136,)<>0,Q136-ROUND(Q136,)<>0),"No decimal places","") ->  | T136: =IF(OR(K136<V136,L136<V136,M136<V136,O136<V136,P136<V136,Q136<V136),"A value is below the minimum value allowed","") ->  | U136: =IF(OR(K136>W136,L136>W136,M136>W136,O136>W136,P136>W136,Q136>W136),"Input value is too high","") ->  | V136: =VLOOKUP($C136,'Min Max table'!$A$4:$C$209,2,FALSE) -> 0 | W136: =VLOOKUP($C136,'Min Max table'!$A$4:$C$209,3,FALSE) -> 400000
B137: Land & buildings additions funded by other capital grants | C137: 615 | D137: i | L137: 0 | P137: =+Q137-O137 -> 0 | R137: Funded by other capital grants. | V137: =VLOOKUP($C137,'Min Max table'!$A$4:$C$209,2,FALSE) -> 0 | W137: =VLOOKUP($C137,'Min Max table'!$A$4:$C$209,3,FALSE) -> 400000
B138: Land & buildings additions funded by reserves | C138: 620 | D138: i | L138: 0 | P138: 0 | R138: Funded by reserves – including other revenue sources as well as endowment releases. | V138: =VLOOKUP($C138,'Min Max table'!$A$4:$C$209,2,FALSE) -> 0 | W138: =VLOOKUP($C138,'Min Max table'!$A$4:$C$209,3,FALSE) -> 400000
B139: Other fixed assets additions funded by ESFA grants | C139: 636 | D139: i | L139: 0 | P139: 0 | R139: Include any expenditure of ESFA grant received in a previous period. The unspent grant income should be carried forward from a prior year. | V139: =VLOOKUP($C139,'Min Max table'!$A$4:$C$209,2,FALSE) -> 0 | W139: =VLOOKUP($C139,'Min Max table'!$A$4:$C$209,3,FALSE) -> 400000
B140: Other fixed assets additions funded by other capital grants | C140: 637 | L140: 0 | P140: 0 | V140: =VLOOKUP($C140,'Min Max table'!$A$4:$C$209,2,FALSE) -> 0 | W140: =VLOOKUP($C140,'Min Max table'!$A$4:$C$209,3,FALSE) -> 400000
B141: Other fixed assets additions funded by reserves | C141: 638 | L141: 0 | P141: 0 | V141: =VLOOKUP($C141,'Min Max table'!$A$4:$C$209,2,FALSE) -> 0 | W141: =VLOOKUP($C141,'Min Max table'!$A$4:$C$209,3,FALSE) -> 400000
B142: Local authority donated assets expense | C142: 606 | D142: i | L142: 0 | P142: 0 | R142: This should be the contra of row 575 recognising the asset expense following receipt of the donated asset (as income) | V142: =VLOOKUP($C142,'Min Max table'!$A$4:$C$209,2,FALSE) -> 0 | W142: =VLOOKUP($C142,'Min Max table'!$A$4:$C$209,3,FALSE) -> 400000
B143: Total Capital Expenditure | C143: 650 | K143: =SUM(K135:K142) -> 0 | L143: =SUM(L135:L142) -> 0 | M143: =SUM(M135:M142) -> 0 | O143: =SUM(O135:O142) -> 0 | P143: =SUM(P135:P142) -> 0 | Q143: =SUM(Q135:Q142) -> 0 | V143: =VLOOKUP($C143,'Min Max table'!$A$4:$C$209,2,FALSE) -> 0 | W143: =VLOOKUP($C143,'Min Max table'!$A$4:$C$209,3,FALSE) -> 0
B145: Capital totals
B146: Net Capital income/(expenditure) for the period | C146: 660 | E146: =IF(AND(AA146=0,OR(S146<>"",T146<>"",U146<>"",Z146<>"")),"Check- see columns N-U for info","") ->  | K146: =K128-K143 -> 0 | L146: =L128-L143 -> 0 | M146: =M128-M143 -> 0 | O146: =O128-O143 -> 0 | P146: =P128-P143 -> 0 | Q146: =Q128-Q143 -> 0 | V146: =VLOOKUP($C146,'Min Max table'!$A$4:$C$209,2,FALSE) -> 0 | W146: =VLOOKUP($C146,'Min Max table'!$A$4:$C$209,3,FALSE) -> 0 | X146: ="QU"&AB146 -> QU14 | Y146: =IF(Z146="","","Please refer to "&X146&" in the validations table") ->  | Z146: =IF(AC146>0,AD146,"") ->  | AA146: =VLOOKUP(X146,'Trust validations table'!$A$15:$D$345,4,FALSE) -> 0 | AB146: 14 | AC146: =IF(OR($M$146<0,$Q$146<0),AB146,0) -> 0 | AD146: Your capital expenditure exceeds capital income during either Yr1 or Yr2? Could you explain how you have managed capital income and expenditure during the year? Are you carrying forward surplus capital funds from prior years and how much? | AE146: IF(OR($I$146<0,$M$146<0,$Q$146<)),AB146,0)
K149: Actuals | L149: Calculated | O149: Calculated | P149: Calculated
K150: Balance b/f from 1 Sep 19 | L150: Balance b/f from 1 Apr 20 | O150: Balance b/f from 1 Sep 20 | P150: Balance b/f from 1 Apr 21
K151: £'000 | L151: £'000 | O151: £'000 | P151: £'000
B152: Balance B/Fwd from previous period | C152: 670 | K152: =H157 -> 0 | L152: =K157 -> 0 | O152: =L157 -> 0 | P152: =O157 -> 0 | V152: =VLOOKUP($C152,'Min Max table'!$A$4:$C$209,2,FALSE) -> -400000 | W152: =VLOOKUP($C152,'Min Max table'!$A$4:$C$209,3,FALSE) -> 400000
K154: Calculated | L154: Calculated | O154: Calculated | P154: Calculated
K155: Balance c/f at 31 Mar 20 | L155: Balance c/f at 31 Aug 20 | O155: Balance c/f at 31 Mar 21 | P155: Balance c/f at 31 Aug 21
K156: £'000 | L156: £'000 | O156: £'000 | P156: £'000
B157: Balance C/Fwd to next period | C157: 680 | K157: =K146+K152 -> 0 | L157: =L146+L152 -> 0 | O157: =O146+O152 -> 0 | P157: =P146+P152 -> 0 | V157: =VLOOKUP($C157,'Min Max table'!$A$4:$C$209,2,FALSE) -> 0 | W157: =VLOOKUP($C157,'Min Max table'!$A$4:$C$209,3,FALSE) -> 0
K160: Yr1 | O160: Yr2
K161: Actuals | L161: Calculated | M161: TOTAL | O161: Forecast | P161: Calculated | Q161: TOTAL
K162: Sep 19 - Mar 20 | L162: Apr 20 - Aug 20 | M162: 2019/20 | O162: Sep 20 - Mar 21 | P162: Apr 21 - Aug 21 | Q162: 2020/21
B163: Capital transfers and conversions ( disclosure) | K163: £'000 | L163: £'000 | M163: £'000 | O163: £'000 | P163: £'000 | Q163: £'000
B164: Capital assets transferred to academy on conversion | C164: 572 | D164: i | E164: =IF(AND(AA164=0,OR(S164<>"",T164<>"",U164<>"",Z164<>"")),"Check- see columns N-U for info","") ->  | I164: 5 | L164: =+M164-K164 -> 0 | P164: =+Q164-O164 -> 0 | R164: Include the value of capital assets and liabilities received or receivable on conversion from local authorities on conversion. These balances will have a contra adjustment. For example when you record a conversion from a local authority the entry is conversion income recorded below and the opposite adjustment which is expenditure. The former recognises the transfer income and the latter the expenditure to recognise the asset. The budgeting impact is neutral. | S164: =IF(OR(K164-ROUND(K164,)<>0,M164-ROUND(M164,)<>0,O164-ROUND(O164,)<>0,Q164-ROUND(Q164,)<>0),"No decimal places","") ->  | T164: =IF(OR(K164<V164,L164<V164,M164<V164,O164<V164,P164<V164,Q164<V164),"Transfers in is below the minimum value allowed","") ->  | U164: =IF(OR(K164>W164,L164>W164,M164>W164,O164>W164,P164>W164,Q164>W164),"Transfer value is too high","") ->  | V164: =VLOOKUP($C164,'Min Max table'!$A$4:$C$209,2,FALSE) -> 0 | W164: =VLOOKUP($C164,'Min Max table'!$A$4:$C$209,3,FALSE) -> 400000
B165: Capital assets transferred of an existing academy into the trust | C165: 573 | D165: i | E165: =IF(AND(AA165=0,OR(S165<>"",T165<>"",U165<>"",Z165<>"")),"Check- see columns N-U for info","") ->  | L165: =+M165-K165 -> 0 | P165: =+Q165-O165 -> 0 | R165: Include the value of capital assets and liabilities received or receivable following the transfer of an existing academy from another academy trust | S165: =IF(OR(K165-ROUND(K165,)<>0,M165-ROUND(M165,)<>0,O165-ROUND(O165,)<>0,Q165-ROUND(Q165,)<>0),"No decimal places","") ->  | T165: =IF(OR(K165<V165,L165<V165,M165<V165,O165<V165,P165<V165,Q165<V165),"Transfers in is below the minimum value allowed","") ->  | U165: =IF(OR(K165>W165,L165>W165,M165>W165,O165>W165,P165>W165,Q165>W165),"Transfer value is too high","") ->  | V165: =VLOOKUP($C165,'Min Max table'!$A$4:$C$209,2,FALSE) -> 0 | W165: =VLOOKUP($C165,'Min Max table'!$A$4:$C$209,3,FALSE) -> 400000
B166: Capital assets transferred of an existing academy out of the trust | C166: 639 | D166: i | E166: =IF(AND(AA166=0,OR(S166<>"",T166<>"",U166<>"",Z166<>"")),"Check- see columns N-U for info","") ->  | L166: =+M166-K166 -> 0 | P166: =+Q166-O166 -> 0 | R166: Include the value of capital assets and liabilities paid or payable following the transfer of an existing academy to another academy trust. The value of any amount paid or payable should be entered as a negative value. | V166: =VLOOKUP($C166,'Min Max table'!$A$4:$C$209,2,FALSE) -> -400000 | W166: =VLOOKUP($C166,'Min Max table'!$A$4:$C$209,3,FALSE) -> 0
B169: 6 OTHER ITEMS
B170: Cash | K170: Balance at 31 Aug 19 | L170: Balance at 31 Mar 20 | M170: Balance at 31 Aug 20 | O170: Balance at 31 Mar 21 | P170: Balance at 31 Aug 21
K171: £'000 | L171: £'000 | M171: £'000 | O171: £'000 | P171: £'000
B172: Cash at bank and in hand | C172: 700 | D172: i | E172: =IF(AND(AA172=0,OR(S172<>"",T172<>"",U172<>"",Z172<>"")),"Check- see columns N-U for info","") -> Check- see columns N-U for info | R172: Include all bank balances and cash balances, please specify the liquid cash balance. August balances should be as per your audited financial statements. | S172: =IF(OR(K172-ROUND(K172,)<>0,L172-ROUND(L172,)<>0,M172-ROUND(M172,)<>0,O172-ROUND(O172,)<>0,P172-ROUND(P172,)<>0),"No decimal places","") ->  | T172: =IF(OR(K172<V172,L172<V172,M172<V172,O172<V172,P172<V172),"Your cash balance is too low","") ->  | U172: =IF(OR(K172>W172,L172>W172,M172>W172,O172>W172,P172>W172),"Your cash balance is too high","") ->  | V172: =VLOOKUP($C172,'Min Max table'!$A$4:$C$209,2,FALSE) -> 0 | W172: =VLOOKUP($C172,'Min Max table'!$A$4:$C$209,3,FALSE) -> 400000 | X172: ="QU"&AB172 -> QU15 | Y172: =IF(Z172="","","Please refer to "&X172&" in the validations table") -> Please refer to QU15 in the validations table | Z172: =IF(AC172>0,AD172,"") -> Please can you ensure that the figures you have entered for Cash at bank and in hand (700) are correct or explain why your bank balances are all NIL. | AA172: =VLOOKUP(X172,'Trust validations table'!$A$15:$D$345,4,FALSE) -> 0 | AB172: 15 | AC172: =IF(SUM(K172:M172,O172:P172)=0,AB172,0) -> 15 | AD172: Please can you ensure that the figures you have entered for Cash at bank and in hand (700) are correct or explain why your bank balances are all NIL. | AE172: IF(SUM(G172:H172,K172:M172,O172:P172)=0,AB172,0)
B173: Overdrafts | C173: 701 | D173: i | E173: =IF(AND(AA173=0,OR(S173<>"",T173<>"",U173<>"",Z173<>"")),"Check- see columns N-U for info","") ->  | R173: Include any bank or other overdrafts. | S173: =IF(OR(K173-ROUND(K173,)<>0,L173-ROUND(L173,)<>0,M173-ROUND(M173,)<>0,O173-ROUND(O173,)<>0,P173-ROUND(P173,)<>0),"No decimal places","") ->  | T173: =IF(OR(K173<V173,L173<V173,M173<V173,O173<V173,P173<V173),"Your cash balance is too low","") ->  | U173: =IF(OR(K173>W173,L173>W173,M173>W173,O173>W173,P173>W173),"Your cash balance is too high","") ->  | V173: =VLOOKUP($C173,'Min Max table'!$A$4:$C$209,2,FALSE) -> -200000 | W173: =VLOOKUP($C173,'Min Max table'!$A$4:$C$209,3,FALSE) -> 0 | X173: ="QU"&AB173 -> QU16 | Y173: =IF(Z173="","","Please refer to "&X173&" in the validations table") ->  | Z173: =IF(AC173>0,AD173,"") ->  | AA173: =VLOOKUP(X173,'Trust validations table'!$A$15:$D$345,4,FALSE) -> 0 | AB173: 16 | AC173: =IF(OR(K173<>0,L173<>0,M173<>0,O173<>0,P173<>0,Q173<>0),AB173,0) -> 0 | AD173: Please enter your overdraft balances. If your overdraft was cleared before the balance dates then provide a brief explanation. | AE173: IF(SUM(G173:H173,K173:M173,O181:P181)=0,AB173,0)
K175: Yr1 | O175: Yr2
K176: Actuals | L176: Calculated | M176: TOTAL | O176: Forecast | P176: Calculated | Q176: TOTAL
B177: Impairment/gains and losses | K177: Sep 19 - Mar 20 | L177: Apr 20 - Aug 20 | M177: 2019/20 | O177: Sep 20 - Mar 21 | P177: Apr 21 - Aug 21 | Q177: 2020/21
K178: £'000 | L178: £'000 | M178: £'000 | O178: £'000 | P178: £'000 | Q178: £'000
B179: Gain/loss on disposal of fixed assets | C179: 710 | D179: i | E179: =IF(AND(AA179=0,OR(S179<>"",T179<>"",U179<>"",Z179<>"")),"Check- see columns N-U for info","") ->  | L179: =+M179-K179 -> 0 | P179: =+Q179-O179 -> 0 | R179: Deduct the carrying amount of the asset and related selling expenses from the proceeds of the disposal. Losses are entered as a credit and gains as a debit. | S179: =IF(OR(K179-ROUND(K179,)<>0,M179-ROUND(M179,)<>0,O179-ROUND(O179,)<>0,Q179-ROUND(Q179,)<>0),"No decimal places","") ->  | T179: =IF(OR(K179<V179,L179<V179,M179<V179,O179<V179,P179<V179,Q179<V179),"Loss on disposal is too high","") ->  | U179: =IF(OR(K179>W179,L179>W179,M179>W179,O179>W179,P179>W179,Q179>W179),"Gain appears too high","") ->  | V179: =VLOOKUP($C179,'Min Max table'!$A$4:$C$209,2,FALSE) -> -100000 | W179: =VLOOKUP($C179,'Min Max table'!$A$4:$C$209,3,FALSE) -> 100000
B180: Impairment charges | C180: 712 | D180: i | E180: =IF(AND(AA180=0,OR(S180<>"",T180<>"",U180<>"",Z180<>"")),"Check- see columns N-U for info","") ->  | L180: =+M180-K180 -> 0 | P180: =+Q180-O180 -> 0 | R180: Impairment charge would be the reduction in carrying value of an asset. | S180: =IF(OR(K180-ROUND(K180,)<>0,M180-ROUND(M180,)<>0,O180-ROUND(O180,)<>0,Q180-ROUND(Q180,)<>0),"No decimal places","") ->  | T180: =IF(OR(K180<V180,L180<V180,M180<V180,O180<V180,P180<V180,Q180<V180),"Loss on disposal is too high","") ->  | U180: =IF(OR(K180>W180,L180>W180,M180>W180,O180>W180,P180>W180,Q180>W180),"Gain appears too high","") ->  | V180: =VLOOKUP($C180,'Min Max table'!$A$4:$C$209,2,FALSE) -> -100000 | W180: =VLOOKUP($C180,'Min Max table'!$A$4:$C$209,3,FALSE) -> 400000 | X180: ="QU"&AB180 -> QU20 | Y180: =IF(Z180="","","Please refer to "&X180&" in the validations table") ->  | Z180: =IF(AC180>0,AD180,"") ->  | AA180: =VLOOKUP(X180,'Trust validations table'!$A$15:$D$345,4,FALSE) -> 0 | AB180: 20 | AC180: =IF(OR(K180<>0,L180<>0,M180<>0,O180<>0,P180<>0,Q180<>0),AB180,0) -> 0 | AD180: Please provide details of your impairments. | AE180: IF(OR(G180<>0,H180<>0,I180<>0,K180<>0,L180<>0,M180<>0,O180<>0,P180<>0,Q180<>0),AB180,0)
B182: Investments | K182: Balance at 31 Aug 19 | L182: Balance at 31 Mar 20 | M182: Balance at 31 Aug 20 | O182: Balance at 31 Mar 21 | P182: Balance at 31 Aug 21
K183: £'000 | L183: £'000 | M183: £'000 | O183: £'000 | P183: £'000
B184: Investments | C184: 725 | D184: i | E184: =IF(AND(AA184=0,OR(S184<>"",T184<>"",U184<>"",Z184<>"")),"Check- see columns N-U for info","") ->  | R184: Include movements in investments, such as the purchase of new fixed income or equity investments. | S184: =IF(OR(K184-ROUND(K184,)<>0,L184-ROUND(L184,)<>0,M184-ROUND(M184,)<>0,O184-ROUND(O184,)<>0,P184-ROUND(P184,)<>0),"No decimal places","") ->  | T184: =IF(OR(K184<V184,L184<V184,M184<V184,O184<V184,P184<V184,),"A value is below the minimum value allowed","") ->  | U184: =IF(OR(K184>W184,L184>W184,M184>W184,O184>W184,P184>W184,),"Input value is too high","") ->  | V184: =VLOOKUP($C184,'Min Max table'!$A$4:$C$209,2,FALSE) -> 0 | W184: =VLOOKUP($C184,'Min Max table'!$A$4:$C$209,3,FALSE) -> 400000 | X184: ="QU"&AB184 -> QU17 | Y184: =IF(Z184="","","Please refer to "&X184&" in the validations table") ->  | Z184: =IF(AC184>0,AD184,"") ->  | AA184: =VLOOKUP(X184,'Trust validations table'!$A$15:$D$345,4,FALSE) -> 0 | AB184: 17 | AC184: =IF(OR(K184<>0,L184<>0,M184<>0,O184<>0,P184<>0,Q184<>0),AB184,0) -> 0 | AD184: Please provide details of your investments. If your investments were sold/paid back before the balance dates then provide a brief explanation. | AE184: IF(OR(G184<>0,H184<>0,I184<>0,K184<>0,L184<>0,M184<>0,O184<>0,P184<>0,Q184<>0),AB184,0)
K185: Movements Sep 19 - Mar 20 | L185: Movements Apr 20 - Aug 20 | M185: Movements Sep 20 - Mar 21 | O185: Movements Apr 21 - Aug 21
K186: £'000 | L186: £'000 | M186: £'000 | O186: £'000
B187: Investment liquidations | C187: 730 | D187: i | E187: =IF(AND(AA187=0,OR(S187<>"",T187<>"",U187<>"",Z187<>"")),"Check- see columns N-U for info","") ->  | R187: Please include cash or cash equivalents received as a result of investment liquidations. | S187: =IF(OR(K187-ROUND(K187,)<>0,L187-ROUND(L187,)<>0,M187-ROUND(M187,)<>0,O187-ROUND(O187,)<>0,),"No decimal places","") ->  | T187: =IF(OR(K187<V187,L187<V187,M187<V187,O187<V187,),"A value is below the minimum value allowed","") ->  | U187: =IF(OR(K187>W187,L187>W187,M187>W187,O187>W187,),"Input value is too high","") ->  | V187: =VLOOKUP($C187,'Min Max table'!$A$4:$C$209,2,FALSE) -> 0 | W187: =VLOOKUP($C187,'Min Max table'!$A$4:$C$209,3,FALSE) -> 100000
K189: Actuals | L189: Actuals | M189: TOTAL | O189: Forecast
B190: Loans | K190: Balance at 31 Aug 19 | L190: Balance at 31 Mar 20 | M190: Balance at 31 Aug 20 | O190: Balance at 31 Mar 21
K191: £'000 | L191: £'000 | M191: £'000 | O191: £'000
B192: Opening outstanding loans | C192: 780 | D192: i | E192: =IF(AND(AA192=0,OR(S192<>"",T192<>"",U192<>"",Z192<>"")),"Check- see columns N-U for info","") ->  | K192: =H198 -> 0 | L192: =K198 -> 0 | M192: =L198 -> 0 | O192: =M198 -> 0 | R192: Please include any closing loans outstanding from the previous financial year. Please specify in the comments section to whom the loans relate, the amounts specific to each, whether transferred on conversion, reason for loan and loan duration. | S192: =IF(OR(G192-ROUND(G192,)<>0,I192-ROUND(I192,)<>0,K192-ROUND(K192,)<>0,M192-ROUND(M192,)<>0,O192-ROUND(O192,)<>0,Q192-ROUND(Q192,)<>0),"No decimal places","") ->  | T192: =IF(OR(G192<V192,I192<V192,K192<V192,L192<V192,M192<V192,O192<V192,P192<V192,Q192<V192),"Error- balances is below the minimum value allowed","") ->  | U192: =IF(OR(G192>W192,I192>W192,K192>W192,L192>W192,M192>W192,O192>W192,P192>W192,Q192>W192),"Input value is too high","") ->  | V192: =VLOOKUP($C192,'Min Max table'!$A$4:$C$209,2,FALSE) -> 0 | W192: =VLOOKUP($C192,'Min Max table'!$A$4:$C$209,3,FALSE) -> 100000
K193: Movement to 31 Mar 20 | L193: Movement to 31 Aug 20 | M193: Movement to 31 Mar 21 | O193: Movement to 31 Aug 21
K194: £'000 | L194: £'000 | M194: £'000 | O194: £'000
B195: Increase/(Decrease) in outstanding loans | C195: 785 | D195: i | E195: =IF(AND(AA195=0,OR(S195<>"",T195<>"",U195<>"",Z195<>"")),"Check- see columns N-U for info","") ->  | R195: Please include the value of any increase or decrease in outstanding loans. Please specify in the comments section to whom the loans relate, the amounts specific to each, whether transferred on conversion, reason for loan and loan duration. | S195: =IF(OR(K195-ROUND(K195,)<>0,L195-ROUND(L195,)<>0,M195-ROUND(M195,)<>0,O195-ROUND(O195,)<>0,),"No decimal places","") ->  | T195: =IF(OR(K195<V195,L195<V195,M195<V195,O195<V195),"Decrease is too high","") ->  | U195: =IF(OR(K195>W195,L195>W195,M195>W195,O195>W195),"Increase is too high","") ->  | V195: =VLOOKUP($C195,'Min Max table'!$A$4:$C$209,2,FALSE) -> -100000 | W195: =VLOOKUP($C195,'Min Max table'!$A$4:$C$209,3,FALSE) -> 100000 | X195: ="QU"&AB195 -> QU18 | Y195: =IF(Z195="","","Please refer to "&X195&" in the validations table") ->  | Z195: =IF(AC195>0,AD195,"") ->  | AA195: =VLOOKUP(X195,'Trust validations table'!$A$15:$D$345,4,FALSE) -> 0 | AB195: 18 | AC195: =IF(OR(K195<>0,L195<>0,M195<>0,O195<>0),AB195,0) -> 0 | AD195: Please provide details of any loan movements. | AE195: IF(OR(G195<>0,H195<>0,K195<>0,L195<>0,M195<>0,O195<>0),AB195,0)
K196: Balance c/f 31 Mar 20 | L196: Balance c/f 31 Aug 20 | M196: Balance c/f 31 Mar 21 | O196: Balance c/f 31 Aug 21
K197: £'000 | L197: £'000 | M197: £'000 | O197: £'000
B198: Closing outstanding loans | C198: 789 | E198: =IF(AND(AA198=0,OR(S198<>"",T198<>"",U198<>"",Z198<>"")),"Check- see columns N-U for info","") ->  | K198: =+K195+K192 -> 0 | L198: =+L195+L192 -> 0 | M198: =+M195+M192 -> 0 | O198: =+O195+O192 -> 0 | V198: =VLOOKUP($C198,'Min Max table'!$A$4:$C$209,2,FALSE) -> 0 | W198: =VLOOKUP($C198,'Min Max table'!$A$4:$C$209,3,FALSE) -> 0 | X198: ="QU"&AB198 -> QU19 | Y198: =IF(Z198="","","Please refer to "&X198&" in the validations table") ->  | Z198: =IF(AC198>0,AD198,"") ->  | AA198: =VLOOKUP(X198,'Trust validations table'!$A$15:$D$345,4,FALSE) -> 0 | AB198: 19 | AC198: =IF(OR(K198<0,L198<0,M198<0,O198<0,P198<0),AB198,IF(AND(AC11=0,SUM(K198:P198)<>0),AB198,IF(AND(AC11=1,AND(K198=0,L198=0,M198=0,O198=0,P198=0)),AB198,0))) -> 0 | AD198: Please could you confirm that your loan balances are correct by checking that have input the loan balances correctly. i.e. The balances should not be negative. | AE198: IF(OR(G198<0,H198<0,K198<0,L198<0,M198<0,O198<0,P198<0),AB198,IF(AND(AC11=0,SUM(G198:P198)<>0),AB198,IF(AND(AC11=1,AND(G198=0,H198=0,K198=0,L198=0,M198=0,O198=0,P198=0)),AB198,0)))
K200: Yr1 | O200: Yr2
K201: Actuals | L201: Calculated | M201: TOTAL | O201: Forecast | P201: Calculated | Q201: TOTAL
K202: Sep 19 - Mar 20 | L202: Apr 20 - Aug 20 | M202: 2019/20 | O202: Sep 20 - Mar 21 | P202: Apr 21 - Aug 21 | Q202: 2020/21
B203: Provisions ( excluding pensions liabilities) | K203: £'000 | L203: £'000 | M203: £'000 | O203: £'000 | P203: £'000 | Q203: £'000
B204: Provision increase | C204: 736 | D204: i | E204: =IF(AND(AA204=0,OR(S204<>"",T204<>"",U204<>"",Z204<>"")),"Check- see columns N-U for info","") ->  | L204: =+M204-K204 -> 0 | P204: =+Q204-O204 -> 0 | R204: Include any new provisions that have been created or increased in the year as a positive figure. | S204: =IF(OR(K204-ROUND(K204,)<>0,M204-ROUND(M204,)<>0,O204-ROUND(O204,)<>0,Q204-ROUND(Q204,)<>0),"No decimal places","") ->  | T204: =IF(OR(K204<V204,L204<V204,M204<V204,O204<V204,P204<V204,Q204<V204),"A value is below the minimum value allowed","") ->  | U204: =IF(OR(K204>W204,L204>W204,M204>W204,O204>W204,P204>W204,Q204>W204),"Input value is too high","") ->  | V204: =VLOOKUP($C204,'Min Max table'!$A$4:$C$209,2,FALSE) -> 0 | W204: =VLOOKUP($C204,'Min Max table'!$A$4:$C$209,3,FALSE) -> 100000
B205: Provisions release (enter as a negative value) | C205: 737 | D205: i | E205: =IF(AND(AA205=0,OR(S205<>"",T205<>"",U205<>"",Z205<>"")),"Check- see columns N-U for info","") ->  | L205: =+M205-K205 -> 0 | P205: =+Q205-O205 -> 0 | R205: Include any reductions to the value of the provisions in the year. This must be a negative value. | S205: =IF(OR(K205-ROUND(K205,)<>0,M205-ROUND(M205,)<>0,O205-ROUND(O205,)<>0,Q205-ROUND(Q205,)<>0),"No decimal places","") ->  | T205: =IF(OR(K205<V205,L205<V205,M205<V205,O205<V205,P205<V205,Q205<V205),"A value is below the minimum value allowed","") ->  | U205: =IF(OR(K205>W205,L205>W205,M205>W205,O205>W205,P205>W205,Q205>W205),"Input value is too high","") ->  | V205: =VLOOKUP($C205,'Min Max table'!$A$4:$C$209,2,FALSE) -> -100000 | W205: =VLOOKUP($C205,'Min Max table'!$A$4:$C$209,3,FALSE) -> 0
B206: Provision utilisation | C206: 738 | D206: i | E206: =IF(AND(AA206=0,OR(S206<>"",T206<>"",U206<>"",Z206<>"")),"Check- see columns N-U for info","") ->  | L206: =+M206-K206 -> 0 | P206: =+Q206-O206 -> 0 | R206: Include any payments made out against the provisions in the year. This must be a negative value. This is not a cost but is a cash payment | V206: =VLOOKUP($C206,'Min Max table'!$A$4:$C$209,2,FALSE) -> -100000 | W206: =VLOOKUP($C206,'Min Max table'!$A$4:$C$209,3,FALSE) -> 0
K208: Actuals | L208: Calculated | M208: TOTAL | O208: Forecast | P208: Calculated | Q208: TOTAL
K209: Sep 19 - Mar 20 | L209: Apr 20 - Aug 20 | M209: 2019/20 | O209: Sep 20 - Mar 21 | P209: Apr 21 - Aug 21 | Q209: 2020/21
B210: Depreciation/amortisation charge for the period | K210: £'000 | L210: £'000 | M210: £'001 | O210: £'000 | P210: £'000 | Q210: £'000
B211: Buildings depreciation | C211: 715 | D211: i | E211: =IF(AND(AA211=0,OR(S211<>"",T211<>"",U211<>"",Z211<>"")),"Check- see columns N-U for info","") ->  | L211: =+M211-K211 -> 0 | P211: =+Q211-O211 -> 0 | R211: Include depreciation charges for buildings only, excluding depreciation relating to donated or other buildings during the year. | S211: =IF(OR(K211-ROUND(K211,)<>0,M211-ROUND(M211,)<>0,O211-ROUND(O211,)<>0,Q211-ROUND(Q211,)<>0),"No decimal places","") ->  | T211: =IF(OR(K211<V211,L211<V211,M211<V211,O211<V211,P211<V211,Q211<V211),"A value is below the minimum value allowed","") ->  | U211: =IF(OR(K211>W211,L211>W211,M211>W211,O211>W211,P211>W211,Q211>W211),"Input value is too high","") ->  | V211: =VLOOKUP($C211,'Min Max table'!$A$4:$C$209,2,FALSE) -> 0 | W211: =VLOOKUP($C211,'Min Max table'!$A$4:$C$209,3,FALSE) -> 200000
B212: Other assets donated depreciation | C212: 716 | D212: i | E212: =IF(AND(AA212=0,OR(S212<>"",T212<>"",U212<>"",Z212<>"")),"Check- see columns N-U for info","") ->  | L212: =+M212-K212 -> 0 | P212: =+Q212-O212 -> 0 | R212: Include depreciation charges for donated assets. | S212: =IF(OR(K212-ROUND(K212,)<>0,M212-ROUND(M212,)<>0,O212-ROUND(O212,)<>0,Q212-ROUND(Q212,)<>0),"No decimal places","") ->  | T212: =IF(OR(K212<V212,L212<V212,M212<V212,O212<V212,P212<V212,Q212<V212),"A value is below the minimum value allowed","") ->  | U212: =IF(OR(K212>W212,L212>W212,M212>W212,O212>W212,P212>W212,Q212>W212),"Input value is too high","") ->  | V212: =VLOOKUP($C212,'Min Max table'!$A$4:$C$209,2,FALSE) -> 0 | W212: =VLOOKUP($C212,'Min Max table'!$A$4:$C$209,3,FALSE) -> 200000
B213: Other assets owned depreciation | C213: 717 | D213: i | E213: =IF(AND(AA213=0,OR(S213<>"",T213<>"",U213<>"",Z213<>"")),"Check- see columns N-U for info","") ->  | L213: =+M213-K213 -> 0 | P213: =+Q213-O213 -> 0 | R213: Include depreciation charges for other assets, excluding buildings or donated assets. | V213: =VLOOKUP($C213,'Min Max table'!$A$4:$C$209,2,FALSE) -> 0 | W213: =VLOOKUP($C213,'Min Max table'!$A$4:$C$209,3,FALSE) -> 200000
B214: Total Depreciation | C214: 720 | K214: =SUM(K211:K213) -> 0 | L214: =+M214-K214 -> 0 | M214: =SUM(M211:M213) -> 0 | O214: =SUM(O211:O213) -> 0 | P214: =+Q214-O214 -> 0 | Q214: =SUM(Q211:Q213) -> 0 | V214: =VLOOKUP($C214,'Min Max table'!$A$4:$C$209,2,FALSE) -> 0 | W214: =VLOOKUP($C214,'Min Max table'!$A$4:$C$209,3,FALSE) -> 0
B216: Pupil Numbers | M216: Actual 2019/20 | Q216: Estimated 2020/21
B217: Pupil numbers (actual and estimated - do not round this figure) | C217: 999 | D217: i | E217: =IF(AND(AA217=0,OR(S217<>"",T217<>"",U217<>"",Z217<>"")),"Check- see columns N-U for info","") -> Check- see columns N-U for info | R217: Please input the estimated total number of students in your trust. | S217: =IF(OR(M217-ROUND(M217,)<>0,Q217-ROUND(Q217,)<>0),"No decimal places","") ->  | T217: =IF(OR(M217<V217,Q217<V217),"A value is below the minimum value allowed","") ->  | U217: =IF(OR(M217>W217,Q217>W217),"Input value is too high","") ->  | V217: =VLOOKUP($C217,'Min Max table'!$A$4:$C$209,2,FALSE) -> 0 | W217: =VLOOKUP($C217,'Min Max table'!$A$4:$C$209,3,FALSE) -> 999999 | X217: ="QU"&AB217 -> QU22 | Y217: =IF(Z217="","","Please refer to "&X217&" in the validations table") -> Please refer to QU22 in the validations table | Z217: =IF(AC217>0,AD217,"") -> Please ensure you have entered the pupil numbers correctly (i.e. they have not been rounded) or explain why you have input no pupil numbers. | AA217: =VLOOKUP(X217,'Trust validations table'!$A$15:$D$345,4,FALSE) -> 0 | AB217: 22 | AC217: =IF(OR(M217<=0,Q217<=0),AB217,0) -> 22 | AD217: Please ensure you have entered the pupil numbers correctly (i.e. they have not been rounded) or explain why you have input no pupil numbers. | AE217: IF(OR(M217<=0,I217<=0,Q217<=0),AB217,0)
B220: 7 TRUST RESERVES
B221: The number of academies in the return should match the number of academy reserves. The balances should be the balance for each academy. Deficits are entered as a negative value.
K222: Balance at 31 Aug 19 | L222: Balance at 31 Mar 20 | M222: Balance at 31 Aug 20 | O222: Balance at 31 Mar 21 | P222: Balance at 31 Aug 21
B223: Trust total | K223: £'000 | L223: £'000 | M223: £'000 | O223: £'000 | P223: £'000
B224: Total Trust Reserves | C224: 1001 | D224: i | E224: =IF(AND(AA224=0,OR(S224<>"",T224<>"",U224<>"",Z224<>"")),"Check- see columns N-U for info","") ->  | K224: =IF($C$232="Yes",(SUM(K228,K231)),(SUM(K235:K334,K231,)+K228)) -> 0 | L224: =IF($C$232="Yes",(SUM(L228,L231)),(SUM(L235:L334,L231,)+L228)) -> 0 | M224: =IF($C$232="Yes",(SUM(M228,M231)),(SUM(M235:M334,M231,)+M228)) -> 0 | O224: =IF($C$232="Yes",(SUM(O228,O231)),(SUM(O235:O334,O231,)+O228)) -> 0 | P224: =IF($C$232="Yes",(SUM(P228,P231)),(SUM(P235:P334,P231,)+P228)) -> 0 | R224: The balance should be the total revenue reserves balance for every academy and central HQ. It should match the balance c/f to next period: line 430, although there may be genuine reasons for a difference . | V224: =VLOOKUP($C224,'Min Max table'!$A$4:$C$209,2,FALSE) -> 0 | W224: =VLOOKUP($C224,'Min Max table'!$A$4:$C$209,3,FALSE) -> 0 | X224: ="QU"&AB224 -> QU500 | Y224: =IF(Z224="","","Please refer to "&X224&" in the validations table") ->  | Z224: =IF(AC224>0,AD224,"") ->  | AA224: =VLOOKUP(X224,'Trust validations table'!$A$15:$D$345,4,FALSE) -> 0 | AB224: 500 | AC224: =IF($Q$224-$Q$99<>0,$AB224,0) -> 0 | AD224: The closing balance of all reserves for the trust is not equal to the revenue reserves balance c/f at 31 Aug Year 2 on line 430. There may be a perfectly legitimate explanation so could you provide some brief comments explaining why? | AE224: IF($Q$224-$Q$99<>0,$AB224,0)
B228: Adjustments to reserve balances | C228: 1002 | D228: i | E228: =IF(AND(AA228=0,OR(S228<>"",T228<>"",U228<>"",Z228<>"")),"Check- see columns N-U for info","") ->  | R228: Please use this line if you need to adjust the reserve balances. An example may be if you have new academies that are not included on the form and you have included financial data for these academies. | S228: =IF(OR(K228-ROUND(K228,)<>0,L228-ROUND(L228,)<>0,M228-ROUND(M228,)<>0,O228-ROUND(O228,)<>0,P228-ROUND(P228,)<>0),"No decimal places","") ->  | T228: =IF(OR(K228<V228,L228<V228,M228<V228,O228<V228,P228<V228,P228<V228),"Deficit is too high in at least one period","") ->  | U228: =IF(OR(K228>W228,L228>W228,M228>W228,O228>W228,P228>W228),"Reserves balance is too high during at least one period","") ->  | V228: =VLOOKUP($C228,'Min Max table'!$A$4:$C$209,2,FALSE) -> -999999 | W228: =VLOOKUP($C228,'Min Max table'!$A$4:$C$209,3,FALSE) -> 999999 | X228: ="QU"&AB228 -> QU503 | Y228: =IF(Z228="","","Please refer to "&X228&" in the validations table") ->  | Z228: =IF(AC228>0,AD228,"") ->  | AA228: =VLOOKUP(X228,'Trust validations table'!$A$15:$D$345,4,FALSE) -> 0 | AB228: 503 | AC228: =IF(OR(M228<>0,K228<>0,L228<>0,O228<>0,P228<>0),AB228,0) -> 0 | AD228: Please explain why you have adjusted the reserves balances ( for example are you including some additional academies which have not been recorded on the list below) | AE228: IF(OR(G228<>0,H228<>0,M228<>0,K228<>0,L228<>0,O228<>0,P228<>0),AB228,0)
B231: Centrally held reserves | C231: 1000 | D231: i | E231: =IF(AND(AA231=0,OR(S231<>"",T231<>"",U231<>"",Z231<>"")),"Check- see columns N-U for info","") ->  | R231: If you are a MAT then please input the value of reserves held centrally and then the value of reserves held by each academy. Any deficits will require a brief explanation. | S231: =IF(OR(K231-ROUND(K231,)<>0,L231-ROUND(L231,)<>0,M231-ROUND(M231,)<>0,O231-ROUND(O231,)<>0,P231-ROUND(P231,)<>0),"No decimal places","") ->  | T231: =IF(OR(K231<V231,L231<V231,M231<V231,O231<V231,P231<V231,P231<V231),"Deficit is too high in at least one period","") ->  | U231: =IF(OR(K231>W231,L231>W231,M231>W231,O231>W231,P231>W231),"Reserves balance is too high during at least one period","") ->  | V231: =VLOOKUP($C231,'Min Max table'!$A$4:$C$209,2,FALSE) -> -999999 | W231: =VLOOKUP($C231,'Min Max table'!$A$4:$C$209,3,FALSE) -> 999999 | X231: ="QU"&AB231 -> QU502 | Y231: =IF(Z231="","","Please refer to "&X231&" in the validations table") ->  | Z231: =IF(AC231>0,AD231,"") ->  | AA231: =VLOOKUP(X231,'Trust validations table'!$A$15:$D$345,4,FALSE) -> 0 | AB231: 502 | AC231: =IF(OR(K231<0,M231<0,P231<0),AB231,0) -> 0 | AD231: There is a deficit on your closing reserves either at the end of Yr1 or Yr2. Could you explain the circumstances and what steps are planned/ you took to eliminate the deficit. | AE231: IF(OR(K231<0,M231<0,P231<0),AB231,0)
B232: Do you pool all of your GAG funding and all Reserves are held centrally? | C232: No | D232: i
A234: UPIN | B234: Academy Name | C234: 800 rows hidden if Yes selected above
A235: =IF('Organisation user'!A30="","",'Organisation user'!A30) ->  | B235: =IF('Organisation user'!B30="","",'Organisation user'!B30) ->  | C235: 800 | D235: i | E235: =IF($C$232="Yes","",IF(AND(AA235=0,OR(S235<>"",T235<>"",U235<>"",Z235<>"")),"Check- see columns N-U for info","")) ->  | S235: =IF(OR(G235-ROUND(G235,)<>0,H235-ROUND(H235,)<>0,K235-ROUND(K235,)<>0,L235-ROUND(L235,)<>0,M235-ROUND(M235,)<>0,O235-ROUND(O235,)<>0,P235-ROUND(P235,)<>0),"No decimal places","") ->  | T235: =IF(OR(G235<V235,H235<V235,K235<V235,L235<V235,M235<V235,O235<V235,P235<V235),"A value is below the minimum value allowed","") ->  | U235: =IF(OR(G235>W235,H235>W235,K235>W235,L235>W235,M235>W235,O235>W235,P235>W235),"Input value is too high","") ->  | V235: =VLOOKUP($C235,'Min Max table'!$A$4:$C$209,2,FALSE) -> -200000 | W235: =VLOOKUP($C235,'Min Max table'!$A$4:$C$209,3,FALSE) -> 200000 | X235: ="QU"&AB235 -> QU310 | Y235: =IF(Z235="","","Please refer to "&X235&" in the validations table") ->  | Z235: =IF(AC235>0,AD235,"") ->  | AA235: =VLOOKUP(X235,'Trust validations table'!$A$15:$D$345,4,FALSE) -> 0 | AB235: 310 | AC235: =IF(OR(K235<0,M235<0,P235<0),AB235,0) -> 0 | AD235: There is a deficit on your closing reserves either at the end of Yr1 or Yr2. Could you explain the circumstances and what steps are planned/ you took to eliminate the deficit. | AE235: IF(OR(K235<0,M235<0,P235<0),AB235,0)
A236: =IF('Organisation user'!A31="","",'Organisation user'!A31) ->  | B236: =IF('Organisation user'!B31="","",'Organisation user'!B31) ->  | C236: 801 | E236: =IF($C$232="Yes","",IF(AND(AA236=0,OR(S236<>"",T236<>"",U236<>"",Z236<>"")),"Check- see columns N-U for info","")) ->  | S236: =IF(OR(G236-ROUND(G236,)<>0,H236-ROUND(H236,)<>0,K236-ROUND(K236,)<>0,L236-ROUND(L236,)<>0,M236-ROUND(M236,)<>0,O236-ROUND(O236,)<>0,P236-ROUND(P236,)<>0),"No decimal places","") ->  | T236: =IF(OR(G236<V236,H236<V236,K236<V236,L236<V236,M236<V236,O236<V236,P236<V236),"A value is below the minimum value allowed","") ->  | U236: =IF(OR(G236>W236,H236>W236,K236>W236,L236>W236,M236>W236,O236>W236,P236>W236),"Input value is too high","") ->  | V236: =VLOOKUP($C236,'Min Max table'!$A$4:$C$209,2,FALSE) -> -200000 | W236: =VLOOKUP($C236,'Min Max table'!$A$4:$C$209,3,FALSE) -> 200000 | X236: QU311 | AA236: =VLOOKUP(X236,'Trust validations table'!$A$15:$D$345,4,FALSE) -> 0 | AB236: =1+AB235 -> 311 | AC236: =IF(OR(K236<0,M236<0,P236<0),AB236,0) -> 0 | AD236: There is a deficit on your closing reserves either at the end of Yr1 or Yr2. Could you explain the circumstances and what steps are planned/ you took to eliminate the deficit. | AE236: IF(OR(K235<0,M235<0,P235<0),AB235,0)
A237: =IF('Organisation user'!A32="","",'Organisation user'!A32) ->  | B237: =IF('Organisation user'!B32="","",'Organisation user'!B32) ->  | C237: 802 | V237: =VLOOKUP($C237,'Min Max table'!$A$4:$C$209,2,FALSE) -> -200000 | W237: =VLOOKUP($C237,'Min Max table'!$A$4:$C$209,3,FALSE) -> 200000 | X237: QU312 | AA237: =VLOOKUP(X237,'Trust validations table'!$A$15:$D$345,4,FALSE) -> 0 | AB237: =1+AB236 -> 312 | AC237: 0 | AD237: There is a deficit on your closing reserves either at the end of Yr1 or Yr2. Could you explain the circumstances and what steps are planned/ you took to eliminate the deficit. | AE237: IF(OR(K235<0,M235<0,P235<0),AB235,0)
A238: =IF('Organisation user'!A33="","",'Organisation user'!A33) ->  | B238: =IF('Organisation user'!B33="","",'Organisation user'!B33) ->  | C238: 803 | V238: =VLOOKUP($C238,'Min Max table'!$A$4:$C$209,2,FALSE) -> -200000 | W238: =VLOOKUP($C238,'Min Max table'!$A$4:$C$209,3,FALSE) -> 200000 | X238: QU313 | AA238: =VLOOKUP(X238,'Trust validations table'!$A$15:$D$345,4,FALSE) -> 0 | AB238: 313 | AC238: 0 | AD238: There is a deficit on your closing reserves either at the end of Yr1 or Yr2. Could you explain the circumstances and what steps are planned/ you took to eliminate the deficit. | AE238: IF(OR(K235<0,M235<0,P235<0),AB235,0)
A239: =IF('Organisation user'!A34="","",'Organisation user'!A34) ->  | B239: =IF('Organisation user'!B34="","",'Organisation user'!B34) ->  | C239: 804 | V239: =VLOOKUP($C239,'Min Max table'!$A$4:$C$209,2,FALSE) -> -200000 | W239: =VLOOKUP($C239,'Min Max table'!$A$4:$C$209,3,FALSE) -> 200000 | X239: QU314 | AA239: =VLOOKUP(X239,'Trust validations table'!$A$15:$D$345,4,FALSE) -> 0 | AB239: 314 | AC239: 0 | AD239: There is a deficit on your closing reserves either at the end of Yr1 or Yr2. Could you explain the circumstances and what steps are planned/ you took to eliminate the deficit. | AE239: IF(OR(K235<0,M235<0,P235<0),AB235,0)
A240: =IF('Organisation user'!A35="","",'Organisation user'!A35) ->  | B240: =IF('Organisation user'!B35="","",'Organisation user'!B35) ->  | C240: 805 | V240: =VLOOKUP($C240,'Min Max table'!$A$4:$C$209,2,FALSE) -> -200000 | W240: =VLOOKUP($C240,'Min Max table'!$A$4:$C$209,3,FALSE) -> 200000 | X240: QU315 | AA240: =VLOOKUP(X240,'Trust validations table'!$A$15:$D$345,4,FALSE) -> 0 | AB240: 315 | AC240: 0 | AD240: There is a deficit on your closing reserves either at the end of Yr1 or Yr2. Could you explain the circumstances and what steps are planned/ you took to eliminate the deficit. | AE240: IF(OR(K235<0,M235<0,P235<0),AB235,0)
A241: =IF('Organisation user'!A36="","",'Organisation user'!A36) ->  | B241: =IF('Organisation user'!B36="","",'Organisation user'!B36) ->  | C241: 806 | V241: =VLOOKUP($C241,'Min Max table'!$A$4:$C$209,2,FALSE) -> -200000 | W241: =VLOOKUP($C241,'Min Max table'!$A$4:$C$209,3,FALSE) -> 200000 | X241: QU316 | AA241: =VLOOKUP(X241,'Trust validations table'!$A$15:$D$345,4,FALSE) -> 0 | AB241: 316 | AC241: 0 | AD241: There is a deficit on your closing reserves either at the end of Yr1 or Yr2. Could you explain the circumstances and what steps are planned/ you took to eliminate the deficit. | AE241: IF(OR(K235<0,M235<0,P235<0),AB235,0)
A242: =IF('Organisation user'!A37="","",'Organisation user'!A37) ->  | B242: =IF('Organisation user'!B37="","",'Organisation user'!B37) ->  | C242: 807 | V242: =VLOOKUP($C242,'Min Max table'!$A$4:$C$209,2,FALSE) -> -200000 | W242: =VLOOKUP($C242,'Min Max table'!$A$4:$C$209,3,FALSE) -> 200000 | X242: QU317 | AA242: =VLOOKUP(X242,'Trust validations table'!$A$15:$D$345,4,FALSE) -> 0 | AB242: 317 | AC242: 0 | AD242: There is a deficit on your closing reserves either at the end of Yr1 or Yr2. Could you explain the circumstances and what steps are planned/ you took to eliminate the deficit. | AE242: IF(OR(K235<0,M235<0,P235<0),AB235,0)
A243: =IF('Organisation user'!A38="","",'Organisation user'!A38) ->  | B243: =IF('Organisation user'!B38="","",'Organisation user'!B38) ->  | C243: 808 | V243: =VLOOKUP($C243,'Min Max table'!$A$4:$C$209,2,FALSE) -> -200000 | W243: =VLOOKUP($C243,'Min Max table'!$A$4:$C$209,3,FALSE) -> 200000 | X243: QU318 | AA243: =VLOOKUP(X243,'Trust validations table'!$A$15:$D$345,4,FALSE) -> 0 | AB243: 318 | AC243: 0 | AD243: There is a deficit on your closing reserves either at the end of Yr1 or Yr2. Could you explain the circumstances and what steps are planned/ you took to eliminate the deficit. | AE243: IF(OR(K235<0,M235<0,P235<0),AB235,0)
A244: =IF('Organisation user'!A39="","",'Organisation user'!A39) ->  | B244: =IF('Organisation user'!B39="","",'Organisation user'!B39) ->  | C244: 809 | V244: =VLOOKUP($C244,'Min Max table'!$A$4:$C$209,2,FALSE) -> -200000 | W244: =VLOOKUP($C244,'Min Max table'!$A$4:$C$209,3,FALSE) -> 200000 | X244: QU319 | AA244: =VLOOKUP(X244,'Trust validations table'!$A$15:$D$345,4,FALSE) -> 0 | AB244: 319 | AC244: 0 | AD244: There is a deficit on your closing reserves either at the end of Yr1 or Yr2. Could you explain the circumstances and what steps are planned/ you took to eliminate the deficit. | AE244: IF(OR(K235<0,M235<0,P235<0),AB235,0)
A245: =IF('Organisation user'!A40="","",'Organisation user'!A40) ->  | B245: =IF('Organisation user'!B40="","",'Organisation user'!B40) ->  | C245: 810 | V245: =VLOOKUP($C245,'Min Max table'!$A$4:$C$209,2,FALSE) -> -200000 | W245: =VLOOKUP($C245,'Min Max table'!$A$4:$C$209,3,FALSE) -> 200000 | X245: QU320 | AA245: =VLOOKUP(X245,'Trust validations table'!$A$15:$D$345,4,FALSE) -> 0 | AB245: 320 | AC245: 0 | AD245: There is a deficit on your closing reserves either at the end of Yr1 or Yr2. Could you explain the circumstances and what steps are planned/ you took to eliminate the deficit. | AE245: IF(OR(K235<0,M235<0,P235<0),AB235,0)
A246: =IF('Organisation user'!A41="","",'Organisation user'!A41) ->  | B246: =IF('Organisation user'!B41="","",'Organisation user'!B41) ->  | C246: 811 | V246: =VLOOKUP($C246,'Min Max table'!$A$4:$C$209,2,FALSE) -> -200000 | W246: =VLOOKUP($C246,'Min Max table'!$A$4:$C$209,3,FALSE) -> 200000 | X246: QU321 | AA246: 0 | AB246: 321 | AC246: 0 | AD246: There is a deficit on your closing reserves either at the end of Yr1 or Yr2. Could you explain the circumstances and what steps are planned/ you took to eliminate the deficit. | AE246: IF(OR(K235<0,M235<0,P235<0),AB235,0)
A247: =IF('Organisation user'!A42="","",'Organisation user'!A42) ->  | B247: =IF('Organisation user'!B42="","",'Organisation user'!B42) ->  | C247: 812 | V247: =VLOOKUP($C247,'Min Max table'!$A$4:$C$209,2,FALSE) -> -200000 | W247: =VLOOKUP($C247,'Min Max table'!$A$4:$C$209,3,FALSE) -> 200000 | X247: QU322 | AA247: 0 | AB247: 322 | AC247: 0 | AD247: There is a deficit on your closing reserves either at the end of Yr1 or Yr2. Could you explain the circumstances and what steps are planned/ you took to eliminate the deficit. | AE247: IF(OR(K235<0,M235<0,P235<0),AB235,0)
A248: =IF('Organisation user'!A43="","",'Organisation user'!A43) ->  | B248: =IF('Organisation user'!B43="","",'Organisation user'!B43) ->  | C248: 813 | V248: =VLOOKUP($C248,'Min Max table'!$A$4:$C$209,2,FALSE) -> -200000 | W248: =VLOOKUP($C248,'Min Max table'!$A$4:$C$209,3,FALSE) -> 200000 | X248: QU323 | AA248: 0 | AB248: 323 | AC248: 0 | AD248: There is a deficit on your closing reserves either at the end of Yr1 or Yr2. Could you explain the circumstances and what steps are planned/ you took to eliminate the deficit. | AE248: IF(OR(K235<0,M235<0,P235<0),AB235,0)
A249: =IF('Organisation user'!A44="","",'Organisation user'!A44) ->  | B249: =IF('Organisation user'!B44="","",'Organisation user'!B44) ->  | C249: 814 | V249: =VLOOKUP($C249,'Min Max table'!$A$4:$C$209,2,FALSE) -> -200000 | W249: =VLOOKUP($C249,'Min Max table'!$A$4:$C$209,3,FALSE) -> 200000 | X249: QU324 | AA249: 0 | AB249: 324 | AC249: 0 | AD249: There is a deficit on your closing reserves either at the end of Yr1 or Yr2. Could you explain the circumstances and what steps are planned/ you took to eliminate the deficit. | AE249: IF(OR(K235<0,M235<0,P235<0),AB235,0)
... 85 more rows

Sheet Preparer declaration
C2: Preparer Declaration
C4: Contact details of person completing the form
C6: Please enter these details, so DFE/ESFA can contact you if there are any questions.
C8: Contact name:
C12: Contact email address:
C16: Contact phone number:
C20: Job title:
C23: Are there any other comments you wish to add in relation to this submission?
C29: Date:
C31: I confirm that I have selected and completed all relevant sections of the Finance questions page, input the required information accurately and resolved all validation flags. I confirm that the information entered is accurate, complete and relates to the correct periods on a consistent basis using the guidance provided by the Education Skills Funding Agency
C36: No | F36: =IF(C36="Yes","","You must select yes") -> You must select yes
C39: No of validations outstanding | G39: =SUM('Trust validations table'!C5:C6) -> 8
C42: You have reported your reserve balences as:
C43: Balance at 31 Aug 18 | E43: Balance at 31 Mar 19 | G43: Balance at 31 Aug 19 | I43: Balance at 31 Mar 20 | K43: Balance at 31 Aug 20 | M43: Balance at 31 Mar 21 | O43: Balance at 31 Aug 21
C44: ='BFR3Y 2020'!G224*1000 -> 0 | E44: ='BFR3Y 2020'!H224*1000 -> 0 | G44: ='BFR3Y 2020'!K224*1000 -> 0 | I44: ='BFR3Y 2020'!L224*1000 -> 0 | K44: ='BFR3Y 2020'!M224*1000 -> 0 | M44: ='BFR3Y 2020'!O224*1000 -> 0 | O44: ='BFR3Y 2020'!P224*1000 -> 0
C46: Please confirm that these are your reserve balences.
C48: No | F48: =IF(C48="Yes","","You must select yes") -> You must select yes
D51: Yes
D52: No

Sheet Approver declaration
C2: Academy Trust Declaration (approver)
C4: Contact details of person completing the form
C5: Please enter these details, so DFE/ESFA can contact you if there are any questions.
C7: Contact name:
C11: Contact email address:
C15: Contact phone number:
C19: Are you the Accounting Officer? | G19: No
E21: Name of Accounting Officer (if different to name above):
E25: E-mail address:
C30: Approve or reject submission? | G30: Reject
C32: Are there any other comments you wish to add in relation to this submission?
C38: Date:
C41: "I confirm that I have been authorised by the trust's accounting officer to submit this return. In doing so I confirm, on behalf of the trust's accounting officer, that the entries in the budget forecast return have been prepared on a consistent basis and presented in accordance with the guidance notes issued by the Education Skills Funding Agency" | L41: OR | M41: "I confirm that the entries in the budget forecast return have been prepared on a consistent basis and presented in accordance with the guidance notes issued by the Education Skills Funding Agency"
S42: No | U42: =IF(S42="Yes","","You must select yes") -> You must select yes
C45: "I confirm that the trustees have reviewed and approved the content of this form and that I am ready to submit" | M45: No | O45: =IF(M45="Yes","","You must select yes") -> You must select yes
C47: "I confirm that all monetary values in the form have been entered to the nearest thousand pounds, e.g. £43,690 has been input as £44" | M47: No | O47: =IF(M47="Yes","","You must select yes") -> You must select yes
C51: No of validations outstanding | G51: =SUM('Trust validations table'!C5:C6) -> 8
C53: You have reported your reserve balences as:
C54: Balance at 31 Aug 18 | E54: Balance at 31 Mar 19 | G54: Balance at 31 Aug 19 | I54: Balance at 31 Mar 20 | K54: Balance at 31 Aug 20 | M54: Balance at 31 Mar 21 | O54: Balance at 31 Aug 21
C55: ='BFR3Y 2020'!G224*1000 -> 0 | E55: ='BFR3Y 2020'!H224*1000 -> 0 | G55: ='BFR3Y 2020'!K224*1000 -> 0 | I55: ='BFR3Y 2020'!L224*1000 -> 0 | K55: ='BFR3Y 2020'!M224*1000 -> 0 | M55: ='BFR3Y 2020'!O224*1000 -> 0 | O55: ='BFR3Y 2020'!P224*1000 -> 0
C57: Please confirm that these are your reserve balences.
C59: No | F59: =IF(C59="Yes","","You must select yes") -> You must select yes
D61: Yes
D62: No

Sheet Min Max table
A1: Table of min and max values
A3: Line no. | B3: Minimum value | C3: Maximum value | D3: Description
A4: 101 | B4: =-100000 -> -100000 | C4: =100000 -> 100000 | D4: Rates reclaim
A5: 102 | B5: 0 | C5: =800000 -> 800000 | D5: General Academy Grant (GAG) (excluding Student Service Grant)
A6: 103 | B6: 0 | C6: =100000 -> 100000 | D6: Student Services Grant (Academy Post 16 Bursary Funding)
A7: 105 | B7: 0 | C7: 100000 | D7: Start Up Grants
A8: 108 | B8: 0 | C8: 100000 | D8: Pupil Premium & Service Premium
A9: 132 | B9: =-100000 -> -100000 | C9: 100000 | D9: Pupil Number Adjustment
A10: 135 | B10: 0 | C10: 100000 | D10: Other DfE/ESFA revenue grants
A11: 136 | B11: 0 | C11: 100000 | D11: Universal Infant Free School Meals
A12: 137 | B12: 0 | C12: 100000 | D12: Insurance
A13: 138 | B13: 0 | C13: =300000 -> 300000 | D13: Sponsor Capacity Grant
A14: 150 | B14: =-100000 -> -100000 | C14: =300000 -> 300000 | D14: Other DfE/ESFA family revenue Grants
A15: 199 | B15: =-300000 -> -300000 | C15: =2200000 -> 2200000 | D15: Total DfE/ESFA revenue Income
A16: 200 | B16: =-400000 -> -400000 | C16: =100000 -> 100000 | D16: Local authority revenue income
A17: 205 | B17: -400000 | C17: =100000 -> 100000 | D17: Other government grants
A18: 210 | B18: -400000 | C18: =100000 -> 100000 | D18: Income from trading activities
A19: 211 | B19: -400000 | C19: =100000 -> 100000 | D19: Income from trading activities
A20: 212 | B20: -400000 | C20: =400000 -> 400000 | D20: Revenue surplus transfer of an existing academy into the trust
A21: 215 | B21: -400000 | C21: =400000 -> 400000 | D21: Revenue surplus transfer to academy on conversion
A22: 218 | B22: =-800000 -> -800000 | C22: =800000 -> 800000 | D22: Subtotal transfers surplus
A23: 220 | B23: 0 | C23: =100000 -> 100000 | D23: Other income, including investment income
A24: 250 | B24: =-1600000 -> -1600000 | C24: =500000 -> 500000 | D24: Total Other revenue Income
A25: 255 | B25: =-400000 -> -400000 | C25: =400000 -> 400000 | D25: Transfers between Revenue and Capital (line 585)
A26: 298 | D26: Total Revenue Income
A27: 299 | B27: =-60 -> -60 | C27: =100 -> 100 | D27: Proportion of revenue income that will come from a public body
A28: 310 | B28: 0 | C28: =800000 -> 800000 | D28: Wages and Salaries
A29: 311 | B29: 0 | C29: =200000 -> 200000 | D29: Social Security Costs
A30: 320 | B30: 0 | C30: =200000 -> 200000 | D30: Pension Cost: Teaching staff
A31: 325 | B31: 0 | C31: =200000 -> 200000 | D31: Pension Cost: Non-teaching staff
A32: 335 | B32: 0 | C32: =1400000 -> 1400000 | D32: Total staff costs
A33: 330 | B33: 0 | C33: =200000 -> 200000 | D33: Other Staff Support Costs
A34: 349 | B34: 0 | C34: =1000000 -> 1000000 | D34: Subtotal Support costs
A35: 350 | B35: 0 | C35: =200000 -> 200000 | D35: Revenue deficit transfer of an existing academy into the trust
A36: 351 | B36: 0 | C36: =200000 -> 200000 | D36: Revenue deficit transfer to academy on conversion
A37: 352 | B37: 0 | C37: =400000 -> 400000 | D37: Subtotal Transfers deficit
A38: 378 | B38: 0 | C38: =800000 -> 800000 | D38: Non staff costs (cash)
A39: 380 | D39: Total revenue expenditure
A40: 395 | B40: 0 | C40: =200000 -> 200000 | D40: Other non cash costs
A41: 400 | D41: Net revenue income/(expenditure) for the period
A42: 410 | B42: =-400000 -> -400000 | C42: =400000 -> 400000 | D42: Balance b/f from previous period
A43: 430 | D43: Balance c/f to next period
A44: 510 | B44: =-400000 -> -400000 | C44: =400000 -> 400000 | D44: Devolved formula capital
A45: 520 | B45: =-400000 -> -400000 | C45: =400000 -> 400000 | D45: Value of any capital donation of an asset from the ESFA for PSBP/Free Schools programme
A46: 530 | B46: =-400000 -> -400000 | C46: =400000 -> 400000 | D46: Other DfE income - Capital
A47: 540 | B47: =-400000 -> -400000 | C47: =400000 -> 400000 | D47: Other DfE family Capital Grants
A48: 550 | D48: Total DfE Capital Income
A49: 560 | B49: =-400000 -> -400000 | C49: =400000 -> 400000 | D49: Local authority capital income (cash)
A50: 570 | B50: =-400000 -> -400000 | C50: 400000 | D50: Non Government capital income
A51: 571 | B51: =-400000 -> -400000 | C51: 400000 | D51: Other Government Grant capital income
A52: 572 | B52: 0 | C52: 400000 | D52: Capital assets transferred to academy on conversion
A53: 573 | B53: 0 | C53: 400000 | D53: Capital assets transferred of an existing academy into the trust
A54: 574 | B54: 0 | C54: 400000 | D54: Endowment realeases to fund capital expenditure
A55: 575 | B55: 0 | C55: 400000 | D55: Local authority donated assets
A56: 580 | D56: Total Other Capital Income
A57: 581 | B57: 0 | C57: 400000 | D57: Land & buildings disposals
A58: 582 | B58: 0 | C58: =200000 -> 200000 | D58: Other fixed assets disposals
A59: 584 | D59: Total Disposal proceeds
A60: 585 | D60: Transfers between Revenue and Capital (contra line 255)
A61: 599 | D61: Total Capital Income
A62: 601 | B62: 0 | C62: =400000 -> 400000 | D62: Land & buildings additions funded by ESFA grants
A63: 605 | B63: 0 | C63: 400000 | D63: Land & buildings donated to the trust by the ESFA (PSPB/Free Schools Programme)
A64: 606 | B64: 0 | C64: 400000 | D64: Local authority donated assets expense
A65: 615 | B65: 0 | C65: 400000 | D65: Land & buildings additions funded by other capital grants
A66: 620 | B66: 0 | C66: 400000 | D66: Land & buildings additions funded by reserves
A67: 636 | B67: 0 | C67: 400000 | D67: Other fixed assets additions funded by ESFA grants
A68: 637 | B68: 0 | C68: 400000 | D68: Other fixed assets additions funded by other capital grants
A69: 638 | B69: 0 | C69: 400000 | D69: Other fixed assets additions funded by reserves
A70: 639 | B70: =-400000 -> -400000 | C70: 0 | D70: Capital assets transferred of an existing academy out of the trust
A71: 650 | D71: Total Capital Expenditure
A72: 660 | D72: Net Capital income/(expenditure) for the period
A73: 670 | B73: =-400000 -> -400000 | C73: =400000 -> 400000 | D73: Capital Totals Bal Bfwd from previous
A74: 680 | D74: Capital Balance Cfwd to next period
A75: 700 | B75: 0 | C75: =400000 -> 400000 | D75: Cash at bank and in hand
A76: 701 | B76: =-200000 -> -200000 | C76: 0 | D76: Overdrafts
A77: 710 | B77: =-100000 -> -100000 | C77: =100000 -> 100000 | D77: Gain/loss on disposal of fixed assets
A78: 712 | B78: =-100000 -> -100000 | C78: =400000 -> 400000 | D78: Impairment charges
A79: 715 | B79: 0 | C79: =200000 -> 200000 | D79: Buildings depreciation
A80: 716 | B80: 0 | C80: =200000 -> 200000 | D80: Other assets donated depreciation
A81: 717 | B81: 0 | C81: =200000 -> 200000 | D81: Other assets owned depreciation
A82: 720 | D82: Total Depreciation
A83: 725 | B83: 0 | C83: =400000 -> 400000 | D83: Investments
A84: 730 | B84: 0 | C84: =100000 -> 100000 | D84: Investment liquidations
A85: 736 | B85: 0 | C85: =100000 -> 100000 | D85: Provision increase
A86: 737 | B86: =-100000 -> -100000 | C86: 0 | D86: Provisions release (enter as a negative value)
A87: 738 | B87: =-100000 -> -100000 | C87: 0 | D87: Provision utilisation
A88: 780 | B88: 0 | C88: =100000 -> 100000 | D88: Opening outstanding loans
A89: 785 | B89: =-100000 -> -100000 | C89: =100000 -> 100000 | D89: Increase/(Decrease) in outstanding loans
A90: 789 | D90: Closing outstanding loans
A91: 800 | B91: =-200000 -> -200000 | C91: =200000 -> 200000 | D91: UPIN
A92: 801 | B92: -200000 | C92: 200000 | D92: UPIN
A93: 802 | B93: -200000 | C93: 200000 | D93: UPIN
A94: 803 | B94: -200000 | C94: 200000 | D94: UPIN
A95: 804 | B95: -200000 | C95: 200000 | D95: UPIN
A96: 805 | B96: -200000 | C96: 200000 | D96: UPIN
A97: 806 | B97: -200000 | C97: 200000 | D97: UPIN
A98: 807 | B98: -200000 | C98: 200000 | D98: UPIN
A99: 808 | B99: -200000 | C99: 200000 | D99: UPIN
A100: 809 | B100: -200000 | C100: 200000 | D100: UPIN
A101: 810 | B101: -200000 | C101: 200000 | D101: UPIN
A102: 811 | B102: -200000 | C102: 200000 | D102: UPIN
A103: 812 | B103: -200000 | C103: 200000 | D103: UPIN
A104: 813 | B104: -200000 | C104: 200000 | D104: UPIN
A105: 814 | B105: -200000 | C105: 200000 | D105: UPIN
A106: 815 | B106: -200000 | C106: 200000 | D106: UPIN
A107: 816 | B107: -200000 | C107: 200000 | D107: UPIN
A108: 817 | B108: -200000 | C108: 200000 | D108: UPIN
A109: 818 | B109: -200000 | C109: 200000 | D109: UPIN
A110: 819 | B110: -200000 | C110: 200000 | D110: UPIN
A111: 820 | B111: -200000 | C111: 200000 | D111: UPIN
A112: 821 | B112: -200000 | C112: 200000 | D112: UPIN
A113: 822 | B113: -200000 | C113: 200000 | D113: UPIN
A114: 823 | B114: -200000 | C114: 200000 | D114: UPIN
A115: 824 | B115: -200000 | C115: 200000 | D115: UPIN
A116: 825 | B116: -200000 | C116: 200000 | D116: UPIN
A117: 826 | B117: -200000 | C117: 200000 | D117: UPIN
A118: 827 | B118: -200000 | C118: 200000 | D118: UPIN
A119: 828 | B119: -200000 | C119: 200000 | D119: UPIN
A120: 829 | B120: -200000 | C120: 200000 | D120: UPIN
A121: 830 | B121: -200000 | C121: 200000 | D121: UPIN
A122: 831 | B122: -200000 | C122: 200000 | D122: UPIN
A123: 832 | B123: -200000 | C123: 200000 | D123: UPIN
A124: 833 | B124: -200000 | C124: 200000 | D124: UPIN
A125: 834 | B125: -200000 | C125: 200000 | D125: UPIN
A126: 835 | B126: -200000 | C126: 200000 | D126: UPIN
A127: 836 | B127: -200000 | C127: 200000 | D127: UPIN
A128: 837 | B128: -200000 | C128: 200000 | D128: UPIN
A129: 838 | B129: -200000 | C129: 200000 | D129: UPIN
A130: 839 | B130: -200000 | C130: 200000 | D130: UPIN
A131: 840 | B131: -200000 | C131: 200000 | D131: UPIN
A132: 841 | B132: -200000 | C132: 200000 | D132: UPIN
A133: 842 | B133: -200000 | C133: 200000 | D133: UPIN
A134: 843 | B134: -200000 | C134: 200000 | D134: UPIN
A135: 844 | B135: -200000 | C135: 200000 | D135: UPIN
A136: 845 | B136: -200000 | C136: 200000 | D136: UPIN
A137: 846 | B137: -200000 | C137: 200000 | D137: UPIN
A138: 847 | B138: -200000 | C138: 200000 | D138: UPIN
A139: 848 | B139: -200000 | C139: 200000 | D139: UPIN
A140: 849 | B140: -200000 | C140: 200000 | D140: UPIN
A141: 850 | B141: -200000 | C141: 200000 | D141: UPIN
A142: 851 | B142: -200000 | C142: 200000 | D142: UPIN
A143: 852 | B143: -200000 | C143: 200000 | D143: UPIN
A144: 853 | B144: -200000 | C144: 200000 | D144: UPIN
A145: 854 | B145: -200000 | C145: 200000 | D145: UPIN
A146: 855 | B146: -200000 | C146: 200000 | D146: UPIN
A147: 856 | B147: -200000 | C147: 200000 | D147: UPIN
A148: 857 | B148: -200000 | C148: 200000 | D148: UPIN
A149: 858 | B149: -200000 | C149: 200000 | D149: UPIN
A150: 859 | B150: -200000 | C150: 200000 | D150: UPIN
A151: 860 | B151: -200000 | C151: 200000 | D151: UPIN
A152: 861 | B152: -200000 | C152: 200000 | D152: UPIN
A153: 862 | B153: -200000 | C153: 200000 | D153: UPIN
A154: 863 | B154: -200000 | C154: 200000 | D154: UPIN
A155: 864 | B155: =-200000 -> -200000 | C155: =200000 -> 200000 | D155: UPIN
A156: 865 | B156: -200000 | C156: 200000 | D156: UPIN
A157: 866 | B157: -200000 | C157: 200000 | D157: UPIN
A158: 867 | B158: -200000 | C158: 200000 | D158: UPIN
A159: 868 | B159: -200000 | C159: 200000 | D159: UPIN
A160: 869 | B160: -200000 | C160: 200000 | D160: UPIN
A161: 870 | B161: -200000 | C161: 200000 | D161: UPIN
A162: 871 | B162: -200000 | C162: 200000 | D162: UPIN
A163: 872 | B163: -200000 | C163: 200000 | D163: UPIN
A164: 873 | B164: -200000 | C164: 200000 | D164: UPIN
A165: 874 | B165: -200000 | C165: 200000 | D165: UPIN
A166: 875 | B166: -200000 | C166: 200000 | D166: UPIN
A167: 876 | B167: -200000 | C167: 200000 | D167: UPIN
A168: 877 | B168: -200000 | C168: 200000 | D168: UPIN
A169: 878 | B169: -200000 | C169: 200000 | D169: UPIN
A170: 879 | B170: -200000 | C170: 200000 | D170: UPIN
A171: 880 | B171: -200000 | C171: 200000 | D171: UPIN
A172: 881 | B172: -200000 | C172: 200000 | D172: UPIN
A173: 882 | B173: -200000 | C173: 200000 | D173: UPIN
A174: 883 | B174: -200000 | C174: 200000 | D174: UPIN
A175: 884 | B175: -200000 | C175: 200000 | D175: UPIN
A176: 885 | B176: -200000 | C176: 200000 | D176: UPIN
A177: 886 | B177: -200000 | C177: 200000 | D177: UPIN
A178: 887 | B178: -200000 | C178: 200000 | D178: UPIN
A179: 888 | B179: -200000 | C179: 200000 | D179: UPIN
A180: 889 | B180: -200000 | C180: 200000 | D180: UPIN
A181: 890 | B181: -200000 | C181: 200000 | D181: UPIN
A182: 891 | B182: -200000 | C182: 200000 | D182: UPIN
A183: 892 | B183: -200000 | C183: 200000 | D183: UPIN
A184: 893 | B184: -200000 | C184: 200000 | D184: UPIN
A185: 894 | B185: -200000 | C185: 200000 | D185: UPIN
A186: 895 | B186: -200000 | C186: 200000 | D186: UPIN
A187: 896 | B187: -200000 | C187: 200000 | D187: UPIN
A188: 897 | B188: -200000 | C188: 200000 | D188: UPIN
A189: 898 | B189: -200000 | C189: 200000 | D189: UPIN
A190: 899 | B190: -200000 | C190: 200000 | D190: UPIN
A191: 999 | B191: 0 | C191: =999999 -> 999999 | D191: Pupil numbers (actual and estimated)
A192: 1000 | B192: =-999999 -> -999999 | C192: =999999 -> 999999 | D192: Centrally held reserves (MATs Only)
A193: 1001 | D193: Total Trust Reserves
A194: 1002 | B194: =-999999 -> -999999 | C194: =999999 -> 999999 | D194: Adjustments to reserve balances

Sheet Trust validations table
A1: Validations table
A2: Trust responses to queries | C2: Please complete your answers in this table. You can then review your answers and paste into the on line form.
A5: No of validations outstanding | C5: =COUNTIF('BFR3Y 2020'!E29:E334,"=Check- see columns N-U for info") -> 8
A6: No of finance questions outstanding | C6: =COUNTIF('BFR3Y 2020'!$E$16:$E$20,"Please respond in the validations table")+'Organisation user'!U24 -> 0
A8: Query reference | C8: Query | D8: Trust Response | E8: STATUS
A11: FQ1 | B11: =RIGHT(A11,2) -> Q1
A12: FQ2 | B12: Q2
A13: FQ3 | B13: Q3
A14: FQ4 | B14: Q4
A15: FQ5 | B15: =RIGHT(A15,2) -> Q5 | C15: =IF(VLOOKUP($A15,'BFR3Y 2020'!$X$1:$AA$337,3,FALSE)=0,"",VLOOKUP($A15,'BFR3Y 2020'!$X$1:$AA$336,3,FALSE)) ->  | E15: =IF(C15="","OK",IF(D15="","Response Outstanding","Response Provided")) -> OK
A16: FQ6 | B16: =RIGHT(A16,2) -> Q6 | C16: =IF(VLOOKUP($A16,'BFR3Y 2020'!$X$1:$AA$337,3,FALSE)=0,"",VLOOKUP($A16,'BFR3Y 2020'!$X$1:$AA$336,3,FALSE)) -> Please provide a short summary of this and and where any of these are shown in the return.
A17: QU1 | B17: 1 | C17: =IF(VLOOKUP($A17,'BFR3Y 2020'!$X$29:$AA$337,3,FALSE)=0,"",VLOOKUP($A17,'BFR3Y 2020'!$X$29:$AA$336,3,FALSE)) -> You have forecast zero for GAG income for next year (102). Please provide an explanation why this value is zero? | E17: Response Outstanding
A18: QU2 | B18: 2 | C18: =IF(VLOOKUP($A18,'BFR3Y 2020'!$X$29:$AA$337,3,FALSE)=0,"",VLOOKUP($A18,'BFR3Y 2020'!$X$29:$AA$336,3,FALSE)) ->  | E18: OK
A19: QU3 | B19: 3 | C19: =IF(VLOOKUP($A19,'BFR3Y 2020'!$X$29:$AA$337,3,FALSE)=0,"",VLOOKUP($A19,'BFR3Y 2020'!$X$29:$AA$336,3,FALSE)) -> Your Yr 1 or Y2 income or expenditure totals in either year is NIL. Is this correct? | E19: Response Outstanding
A20: QU4 | B20: 4 | C20: =IF(VLOOKUP($A20,'BFR3Y 2020'!$X$29:$AA$337,3,FALSE)=0,"",VLOOKUP($A20,'BFR3Y 2020'!$X$29:$AA$336,3,FALSE)) -> Your Yr 1 or Y2 income or expenditure totals in either year is NIL. Is this correct? | E20: Response Outstanding
A21: QU5 | B21: 5 | C21: =IF(VLOOKUP($A21,'BFR3Y 2020'!$X$29:$AA$337,3,FALSE)=0,"",VLOOKUP($A21,'BFR3Y 2020'!$X$29:$AA$336,3,FALSE)) ->  | E21: OK
A22: QU6 | B22: 6 | C22: =IF(VLOOKUP($A22,'BFR3Y 2020'!$X$29:$AA$337,3,FALSE)=0,"",VLOOKUP($A22,'BFR3Y 2020'!$X$29:$AA$336,3,FALSE)) ->  | E22: OK
A23: QU7 | B23: 7 | C23: =IF(VLOOKUP($A23,'BFR3Y 2020'!$X$29:$AA$337,3,FALSE)=0,"",VLOOKUP($A23,'BFR3Y 2020'!$X$29:$AA$336,3,FALSE)) -> Please provide details where the opening balance (410) has been derived- this should be derived from the prior year Accounts Return. | E23: Response Outstanding
A24: QU8 | B24: 8 | C24: =IF(VLOOKUP($A24,'BFR3Y 2020'!$X$29:$AA$337,3,FALSE)=0,"",VLOOKUP($A24,'BFR3Y 2020'!$X$29:$AA$336,3,FALSE)) -> Please explain why the balance brought forward from previous period (410) is £0 | E24: Response Outstanding
A25: QU9 | B25: 9 | C25: =IF(VLOOKUP($A25,'BFR3Y 2020'!$X$29:$AA$337,3,FALSE)=0,"",VLOOKUP($A25,'BFR3Y 2020'!$X$29:$AA$336,3,FALSE)) ->  | E25: OK
A26: QU10 | B26: 10 | C26: =IF(VLOOKUP($A26,'BFR3Y 2020'!$X$29:$AA$337,3,FALSE)=0,"",VLOOKUP($A26,'BFR3Y 2020'!$X$29:$AA$336,3,FALSE)) ->  | E26: OK
A27: QU11 | B27: 11 | C27: =IF(VLOOKUP($A27,'BFR3Y 2020'!$X$29:$AA$337,3,FALSE)=0,"",VLOOKUP($A27,'BFR3Y 2020'!$X$29:$AA$336,3,FALSE)) ->  | E27: OK
A28: QU12 | B28: 12 | C28: =IF(VLOOKUP($A28,'BFR3Y 2020'!$X$29:$AA$337,3,FALSE)=0,"",VLOOKUP($A28,'BFR3Y 2020'!$X$29:$AA$336,3,FALSE)) ->  | E28: OK
A29: QU13 | B29: 13 | C29: =IF(VLOOKUP($A29,'BFR3Y 2020'!$X$29:$AA$337,3,FALSE)=0,"",VLOOKUP($A29,'BFR3Y 2020'!$X$29:$AA$336,3,FALSE)) ->  | E29: OK
A30: QU14 | B30: 14 | C30: =IF(VLOOKUP($A30,'BFR3Y 2020'!$X$29:$AA$337,3,FALSE)=0,"",VLOOKUP($A30,'BFR3Y 2020'!$X$29:$AA$336,3,FALSE)) ->  | E30: OK
A31: QU15 | B31: 15 | C31: =IF(VLOOKUP($A31,'BFR3Y 2020'!$X$29:$AA$337,3,FALSE)=0,"",VLOOKUP($A31,'BFR3Y 2020'!$X$29:$AA$336,3,FALSE)) -> Please can you ensure that the figures you have entered for Cash at bank and in hand (700) are correct or explain why your bank balances are all NIL. | E31: Response Outstanding
A32: QU16 | B32: 16 | C32: =IF(VLOOKUP($A32,'BFR3Y 2020'!$X$29:$AA$337,3,FALSE)=0,"",VLOOKUP($A32,'BFR3Y 2020'!$X$29:$AA$336,3,FALSE)) ->  | E32: OK
A33: QU17 | B33: 17 | C33: =IF(VLOOKUP($A33,'BFR3Y 2020'!$X$29:$AA$337,3,FALSE)=0,"",VLOOKUP($A33,'BFR3Y 2020'!$X$29:$AA$336,3,FALSE)) ->  | E33: OK
A34: QU18 | B34: 18 | C34: =IF(VLOOKUP($A34,'BFR3Y 2020'!$X$29:$AA$337,3,FALSE)=0,"",VLOOKUP($A34,'BFR3Y 2020'!$X$29:$AA$336,3,FALSE)) ->  | E34: OK
A35: QU19 | B35: 19 | C35: =IF(VLOOKUP($A35,'BFR3Y 2020'!$X$29:$AA$337,3,FALSE)=0,"",VLOOKUP($A35,'BFR3Y 2020'!$X$29:$AA$336,3,FALSE)) ->  | E35: OK
A36: QU20 | B36: 20 | C36: =IF(VLOOKUP($A36,'BFR3Y 2020'!$X$29:$AA$337,3,FALSE)=0,"",VLOOKUP($A36,'BFR3Y 2020'!$X$29:$AA$336,3,FALSE)) ->  | E36: OK
A37: QU21 | B37: 21 | C37: =IF(VLOOKUP($A37,'BFR3Y 2020'!$X$29:$AA$337,3,FALSE)=0,"",VLOOKUP($A37,'BFR3Y 2020'!$X$29:$AA$336,3,FALSE)) ->  | E37: OK
A38: QU22 | B38: 22 | C38: =IF(VLOOKUP($A38,'BFR3Y 2020'!$X$29:$AA$337,3,FALSE)=0,"",VLOOKUP($A38,'BFR3Y 2020'!$X$29:$AA$336,3,FALSE)) -> Please ensure you have entered the pupil numbers correctly (i.e. they have not been rounded) or explain why you have input no pupil numbers. | E38: Response Outstanding
A39: QU23 | B39: 23 | C39: =IF(VLOOKUP($A39,'BFR3Y 2020'!$X$29:$AA$337,3,FALSE)=0,"",VLOOKUP($A39,'BFR3Y 2020'!$X$29:$AA$336,3,FALSE)) ->  | E39: OK
A40: QU25 | B40: 24 | C40: =IF(VLOOKUP($A40,'BFR3Y 2020'!$X$29:$AA$337,3,FALSE)=0,"",VLOOKUP($A40,'BFR3Y 2020'!$X$29:$AA$336,3,FALSE)) -> Your net income and expenditure in the BFRO 2018/19 summary is zero. Can you check and ensure you have input some values or provide an explanation. | E40: Response Outstanding
A41: QU500 | B41: 500 | C41: =IF(VLOOKUP($A41,'BFR3Y 2020'!$X$29:$AA$337,3,FALSE)=0,"",VLOOKUP($A41,'BFR3Y 2020'!$X$29:$AA$336,3,FALSE)) ->  | E41: OK
A42: QU502 | B42: 502 | C42: =IF(VLOOKUP($A42,'BFR3Y 2020'!$X$29:$AA$337,3,FALSE)=0,"",VLOOKUP($A42,'BFR3Y 2020'!$X$29:$AA$336,3,FALSE)) ->  | E42: OK
A43: QU503 | B43: 503 | C43: =IF(VLOOKUP($A43,'BFR3Y 2020'!$X$29:$AA$337,3,FALSE)=0,"",VLOOKUP($A43,'BFR3Y 2020'!$X$29:$AA$336,3,FALSE)) ->  | E43: OK
A44: QU310 | B44: 310 | C44: =IF(VLOOKUP($A44,'BFR3Y 2020'!$X$29:$AA$337,3,FALSE)=0,"",VLOOKUP($A44,'BFR3Y 2020'!$X$29:$AA$336,3,FALSE)) ->  | E44: OK
A45: QU311 | B45: =1+B44 -> 311 | C45: =IF(VLOOKUP($A45,'BFR3Y 2020'!$X$29:$AA$337,3,FALSE)=0,"",VLOOKUP($A45,'BFR3Y 2020'!$X$29:$AA$336,3,FALSE)) ->  | E45: OK
A46: QU312 | B46: =1+B45 -> 312 | C46: =IF(VLOOKUP($A46,'BFR3Y 2020'!$X$29:$AA$337,3,FALSE)=0,"",VLOOKUP($A46,'BFR3Y 2020'!$X$29:$AA$336,3,FALSE)) ->  | E46: OK
A47: QU313 | B47: 313 | C47: =IF(VLOOKUP($A47,'BFR3Y 2020'!$X$29:$AA$337,3,FALSE)=0,"",VLOOKUP($A47,'BFR3Y 2020'!$X$29:$AA$336,3,FALSE)) ->  | E47: OK
A48: QU314 | B48: 314 | C48: =IF(VLOOKUP($A48,'BFR3Y 2020'!$X$29:$AA$337,3,FALSE)=0,"",VLOOKUP($A48,'BFR3Y 2020'!$X$29:$AA$336,3,FALSE)) ->  | E48: OK
A49: QU315 | B49: 315 | C49: =IF(VLOOKUP($A49,'BFR3Y 2020'!$X$29:$AA$337,3,FALSE)=0,"",VLOOKUP($A49,'BFR3Y 2020'!$X$29:$AA$336,3,FALSE)) ->  | E49: OK
A50: QU316 | B50: 316 | C50: =IF(VLOOKUP($A50,'BFR3Y 2020'!$X$29:$AA$337,3,FALSE)=0,"",VLOOKUP($A50,'BFR3Y 2020'!$X$29:$AA$336,3,FALSE)) ->  | E50: OK
A51: QU317 | B51: 317 | C51: =IF(VLOOKUP($A51,'BFR3Y 2020'!$X$29:$AA$337,3,FALSE)=0,"",VLOOKUP($A51,'BFR3Y 2020'!$X$29:$AA$336,3,FALSE)) ->  | E51: OK
A52: QU318 | B52: 318 | C52: =IF(VLOOKUP($A52,'BFR3Y 2020'!$X$29:$AA$337,3,FALSE)=0,"",VLOOKUP($A52,'BFR3Y 2020'!$X$29:$AA$336,3,FALSE)) ->  | E52: OK
A53: QU319 | B53: 319 | C53: =IF(VLOOKUP($A53,'BFR3Y 2020'!$X$29:$AA$337,3,FALSE)=0,"",VLOOKUP($A53,'BFR3Y 2020'!$X$29:$AA$336,3,FALSE)) ->  | E53: OK
A54: QU320 | B54: 320 | C54: =IF(VLOOKUP($A54,'BFR3Y 2020'!$X$29:$AA$337,3,FALSE)=0,"",VLOOKUP($A54,'BFR3Y 2020'!$X$29:$AA$336,3,FALSE)) ->  | E54: OK
A55: QU321 | B55: 321 | C55: =IF(VLOOKUP($A55,'BFR3Y 2020'!$X$29:$AA$337,3,FALSE)=0,"",VLOOKUP($A55,'BFR3Y 2020'!$X$29:$AA$336,3,FALSE)) ->  | E55: OK
A56: QU322 | B56: 322 | C56: =IF(VLOOKUP($A56,'BFR3Y 2020'!$X$29:$AA$337,3,FALSE)=0,"",VLOOKUP($A56,'BFR3Y 2020'!$X$29:$AA$336,3,FALSE)) ->  | E56: OK
A57: QU323 | B57: 323 | C57: =IF(VLOOKUP($A57,'BFR3Y 2020'!$X$29:$AA$337,3,FALSE)=0,"",VLOOKUP($A57,'BFR3Y 2020'!$X$29:$AA$336,3,FALSE)) ->  | E57: OK
A58: QU324 | B58: 324 | C58: =IF(VLOOKUP($A58,'BFR3Y 2020'!$X$29:$AA$337,3,FALSE)=0,"",VLOOKUP($A58,'BFR3Y 2020'!$X$29:$AA$336,3,FALSE)) ->  | E58: OK
A59: QU325 | B59: 325 | C59: =IF(VLOOKUP($A59,'BFR3Y 2020'!$X$29:$AA$337,3,FALSE)=0,"",VLOOKUP($A59,'BFR3Y 2020'!$X$29:$AA$336,3,FALSE)) ->  | E59: OK
A60: QU326 | B60: 326 | C60: =IF(VLOOKUP($A60,'BFR3Y 2020'!$X$29:$AA$337,3,FALSE)=0,"",VLOOKUP($A60,'BFR3Y 2020'!$X$29:$AA$336,3,FALSE)) ->  | E60: OK
A61: QU327 | B61: 327 | C61: =IF(VLOOKUP($A61,'BFR3Y 2020'!$X$29:$AA$337,3,FALSE)=0,"",VLOOKUP($A61,'BFR3Y 2020'!$X$29:$AA$336,3,FALSE)) ->  | E61: OK
A62: QU328 | B62: 328 | C62: =IF(VLOOKUP($A62,'BFR3Y 2020'!$X$29:$AA$337,3,FALSE)=0,"",VLOOKUP($A62,'BFR3Y 2020'!$X$29:$AA$336,3,FALSE)) ->  | E62: OK
A63: QU329 | B63: 329 | C63: =IF(VLOOKUP($A63,'BFR3Y 2020'!$X$29:$AA$337,3,FALSE)=0,"",VLOOKUP($A63,'BFR3Y 2020'!$X$29:$AA$336,3,FALSE)) ->  | E63: OK
A64: QU330 | B64: 330 | C64: =IF(VLOOKUP($A64,'BFR3Y 2020'!$X$29:$AA$337,3,FALSE)=0,"",VLOOKUP($A64,'BFR3Y 2020'!$X$29:$AA$336,3,FALSE)) ->  | E64: OK
A65: QU331 | B65: 331 | C65: =IF(VLOOKUP($A65,'BFR3Y 2020'!$X$29:$AA$337,3,FALSE)=0,"",VLOOKUP($A65,'BFR3Y 2020'!$X$29:$AA$336,3,FALSE)) ->  | E65: OK
A66: QU332 | B66: 332 | C66: =IF(VLOOKUP($A66,'BFR3Y 2020'!$X$29:$AA$337,3,FALSE)=0,"",VLOOKUP($A66,'BFR3Y 2020'!$X$29:$AA$336,3,FALSE)) ->  | E66: OK
A67: QU333 | B67: 333 | C67: =IF(VLOOKUP($A67,'BFR3Y 2020'!$X$29:$AA$337,3,FALSE)=0,"",VLOOKUP($A67,'BFR3Y 2020'!$X$29:$AA$336,3,FALSE)) ->  | E67: OK
A68: QU334 | B68: 334 | C68: =IF(VLOOKUP($A68,'BFR3Y 2020'!$X$29:$AA$337,3,FALSE)=0,"",VLOOKUP($A68,'BFR3Y 2020'!$X$29:$AA$336,3,FALSE)) ->  | E68: OK
A69: QU335 | B69: 335 | C69: =IF(VLOOKUP($A69,'BFR3Y 2020'!$X$29:$AA$337,3,FALSE)=0,"",VLOOKUP($A69,'BFR3Y 2020'!$X$29:$AA$336,3,FALSE)) ->  | E69: OK
A70: QU336 | B70: 336 | C70: =IF(VLOOKUP($A70,'BFR3Y 2020'!$X$29:$AA$337,3,FALSE)=0,"",VLOOKUP($A70,'BFR3Y 2020'!$X$29:$AA$336,3,FALSE)) ->  | E70: OK
A71: QU337 | B71: 337 | C71: =IF(VLOOKUP($A71,'BFR3Y 2020'!$X$29:$AA$337,3,FALSE)=0,"",VLOOKUP($A71,'BFR3Y 2020'!$X$29:$AA$336,3,FALSE)) ->  | E71: OK
A72: QU338 | B72: 338 | C72: =IF(VLOOKUP($A72,'BFR3Y 2020'!$X$29:$AA$337,3,FALSE)=0,"",VLOOKUP($A72,'BFR3Y 2020'!$X$29:$AA$336,3,FALSE)) ->  | E72: OK
A73: QU339 | B73: 339 | C73: =IF(VLOOKUP($A73,'BFR3Y 2020'!$X$29:$AA$337,3,FALSE)=0,"",VLOOKUP($A73,'BFR3Y 2020'!$X$29:$AA$336,3,FALSE)) ->  | E73: OK
A74: QU340 | B74: 340 | C74: =IF(VLOOKUP($A74,'BFR3Y 2020'!$X$29:$AA$337,3,FALSE)=0,"",VLOOKUP($A74,'BFR3Y 2020'!$X$29:$AA$336,3,FALSE)) ->  | E74: OK
A75: QU341 | B75: 341 | C75: =IF(VLOOKUP($A75,'BFR3Y 2020'!$X$29:$AA$337,3,FALSE)=0,"",VLOOKUP($A75,'BFR3Y 2020'!$X$29:$AA$336,3,FALSE)) ->  | E75: OK
A76: QU342 | B76: 342 | C76: =IF(VLOOKUP($A76,'BFR3Y 2020'!$X$29:$AA$337,3,FALSE)=0,"",VLOOKUP($A76,'BFR3Y 2020'!$X$29:$AA$336,3,FALSE)) ->  | E76: OK
A77: QU343 | B77: 343 | C77: =IF(VLOOKUP($A77,'BFR3Y 2020'!$X$29:$AA$337,3,FALSE)=0,"",VLOOKUP($A77,'BFR3Y 2020'!$X$29:$AA$336,3,FALSE)) ->  | E77: OK
A78: QU344 | B78: 344 | C78: =IF(VLOOKUP($A78,'BFR3Y 2020'!$X$29:$AA$337,3,FALSE)=0,"",VLOOKUP($A78,'BFR3Y 2020'!$X$29:$AA$336,3,FALSE)) ->  | E78: OK
A79: QU345 | B79: 345 | C79: =IF(VLOOKUP($A79,'BFR3Y 2020'!$X$29:$AA$337,3,FALSE)=0,"",VLOOKUP($A79,'BFR3Y 2020'!$X$29:$AA$336,3,FALSE)) ->  | E79: =IF(C79="","OK",IF(D79="","Response Outstanding","Response Provided")) -> OK
A80: QU346 | B80: 346 | C80: =IF(VLOOKUP($A80,'BFR3Y 2020'!$X$29:$AA$337,3,FALSE)=0,"",VLOOKUP($A80,'BFR3Y 2020'!$X$29:$AA$336,3,FALSE)) ->  | E80: OK
A81: QU347 | B81: 347 | C81: =IF(VLOOKUP($A81,'BFR3Y 2020'!$X$29:$AA$337,3,FALSE)=0,"",VLOOKUP($A81,'BFR3Y 2020'!$X$29:$AA$336,3,FALSE)) ->  | E81: OK
A82: QU348 | B82: 348 | C82: =IF(VLOOKUP($A82,'BFR3Y 2020'!$X$29:$AA$337,3,FALSE)=0,"",VLOOKUP($A82,'BFR3Y 2020'!$X$29:$AA$336,3,FALSE)) ->  | E82: OK
A83: QU349 | B83: 349 | C83: =IF(VLOOKUP($A83,'BFR3Y 2020'!$X$29:$AA$337,3,FALSE)=0,"",VLOOKUP($A83,'BFR3Y 2020'!$X$29:$AA$336,3,FALSE)) ->  | E83: OK
A84: QU350 | B84: 350 | C84: =IF(VLOOKUP($A84,'BFR3Y 2020'!$X$29:$AA$337,3,FALSE)=0,"",VLOOKUP($A84,'BFR3Y 2020'!$X$29:$AA$336,3,FALSE)) ->  | E84: OK
A85: QU351 | B85: 351 | C85: =IF(VLOOKUP($A85,'BFR3Y 2020'!$X$29:$AA$337,3,FALSE)=0,"",VLOOKUP($A85,'BFR3Y 2020'!$X$29:$AA$336,3,FALSE)) ->  | E85: OK
A86: QU352 | B86: 352 | C86: =IF(VLOOKUP($A86,'BFR3Y 2020'!$X$29:$AA$337,3,FALSE)=0,"",VLOOKUP($A86,'BFR3Y 2020'!$X$29:$AA$336,3,FALSE)) ->  | E86: OK
A87: QU353 | B87: 353 | C87: =IF(VLOOKUP($A87,'BFR3Y 2020'!$X$29:$AA$337,3,FALSE)=0,"",VLOOKUP($A87,'BFR3Y 2020'!$X$29:$AA$336,3,FALSE)) ->  | E87: OK
A88: QU354 | B88: 354 | C88: =IF(VLOOKUP($A88,'BFR3Y 2020'!$X$29:$AA$337,3,FALSE)=0,"",VLOOKUP($A88,'BFR3Y 2020'!$X$29:$AA$336,3,FALSE)) ->  | E88: OK
A89: QU355 | B89: 355 | C89: =IF(VLOOKUP($A89,'BFR3Y 2020'!$X$29:$AA$337,3,FALSE)=0,"",VLOOKUP($A89,'BFR3Y 2020'!$X$29:$AA$336,3,FALSE)) ->  | E89: OK
A90: QU356 | B90: 356 | C90: =IF(VLOOKUP($A90,'BFR3Y 2020'!$X$29:$AA$337,3,FALSE)=0,"",VLOOKUP($A90,'BFR3Y 2020'!$X$29:$AA$336,3,FALSE)) ->  | E90: OK
A91: QU357 | B91: 357 | C91: =IF(VLOOKUP($A91,'BFR3Y 2020'!$X$29:$AA$337,3,FALSE)=0,"",VLOOKUP($A91,'BFR3Y 2020'!$X$29:$AA$336,3,FALSE)) ->  | E91: OK
A92: QU358 | B92: 358 | C92: =IF(VLOOKUP($A92,'BFR3Y 2020'!$X$29:$AA$337,3,FALSE)=0,"",VLOOKUP($A92,'BFR3Y 2020'!$X$29:$AA$336,3,FALSE)) ->  | E92: OK
A93: QU359 | B93: 359 | C93: =IF(VLOOKUP($A93,'BFR3Y 2020'!$X$29:$AA$337,3,FALSE)=0,"",VLOOKUP($A93,'BFR3Y 2020'!$X$29:$AA$336,3,FALSE)) ->  | E93: OK
A94: QU360 | B94: 360 | C94: =IF(VLOOKUP($A94,'BFR3Y 2020'!$X$29:$AA$337,3,FALSE)=0,"",VLOOKUP($A94,'BFR3Y 2020'!$X$29:$AA$336,3,FALSE)) ->  | E94: OK
A95: QU361 | B95: 361 | C95: =IF(VLOOKUP($A95,'BFR3Y 2020'!$X$29:$AA$337,3,FALSE)=0,"",VLOOKUP($A95,'BFR3Y 2020'!$X$29:$AA$336,3,FALSE)) ->  | E95: OK
A96: QU362 | B96: 362 | C96: =IF(VLOOKUP($A96,'BFR3Y 2020'!$X$29:$AA$337,3,FALSE)=0,"",VLOOKUP($A96,'BFR3Y 2020'!$X$29:$AA$336,3,FALSE)) ->  | E96: OK
A97: QU363 | B97: 363 | C97: =IF(VLOOKUP($A97,'BFR3Y 2020'!$X$29:$AA$337,3,FALSE)=0,"",VLOOKUP($A97,'BFR3Y 2020'!$X$29:$AA$336,3,FALSE)) ->  | E97: OK
A98: QU364 | B98: 364 | C98: =IF(VLOOKUP($A98,'BFR3Y 2020'!$X$29:$AA$337,3,FALSE)=0,"",VLOOKUP($A98,'BFR3Y 2020'!$X$29:$AA$336,3,FALSE)) ->  | E98: OK
A99: QU365 | B99: 365 | C99: =IF(VLOOKUP($A99,'BFR3Y 2020'!$X$29:$AA$337,3,FALSE)=0,"",VLOOKUP($A99,'BFR3Y 2020'!$X$29:$AA$336,3,FALSE)) ->  | E99: OK
A100: QU366 | B100: 366 | C100: =IF(VLOOKUP($A100,'BFR3Y 2020'!$X$29:$AA$337,3,FALSE)=0,"",VLOOKUP($A100,'BFR3Y 2020'!$X$29:$AA$336,3,FALSE)) ->  | E100: OK
A101: QU367 | B101: 367 | C101: =IF(VLOOKUP($A101,'BFR3Y 2020'!$X$29:$AA$337,3,FALSE)=0,"",VLOOKUP($A101,'BFR3Y 2020'!$X$29:$AA$336,3,FALSE)) ->  | E101: OK
A102: QU368 | B102: 368 | C102: =IF(VLOOKUP($A102,'BFR3Y 2020'!$X$29:$AA$337,3,FALSE)=0,"",VLOOKUP($A102,'BFR3Y 2020'!$X$29:$AA$336,3,FALSE)) ->  | E102: OK
A103: QU369 | B103: 369 | C103: =IF(VLOOKUP($A103,'BFR3Y 2020'!$X$29:$AA$337,3,FALSE)=0,"",VLOOKUP($A103,'BFR3Y 2020'!$X$29:$AA$336,3,FALSE)) ->  | E103: OK
A104: QU370 | B104: 370 | C104: =IF(VLOOKUP($A104,'BFR3Y 2020'!$X$29:$AA$337,3,FALSE)=0,"",VLOOKUP($A104,'BFR3Y 2020'!$X$29:$AA$336,3,FALSE)) ->  | E104: OK
A105: QU371 | B105: 371 | C105: =IF(VLOOKUP($A105,'BFR3Y 2020'!$X$29:$AA$337,3,FALSE)=0,"",VLOOKUP($A105,'BFR3Y 2020'!$X$29:$AA$336,3,FALSE)) ->  | E105: OK
A106: QU372 | B106: 372 | C106: =IF(VLOOKUP($A106,'BFR3Y 2020'!$X$29:$AA$337,3,FALSE)=0,"",VLOOKUP($A106,'BFR3Y 2020'!$X$29:$AA$336,3,FALSE)) ->  | E106: OK
A107: QU373 | B107: 373 | C107: =IF(VLOOKUP($A107,'BFR3Y 2020'!$X$29:$AA$337,3,FALSE)=0,"",VLOOKUP($A107,'BFR3Y 2020'!$X$29:$AA$336,3,FALSE)) ->  | E107: OK
A108: QU374 | B108: 374 | C108: =IF(VLOOKUP($A108,'BFR3Y 2020'!$X$29:$AA$337,3,FALSE)=0,"",VLOOKUP($A108,'BFR3Y 2020'!$X$29:$AA$336,3,FALSE)) ->  | E108: OK
A109: QU375 | B109: 375 | C109: =IF(VLOOKUP($A109,'BFR3Y 2020'!$X$29:$AA$337,3,FALSE)=0,"",VLOOKUP($A109,'BFR3Y 2020'!$X$29:$AA$336,3,FALSE)) ->  | E109: OK
A110: QU376 | B110: =1+B109 -> 376 | C110: =IF(VLOOKUP($A110,'BFR3Y 2020'!$X$29:$AA$337,3,FALSE)=0,"",VLOOKUP($A110,'BFR3Y 2020'!$X$29:$AA$336,3,FALSE)) ->  | E110: OK
A111: QU377 | B111: 377 | C111: =IF(VLOOKUP($A111,'BFR3Y 2020'!$X$29:$AA$337,3,FALSE)=0,"",VLOOKUP($A111,'BFR3Y 2020'!$X$29:$AA$336,3,FALSE)) ->  | E111: OK
A112: QU378 | B112: 378 | C112: =IF(VLOOKUP($A112,'BFR3Y 2020'!$X$29:$AA$337,3,FALSE)=0,"",VLOOKUP($A112,'BFR3Y 2020'!$X$29:$AA$336,3,FALSE)) ->  | E112: OK
A113: QU379 | B113: 379 | C113: =IF(VLOOKUP($A113,'BFR3Y 2020'!$X$29:$AA$337,3,FALSE)=0,"",VLOOKUP($A113,'BFR3Y 2020'!$X$29:$AA$336,3,FALSE)) ->  | E113: OK
A114: QU380 | B114: 380 | C114: =IF(VLOOKUP($A114,'BFR3Y 2020'!$X$29:$AA$337,3,FALSE)=0,"",VLOOKUP($A114,'BFR3Y 2020'!$X$29:$AA$336,3,FALSE)) ->  | E114: OK
A115: QU381 | B115: 381 | C115: =IF(VLOOKUP($A115,'BFR3Y 2020'!$X$29:$AA$337,3,FALSE)=0,"",VLOOKUP($A115,'BFR3Y 2020'!$X$29:$AA$336,3,FALSE)) ->  | E115: OK
A116: QU382 | B116: 382 | C116: =IF(VLOOKUP($A116,'BFR3Y 2020'!$X$29:$AA$337,3,FALSE)=0,"",VLOOKUP($A116,'BFR3Y 2020'!$X$29:$AA$336,3,FALSE)) ->  | E116: OK
A117: QU383 | B117: 383 | C117: =IF(VLOOKUP($A117,'BFR3Y 2020'!$X$29:$AA$337,3,FALSE)=0,"",VLOOKUP($A117,'BFR3Y 2020'!$X$29:$AA$336,3,FALSE)) ->  | E117: OK
A118: QU384 | B118: 384 | C118: =IF(VLOOKUP($A118,'BFR3Y 2020'!$X$29:$AA$337,3,FALSE)=0,"",VLOOKUP($A118,'BFR3Y 2020'!$X$29:$AA$336,3,FALSE)) ->  | E118: OK
A119: QU385 | B119: 385 | C119: =IF(VLOOKUP($A119,'BFR3Y 2020'!$X$29:$AA$337,3,FALSE)=0,"",VLOOKUP($A119,'BFR3Y 2020'!$X$29:$AA$336,3,FALSE)) ->  | E119: OK
A120: QU386 | B120: 386 | C120: =IF(VLOOKUP($A120,'BFR3Y 2020'!$X$29:$AA$337,3,FALSE)=0,"",VLOOKUP($A120,'BFR3Y 2020'!$X$29:$AA$336,3,FALSE)) ->  | E120: OK
A121: QU387 | B121: 387 | C121: =IF(VLOOKUP($A121,'BFR3Y 2020'!$X$29:$AA$337,3,FALSE)=0,"",VLOOKUP($A121,'BFR3Y 2020'!$X$29:$AA$336,3,FALSE)) ->  | E121: OK
A122: QU388 | B122: 388 | C122: =IF(VLOOKUP($A122,'BFR3Y 2020'!$X$29:$AA$337,3,FALSE)=0,"",VLOOKUP($A122,'BFR3Y 2020'!$X$29:$AA$336,3,FALSE)) ->  | E122: OK
A123: QU389 | B123: 389 | C123: =IF(VLOOKUP($A123,'BFR3Y 2020'!$X$29:$AA$337,3,FALSE)=0,"",VLOOKUP($A123,'BFR3Y 2020'!$X$29:$AA$336,3,FALSE)) ->  | E123: OK
A124: QU390 | B124: 390 | C124: =IF(VLOOKUP($A124,'BFR3Y 2020'!$X$29:$AA$337,3,FALSE)=0,"",VLOOKUP($A124,'BFR3Y 2020'!$X$29:$AA$336,3,FALSE)) ->  | E124: OK
A125: QU391 | B125: 391 | C125: =IF(VLOOKUP($A125,'BFR3Y 2020'!$X$29:$AA$337,3,FALSE)=0,"",VLOOKUP($A125,'BFR3Y 2020'!$X$29:$AA$336,3,FALSE)) ->  | E125: OK
A126: QU392 | B126: 392 | C126: =IF(VLOOKUP($A126,'BFR3Y 2020'!$X$29:$AA$337,3,FALSE)=0,"",VLOOKUP($A126,'BFR3Y 2020'!$X$29:$AA$336,3,FALSE)) ->  | E126: OK
A127: QU393 | B127: 393 | C127: =IF(VLOOKUP($A127,'BFR3Y 2020'!$X$29:$AA$337,3,FALSE)=0,"",VLOOKUP($A127,'BFR3Y 2020'!$X$29:$AA$336,3,FALSE)) ->  | E127: OK
A128: QU394 | B128: 394 | C128: =IF(VLOOKUP($A128,'BFR3Y 2020'!$X$29:$AA$337,3,FALSE)=0,"",VLOOKUP($A128,'BFR3Y 2020'!$X$29:$AA$336,3,FALSE)) ->  | E128: OK
A129: QU395 | B129: 395 | C129: =IF(VLOOKUP($A129,'BFR3Y 2020'!$X$29:$AA$337,3,FALSE)=0,"",VLOOKUP($A129,'BFR3Y 2020'!$X$29:$AA$336,3,FALSE)) ->  | E129: OK
A130: QU396 | B130: 396 | C130: =IF(VLOOKUP($A130,'BFR3Y 2020'!$X$29:$AA$337,3,FALSE)=0,"",VLOOKUP($A130,'BFR3Y 2020'!$X$29:$AA$336,3,FALSE)) ->  | E130: OK
A131: QU397 | B131: 397 | C131: =IF(VLOOKUP($A131,'BFR3Y 2020'!$X$29:$AA$337,3,FALSE)=0,"",VLOOKUP($A131,'BFR3Y 2020'!$X$29:$AA$336,3,FALSE)) ->  | E131: OK
A132: QU398 | B132: 398 | C132: =IF(VLOOKUP($A132,'BFR3Y 2020'!$X$29:$AA$337,3,FALSE)=0,"",VLOOKUP($A132,'BFR3Y 2020'!$X$29:$AA$336,3,FALSE)) ->  | E132: OK
A133: QU399 | B133: 399 | C133: =IF(VLOOKUP($A133,'BFR3Y 2020'!$X$29:$AA$337,3,FALSE)=0,"",VLOOKUP($A133,'BFR3Y 2020'!$X$29:$AA$336,3,FALSE)) ->  | E133: OK
A134: QU400 | B134: 400 | C134: =IF(VLOOKUP($A134,'BFR3Y 2020'!$X$29:$AA$337,3,FALSE)=0,"",VLOOKUP($A134,'BFR3Y 2020'!$X$29:$AA$336,3,FALSE)) ->  | E134: OK
A135: QU401 | B135: 401 | C135: =IF(VLOOKUP($A135,'BFR3Y 2020'!$X$29:$AA$337,3,FALSE)=0,"",VLOOKUP($A135,'BFR3Y 2020'!$X$29:$AA$336,3,FALSE)) ->  | E135: OK
A136: QU402 | B136: 402 | C136: =IF(VLOOKUP($A136,'BFR3Y 2020'!$X$29:$AA$337,3,FALSE)=0,"",VLOOKUP($A136,'BFR3Y 2020'!$X$29:$AA$336,3,FALSE)) ->  | E136: OK
A137: QU403 | B137: 403 | C137: =IF(VLOOKUP($A137,'BFR3Y 2020'!$X$29:$AA$337,3,FALSE)=0,"",VLOOKUP($A137,'BFR3Y 2020'!$X$29:$AA$336,3,FALSE)) ->  | E137: OK
A138: QU404 | B138: 404 | C138: =IF(VLOOKUP($A138,'BFR3Y 2020'!$X$29:$AA$337,3,FALSE)=0,"",VLOOKUP($A138,'BFR3Y 2020'!$X$29:$AA$336,3,FALSE)) ->  | E138: OK
A139: QU405 | B139: 405 | C139: =IF(VLOOKUP($A139,'BFR3Y 2020'!$X$29:$AA$337,3,FALSE)=0,"",VLOOKUP($A139,'BFR3Y 2020'!$X$29:$AA$336,3,FALSE)) ->  | E139: OK
A140: QU406 | B140: 406 | C140: =IF(VLOOKUP($A140,'BFR3Y 2020'!$X$29:$AA$337,3,FALSE)=0,"",VLOOKUP($A140,'BFR3Y 2020'!$X$29:$AA$336,3,FALSE)) ->  | E140: OK
A141: QU407 | B141: 407 | C141: =IF(VLOOKUP($A141,'BFR3Y 2020'!$X$29:$AA$337,3,FALSE)=0,"",VLOOKUP($A141,'BFR3Y 2020'!$X$29:$AA$336,3,FALSE)) ->  | E141: OK
A142: QU408 | B142: 408 | C142: =IF(VLOOKUP($A142,'BFR3Y 2020'!$X$29:$AA$337,3,FALSE)=0,"",VLOOKUP($A142,'BFR3Y 2020'!$X$29:$AA$336,3,FALSE)) ->  | E142: OK
A143: QU409 | B143: 409 | C143: =IF(VLOOKUP($A143,'BFR3Y 2020'!$X$29:$AA$337,3,FALSE)=0,"",VLOOKUP($A143,'BFR3Y 2020'!$X$29:$AA$336,3,FALSE)) ->  | E143: =IF(C143="","OK",IF(D143="","Response Outstanding","Response Provided")) -> OK
